Workbook

Sheet Notes (hidden)
A3: Income | B3: Step | C3: Tier 1 | D3: Tier 2 | E3: Tier 3 | F3: Tier 4 | G3: Tier 5 | H3: Total | I3: Mediban levi | J3: Grand Total
A4: 18201 | C4: 0 | H4: =C4+D4+E4+F4 -> 0 | I4: =A4*1.5% -> 273.015 | J4: =H4+I4 -> 273.015
A5: 37001 | B5: =A5-A4 -> 18800 | D5: =B5*19% -> 3572 | H5: =C5+D5+E5+F5 -> 3572 | I5: =A5*1.5% -> 555.015 | J5: =H5+I5 -> 4127.015
A6: 80001 | B6: =A6-A5 -> 43000 | D6: 3572 | E6: =B6*32.5% -> 13975 | H6: 17547 | I6: 1200.015 | J6: 18747.015
A7: 180000 | B7: =A7-A6 -> 99999 | D7: 3572 | E7: 13975 | F7: =B7*37% -> 36999.63 | H7: 54546.63 | I7: 2700 | J7: 57246.63
A8: 180001 | B8: =A8-A7 -> 1 | D8: 3572 | E8: 13975 | F8: 37000 | G8: =B8*45% -> 0.45 | H8: =D8+E8+F8+G8 -> 54547.45 | I8: 2700.015 | J8: 57247.465
B10: Weekly | C10: Annual | D10: Child | E10: WBA Calculations
A11: Couple | B11: 460.2 | C11: =B11*52 -> 23930.4 | E11: 23930 | F11: =E11-C11 -> -0.4
A12: Couple +1 | B12: 572.05 | C12: =B12*52 -> 29746.6 | D12: =C12-C11 -> 5816.2 | E12: 29746 | F12: =E12-C12 -> -0.6
A13: couple +2 | B13: 683.9 | C13: 35562.8 | D13: =C13-C12 -> 5816.2 | E13: 35562 | F13: -0.8
A14: Couple +3 | B14: 795.75 | C14: 41379 | D14: 5816.2 | E14: 41378 | F14: -1
A15: Couple + 4 | B15: 906.36 | C15: 47130.72 | D15: 5751.72 | E15: 47194 | F15: 63.28
A17: Single | B17: 316.55 | C17: 16460.6
A18: Single + 1 | B18: 434.76 | C18: 22607.52 | D18: 6146.92 | E18: 22276 | F18: =E18-C18 -> -331.52 | G18: Noted the difference in caclculations. HPI has the 1st child for a single applicant costing $331 extra p.a.. This results in a difference of approx $3,000 borrowing capacity, as the calculations are for housing loans consider $3,000 immaterial
A19: Single + 2 | B19: 546.61 | C19: 28423.72 | D19: 5816.2 | E19: 28092 | F19: =E19-C19 -> -331.72
A20: Single + 3 | B20: 658.46 | C20: 34239.92 | D20: 5816.2 | E20: 33908 | F20: -331.92
A21: Single + 4 | B21: 770.31 | C21: 40056.12 | D21: 5816.2 | E21: 39724 | F21: -332.12

Sheet Repay Sensitivity (hidden)
B1: Repayment Rate Sensitivity Analysis
A3: This worksheet determines the sensitivity of commitments to rate increases.
F5: 0.025
B6: Loan Amt | C6: Rate | D6: Term | E6: Pmt | F6: Stressed Pmt | G6: % Increase
A7: P&I | B7: 20000 | C7: 0.1 | D7: 3 | E7: =-PMT(C7/12,D7*12,B7,0) -> 645.3437439 | F7: =-PMT((C7+$F$5)/12,D7*12,B7,0) -> 669.0725115 | G7: =(F7-E7)/E7 -> 0.03676919143
B8: 50000 | C8: 0.1 | D8: 3 | E8: =-PMT(C8/12,D8*12,B8,0) -> 1613.35936 | F8: =-PMT((C8+$F$5)/12,D8*12,B8,0) -> 1672.681279 | G8: =(F8-E8)/E8 -> 0.03676919143
B10: 20000 | C10: 0.1 | D10: 5 | E10: =-PMT(C10/12,D10*12,B10,0) -> 424.9408942 | F10: =-PMT((C10+$F$5)/12,D10*12,B10,0) -> 449.9587645 | G10: =(F10-E10)/E10 -> 0.05887376485
B11: 50000 | C11: 0.1 | D11: 5 | E11: =-PMT(C11/12,D11*12,B11,0) -> 1062.352236 | F11: =-PMT((C11+$F$5)/12,D11*12,B11,0) -> 1124.896911 | G11: =(F11-E11)/E11 -> 0.05887376485
B13: 20000 | C13: 0.1 | D13: 7 | E13: =-PMT(C13/12,D13*12,B13,0) -> 332.0236805 | F13: =-PMT((C13+$F$5)/12,D13*12,B13,0) -> 358.4247685 | G13: =(F13-E13)/E13 -> 0.07951567775
B14: 50000 | C14: 0.1 | D14: 7 | E14: =-PMT(C14/12,D14*12,B14,0) -> 830.0592013 | F14: =-PMT((C14+$F$5)/12,D14*12,B14,0) -> 896.0619213 | G14: =(F14-E14)/E14 -> 0.07951567775
B16: 100000 | C16: 0.05 | D16: 30 | E16: =-PMT(C16/12,D16*12,B16,0) -> 536.821623 | F16: =-PMT((C16+$F$5)/12,D16*12,B16,0) -> 699.2145086 | G16: =(F16-E16)/E16 -> 0.3025080932
B17: 300000 | C17: 0.05 | D17: 30 | E17: 1610.464869 | F17: 2097.643526 | G17: 0.3025080932
B18: 500000 | C18: 0.05 | D18: 30 | E18: 2684.108115 | F18: 3496.072543 | G18: 0.3025080932
B19: 1000000 | C19: 0.05 | D19: 30 | E19: 5368.21623 | F19: 6992.145086 | G19: 0.3025080932
B21: 100000 | C21: 0.06 | D21: 30 | E21: =-PMT(C21/12,D21*12,B21,0) -> 599.5505252 | F21: =-PMT((C21+$F$5)/12,D21*12,B21,0) -> 768.9134836 | G21: =(F21-E21)/E21 -> 0.2824832126
B22: 300000 | C22: 0.06 | D22: 30 | E22: 1798.651575 | F22: 2306.740451 | G22: 0.2824832126
B23: 500000 | C23: 0.06 | D23: 30 | E23: 2997.752626 | F23: 3844.567418 | G23: 0.2824832126
B24: 1000000 | C24: 0.06 | D24: 30 | E24: 5995.505252 | F24: 7689.134836 | G24: 0.2824832126
B26: 100000 | C26: 0.06 | D26: 20 | E26: =-PMT(C26/12,D26*12,B26,0) -> 716.4310585 | F26: =-PMT((C26+$F$5)/12,D26*12,B26,0) -> 867.8232334 | G26: =(F26-E26)/E26 -> 0.211314366
B27: 300000 | C27: 0.06 | D27: 20 | E27: 2149.293175 | F27: 2603.4697 | G27: 0.211314366
B28: 500000 | C28: 0.06 | D28: 20 | E28: 3582.155292 | F28: 4339.116167 | G28: 0.211314366
B29: 1000000 | C29: 0.06 | D29: 20 | E29: 7164.310585 | F29: 8678.232334 | G29: 0.211314366
A32: IO | B32: 100000 | C32: 0.05 | D32: 30 | E32: =B32*C32/12 -> 416.6666667 | F32: =B32*(C32+$F$5)/12 -> 625 | G32: =(F32-E32)/E32 -> 0.5
B33: 300000 | C33: 0.05 | D33: 30 | E33: =B33*C33/12 -> 1250 | F33: =B33*(C33+$F$5)/12 -> 1875 | G33: 0.5
B34: 500000 | C34: 0.05 | D34: 30 | E34: 2083.333333 | F34: 3125 | G34: 0.5
B35: 1000000 | C35: 0.05 | D35: 30 | E35: 4166.666667 | F35: 6250 | G35: 0.5

Sheet Calculator
A1: Quick Qualifier
F2: Version 10.1 - September 2023 | AA2: "HEM Table 1" equivalent: by Income Level and Residency | AS2: Metro Postcode | AT2: Code | AU2: Region | AW2: Non Metro Postcodes | AX2: CODE | AY2: Region | BA2: Region | BB2: S / C ? | BC2: Child ? | BD2: Single / Couple Code | BE2: Child Code
A3: BORROWER | AA3: Total current gross HH income from all sources (measured in current dollars) | AG3: Do not change any formulas from AA5:AQ78 When inputting $ threshold column headers from Hem Table 1, move threshold amounts across one column to right to ensure that the LOWER value of the range is shown in row 4 | AS3: 1215 | AT3: SYD | AU3: Sydney | AW3: 0 | AX3: AU | AY3: AU | BA3: =IF($F$4="","",IF(ISERROR(VLOOKUP($F$4,$AS$3:$AU$1112,2,FALSE)),VLOOKUP($F$4,$AW$3:$AY$22,2,TRUE),VLOOKUP($F$4,$AS$3:$AU$1112,2,FALSE))) ->  | BB3: =IF($B$8="","",IF($B$8=1,"S","C")) ->  | BC3: =IF($B$10="","",IF($B$10=1,"Y",IF(B10=2,"Y2",IF(B10>=3,"Y3","N")))) ->  | BD3: =IF($BB$3="","",$BA$3&$BB$3&"N") ->  | BE3: =IF($BA$3&$BB$3&$BC$3=BD3,"",$BA$3&$BB$3&$BC$3) -> 
A4: Applicant Name | E4: Postcode: | G4: Date: | H4: =TODAY() -> 2023-08-21 | Y4: Australia | Z4: CODE | AA4: 0 | AB4: 25000 | AC4: 37000 | AD4: 49000 | AE4: 61000 | AF4: 74000 | AG4: 98000 | AH4: 123000 | AI4: 147000 | AJ4: 172000 | AK4: 196000 | AL4: 246000 | AM4: 307000 | AN4: 368000 | AO4: 614000 | AS4: 1220 | AT4: SYD | AU4: Sydney | AW4: 800 | AX4: NT | AY4: NT | BA4: Additional Single | BD4: Addition Single Code
Y5: AU Couple | Z5: AUCN | AA5: =IFERROR('HEM Table'!C5*52,0) -> 29253.89543 | AB5: =IFERROR('HEM Table'!D5*52,0) -> 29253.89543 | AC5: =IFERROR('HEM Table'!E5*52,0) -> 29969.04519 | AD5: =IFERROR('HEM Table'!F5*52,0) -> 30992.52415 | AE5: =IFERROR('HEM Table'!G5*52,0) -> 32994.94052 | AF5: =IFERROR('HEM Table'!H5*52,0) -> 35884.05307 | AG5: =IFERROR('HEM Table'!I5*52,0) -> 40017.74013 | AH5: =IFERROR('HEM Table'!J5*52,0) -> 43858.28475 | AI5: =IFERROR('HEM Table'!K5*52,0) -> 48426.37588 | AJ5: =IFERROR('HEM Table'!L5*52,0) -> 50704.51261 | AK5: =IFERROR('HEM Table'!M5*52,0) -> 53215.73993 | AL5: =IFERROR('HEM Table'!N5*52,0) -> 59758.64428 | AM5: =IFERROR('HEM Table'!O5*52,0) -> 66036.30415 | AN5: =IFERROR('HEM Table'!P5*52,0) -> 68194.54137 | AO5: =IFERROR('HEM Table'!P5*52,0) -> 68194.54137 | AS5: 1225 | AT5: SYD | AU5: Sydney | AW5: 899 | AX5: NT | AY5: NT | BA5: =IF($B$9="","",IF($B$9>0,"SN","")) ->  | BD5: =IF(BA5="","",BA3&BA5) -> 
A6: New Loan Amount | C6: Product Rate (New Loan) | Y6: AU C child | Z6: AUCY | AA6: =IFERROR('HEM Table'!C6*52,0) -> 34495.7769 | AB6: =IFERROR('HEM Table'!D6*52,0) -> 34495.7769 | AC6: =IFERROR('HEM Table'!E6*52,0) -> 34495.7769 | AD6: =IFERROR('HEM Table'!F6*52,0) -> 35518.28697 | AE6: =IFERROR('HEM Table'!G6*52,0) -> 37518.81199 | AF6: =IFERROR('HEM Table'!H6*52,0) -> 40405.19216 | AG6: =IFERROR('HEM Table'!I6*52,0) -> 44534.97184 | AH6: =IFERROR('HEM Table'!J6*52,0) -> 48371.88617 | AI6: =IFERROR('HEM Table'!K6*52,0) -> 52935.6593 | AJ6: =IFERROR('HEM Table'!L6*52,0) -> 55211.64166 | AK6: =IFERROR('HEM Table'!M6*52,0) -> 57720.49619 | AL6: =IFERROR('HEM Table'!N6*52,0) -> 64257.21585 | AM6: =IFERROR('HEM Table'!O6*52,0) -> 70528.94174 | AN6: =IFERROR('HEM Table'!P6*52,0) -> 72685.13888 | AO6: =IFERROR('HEM Table'!P6*52,0) -> 72685.13888 | AS6: 1230 | AT6: SYD | AU6: Sydney | AW6: 1100 | AX6: NSW | AY6: NSW | BA6: Cost for Single or additional single | BD6: Salary Match: Cost for Couple
A7: New Loan Term (months) | C7: Stressed Product Rate (New Loan) | E7: =MAX(0.07,E6+0.03) -> 0.07 | Y7: AU C child2 | Z7: AUCY2 | AA7: =IFERROR('HEM Table'!C7*52,0) -> 38263.97866 | AB7: =IFERROR('HEM Table'!D7*52,0) -> 38263.97866 | AC7: =IFERROR('HEM Table'!E7*52,0) -> 38263.97866 | AD7: =IFERROR('HEM Table'!F7*52,0) -> 39287.65253 | AE7: =IFERROR('HEM Table'!G7*52,0) -> 41290.44978 | AF7: =IFERROR('HEM Table'!H7*52,0) -> 44180.11064 | AG7: =IFERROR('HEM Table'!I7*52,0) -> 48314.58783 | AH7: =IFERROR('HEM Table'!J7*52,0) -> 52155.8629 | AI7: =IFERROR('HEM Table'!K7*52,0) -> 56724.82497 | AJ7: =IFERROR('HEM Table'!L7*52,0) -> 59003.39078 | AK7: =IFERROR('HEM Table'!M7*52,0) -> 61515.10115 | AL7: =IFERROR('HEM Table'!N7*52,0) -> 68059.25158 | AM7: =IFERROR('HEM Table'!O7*52,0) -> 74338.10702 | AN7: =IFERROR('HEM Table'!P7*52,0) -> 76496.75527 | AO7: =IFERROR('HEM Table'!P7*52,0) -> 76496.75527 | AS7: 1235 | AT7: SYD | AU7: Sydney | AW7: 2999 | AX7: NSW | AY7: NSW | BA7: =IF($BB$3="C",$BA$9,HLOOKUP($J$38,$Z$4:$AQ$139,MATCH(BD3,$Z$4:$Z$139,0),TRUE)) -> 0 | BD7: =IF($BB$3="S","",HLOOKUP($J$38,$Z$4:$AQ$139,MATCH(BD3,$Z$4:$Z$139,0),TRUE)) -> 0
A8: No. of Adults | C8: Repay (New Loan) | E8: =IF(B6>0,INT(-PMT(E6/12,B7,B6,0)),0) -> 0 | F8: Stress (New Loan): | H8: =MAX(IF(B6>0,INT(-PMT(E7/12,B7,B6,0)),0),D28) -> 0 | Y8: AU C child3 | Z8: AUCY3 | AA8: =IFERROR('HEM Table'!C8*52,0) -> 42538.09496 | AB8: =IFERROR('HEM Table'!D8*52,0) -> 42538.09496 | AC8: =IFERROR('HEM Table'!E8*52,0) -> 42538.09496 | AD8: =IFERROR('HEM Table'!F8*52,0) -> 42538.09496 | AE8: =IFERROR('HEM Table'!G8*52,0) -> 44544.23417 | AF8: =IFERROR('HEM Table'!H8*52,0) -> 47438.71685 | AG8: =IFERROR('HEM Table'!I8*52,0) -> 51580.09303 | AH8: =IFERROR('HEM Table'!J8*52,0) -> 55427.77784 | AI8: =IFERROR('HEM Table'!K8*52,0) -> 60004.36294 | AJ8: =IFERROR('HEM Table'!L8*52,0) -> 62286.73471 | AK8: =IFERROR('HEM Table'!M8*52,0) -> 64802.63337 | AL8: =IFERROR('HEM Table'!N8*52,0) -> 71357.70368 | AM8: =IFERROR('HEM Table'!O8*52,0) -> 77647.03632 | AN8: =IFERROR('HEM Table'!P8*52,0) -> 79809.2866 | AO8: =IFERROR('HEM Table'!P8*52,0) -> 79809.2866 | AS8: 1240 | AT8: SYD | AU8: Sydney | AW8: 3000 | AX8: VIC | AY8: VIC | BA8: Salary Match: Cost for each additional single
A9: Number of Additional Single Applicants | Y9: AU Single | Z9: AUSN | AA9: =IFERROR('HEM Table'!C9*52,0) -> 14900.75008 | AB9: =IFERROR('HEM Table'!D9*52,0) -> 15787.03988 | AC9: =IFERROR('HEM Table'!E9*52,0) -> 16503.24265 | AD9: =IFERROR('HEM Table'!F9*52,0) -> 17528.22746 | AE9: =IFERROR('HEM Table'!G9*52,0) -> 19533.58931 | AF9: =IFERROR('HEM Table'!H9*52,0) -> 22426.95101 | AG9: =IFERROR('HEM Table'!I9*52,0) -> 26566.72145 | AH9: =IFERROR('HEM Table'!J9*52,0) -> 30412.91341 | AI9: =IFERROR('HEM Table'!K9*52,0) -> 34987.72552 | AJ9: =IFERROR('HEM Table'!L9*52,0) -> 37269.21262 | AK9: =IFERROR('HEM Table'!M9*52,0) -> 39784.13511 | AL9: =IFERROR('HEM Table'!N9*52,0) -> 46336.66651 | AM9: =IFERROR('HEM Table'!O9*52,0) -> 52623.5594 | AN9: =IFERROR('HEM Table'!P9*52,0) -> 54784.97156 | AO9: =IFERROR('HEM Table'!P9*52,0) -> 54784.97156 | AS9: 1350 | AT9: SYD | AU9: Sydney | AW9: 3999 | AX9: VIC | AY9: VIC | BA9: =HLOOKUP($J$38,$Z$4:$AQ$139,MATCH(BD5,$Z$4:$Z$139,0),TRUE) -> 0
A10: No. of Children | Y10: AU S child | Z10: AUSY | AA10: =IFERROR('HEM Table'!C10*52,0) -> 21051.85803 | AB10: =IFERROR('HEM Table'!D10*52,0) -> 21051.85803 | AC10: =IFERROR('HEM Table'!E10*52,0) -> 21766.8917 | AD10: =IFERROR('HEM Table'!F10*52,0) -> 22790.20452 | AE10: =IFERROR('HEM Table'!G10*52,0) -> 24792.29585 | AF10: =IFERROR('HEM Table'!H10*52,0) -> 27680.93943 | AG10: =IFERROR('HEM Table'!I10*52,0) -> 31813.95549 | AH10: =IFERROR('HEM Table'!J10*52,0) -> 35653.87668 | AI10: =IFERROR('HEM Table'!K10*52,0) -> 40221.2263 | AJ10: =IFERROR('HEM Table'!L10*52,0) -> 42498.99132 | AK10: =IFERROR('HEM Table'!M10*52,0) -> 45009.81388 | AL10: =IFERROR('HEM Table'!N10*52,0) -> 51551.65903 | AM10: =IFERROR('HEM Table'!O10*52,0) -> 57828.29796 | AN10: =IFERROR('HEM Table'!P10*52,0) -> 59986.18484 | AO10: =IFERROR('HEM Table'!P10*52,0) -> 59986.18484 | AS10: 1355 | AT10: SYD | AU10: Sydney | AW10: 4000 | AX10: QLD | AY10: QLD | BA10: Salary Match: Cost for each child
A11: EXISTING AUSWIDE COMMITMENTS | Y11: AU S child2 | Z11: AUSY2 | AA11: =IFERROR('HEM Table'!C11*52,0) -> 26959.93851 | AB11: =IFERROR('HEM Table'!D11*52,0) -> 26959.93851 | AC11: =IFERROR('HEM Table'!E11*52,0) -> 27673.02739 | AD11: =IFERROR('HEM Table'!F11*52,0) -> 28693.55467 | AE11: =IFERROR('HEM Table'!G11*52,0) -> 30690.19473 | AF11: =IFERROR('HEM Table'!H11*52,0) -> 33570.97384 | AG11: =IFERROR('HEM Table'!I11*52,0) -> 37692.73853 | AH11: =IFERROR('HEM Table'!J11*52,0) -> 41522.20441 | AI11: =IFERROR('HEM Table'!K11*52,0) -> 46077.12016 | AJ11: =IFERROR('HEM Table'!L11*52,0) -> 48348.68099 | AK11: =IFERROR('HEM Table'!M11*52,0) -> 50852.66963 | AL11: =IFERROR('HEM Table'!N11*52,0) -> 57376.70239 | AM11: =IFERROR('HEM Table'!O11*52,0) -> 63636.25479 | AN11: =IFERROR('HEM Table'!P11*52,0) -> 65788.26482 | AO11: =IFERROR('HEM Table'!P11*52,0) -> 65788.26482 | AS11: 1360 | AT11: SYD | AU11: Sydney | AW11: 4999 | AX11: QLD | AY11: QLD | BA11: =IF(OR(ISERROR(HLOOKUP($J$38,$Z$4:$AQ$139,MATCH(BE3,$Z$4:$Z$139,0),TRUE)),$H$38=""),"",HLOOKUP($J$38,$Z$4:$AQ$139,MATCH(BE3,$Z$4:$Z$139,0),TRUE)) -> 0
A12: Existing Home Loan (Auswide) total exposure | C12: Existing HL Product Rate | Y12: AU S child3 | Z12: AUSY3 | AA12: =IFERROR('HEM Table'!C12*52,0) -> 33579.16307 | AB12: =IFERROR('HEM Table'!D12*52,0) -> 33579.16307 | AC12: =IFERROR('HEM Table'!E12*52,0) -> 33579.16307 | AD12: =IFERROR('HEM Table'!F12*52,0) -> 34596.90481 | AE12: =IFERROR('HEM Table'!G12*52,0) -> 36588.09361 | AF12: =IFERROR('HEM Table'!H12*52,0) -> 39461.00826 | AG12: =IFERROR('HEM Table'!I12*52,0) -> 43571.52157 | AH12: =IFERROR('HEM Table'!J12*52,0) -> 47390.53213 | AI12: =IFERROR('HEM Table'!K12*52,0) -> 51933.01402 | AJ12: =IFERROR('HEM Table'!L12*52,0) -> 54198.37066 | AK12: =IFERROR('HEM Table'!M12*52,0) -> 56695.52538 | AL12: =IFERROR('HEM Table'!N12*52,0) -> 63201.74576 | AM12: =IFERROR('HEM Table'!O12*52,0) -> 69444.21163 | AN12: =IFERROR('HEM Table'!P12*52,0) -> 71590.3448 | AO12: =IFERROR('HEM Table'!P12*52,0) -> 71590.3448 | AS12: 1435 | AT12: SYD | AU12: Sydney | AW12: 5000 | AX12: SA | AY12: SA
A13: Remaining Term (months) | C13: Stressed HL Product Rate | E13: =MAX(0.07,E12+0.03) -> 0.07 | Y13: Sydney | AS13: 1445 | AT13: SYD | AU13: Sydney | AW13: 5854 | AX13: SA | AY13: SA
C14: Repay (existing HL) | E14: =IF(B12>0,INT(-PMT(E12/12,B13,B12,0)),0) -> 0 | F14: Stressed repayment | H14: =IF(B12>0,INT(-PMT(E13/12,B13,B12,0)),0) -> 0 | Y14: SYD Couple | Z14: SYDCN | AA14: =IFERROR('HEM Table'!C14*52,0) -> 28403.95327 | AB14: =IFERROR('HEM Table'!D14*52,0) -> 28403.95327 | AC14: =IFERROR('HEM Table'!E14*52,0) -> 29119.10304 | AD14: =IFERROR('HEM Table'!F14*52,0) -> 30142.58199 | AE14: =IFERROR('HEM Table'!G14*52,0) -> 32144.99836 | AF14: =IFERROR('HEM Table'!H14*52,0) -> 35034.11044 | AG14: =IFERROR('HEM Table'!I14*52,0) -> 39167.79846 | AH14: =IFERROR('HEM Table'!J14*52,0) -> 43008.34211 | AI14: =IFERROR('HEM Table'!K14*52,0) -> 47576.4342 | AJ14: =IFERROR('HEM Table'!L14*52,0) -> 49854.56997 | AK14: =IFERROR('HEM Table'!M14*52,0) -> 52365.79825 | AL14: =IFERROR('HEM Table'!N14*52,0) -> 58908.7026 | AM14: =IFERROR('HEM Table'!O14*52,0) -> 65186.36247 | AN14: =IFERROR('HEM Table'!P14*52,0) -> 67344.59969 | AO14: =IFERROR('HEM Table'!P14*52,0) -> 67344.59969 | AS14: 1450 | AT14: SYD | AU14: Sydney | AW14: 6000 | AX14: WA | AY14: WA
Y15: SYD C child | Z15: SYDCY | AA15: =IFERROR('HEM Table'!C15*52,0) -> 33599.27904 | AB15: =IFERROR('HEM Table'!D15*52,0) -> 33599.27904 | AC15: =IFERROR('HEM Table'!E15*52,0) -> 33599.27904 | AD15: =IFERROR('HEM Table'!F15*52,0) -> 34621.78911 | AE15: =IFERROR('HEM Table'!G15*52,0) -> 36622.31413 | AF15: =IFERROR('HEM Table'!H15*52,0) -> 39508.69383 | AG15: =IFERROR('HEM Table'!I15*52,0) -> 43638.47638 | AH15: =IFERROR('HEM Table'!J15*52,0) -> 47475.38975 | AI15: =IFERROR('HEM Table'!K15*52,0) -> 52039.16384 | AJ15: =IFERROR('HEM Table'!L15*52,0) -> 54315.14237 | AK15: =IFERROR('HEM Table'!M15*52,0) -> 56824.00169 | AL15: =IFERROR('HEM Table'!N15*52,0) -> 63360.72134 | AM15: =IFERROR('HEM Table'!O15*52,0) -> 69632.44724 | AN15: =IFERROR('HEM Table'!P15*52,0) -> 71788.64246 | AO15: =IFERROR('HEM Table'!P15*52,0) -> 71788.64246 | AS15: 1455 | AT15: SYD | AU15: Sydney | AW15: 6999 | AX15: WA | AY15: WA
A16: Existing Personal Loan (Auswide) total exposure | C16: PL Product Rate | Y16: SYD C child2 | Z16: SYDCY2 | AA16: =IFERROR('HEM Table'!C16*52,0) -> 37394.03748 | AB16: =IFERROR('HEM Table'!D16*52,0) -> 37394.03748 | AC16: =IFERROR('HEM Table'!E16*52,0) -> 37394.03748 | AD16: =IFERROR('HEM Table'!F16*52,0) -> 38417.70944 | AE16: =IFERROR('HEM Table'!G16*52,0) -> 40420.50861 | AF16: =IFERROR('HEM Table'!H16*52,0) -> 43310.16947 | AG16: =IFERROR('HEM Table'!I16*52,0) -> 47444.64666 | AH16: =IFERROR('HEM Table'!J16*52,0) -> 51285.92173 | AI16: =IFERROR('HEM Table'!K16*52,0) -> 55854.8838 | AJ16: =IFERROR('HEM Table'!L16*52,0) -> 58133.44961 | AK16: =IFERROR('HEM Table'!M16*52,0) -> 60645.16094 | AL16: =IFERROR('HEM Table'!N16*52,0) -> 67189.31137 | AM16: =IFERROR('HEM Table'!O16*52,0) -> 73468.16681 | AN16: =IFERROR('HEM Table'!P16*52,0) -> 75626.81314 | AO16: =IFERROR('HEM Table'!P16*52,0) -> 75626.81314 | AS16: 1460 | AT16: SYD | AU16: Sydney | AW16: 7000 | AX16: TAS | AY16: TAS
A17: Remaining Term (months) | C17: Repay (existing PL) | E17: =IF(B16>0,INT(-PMT(E16/12,B17,B16,0)),0) -> 0 | F17: Stressed repayment | H17: =IF(B16>0,INT(-PMT(E16/12,B17,B16,0)),0) -> 0 | Y17: SYD C child3 | Z17: SYDCY3 | AA17: =IFERROR('HEM Table'!C17*52,0) -> 41812.52679 | AB17: =IFERROR('HEM Table'!D17*52,0) -> 41812.52679 | AC17: =IFERROR('HEM Table'!E17*52,0) -> 41812.52679 | AD17: =IFERROR('HEM Table'!F17*52,0) -> 41812.52679 | AE17: =IFERROR('HEM Table'!G17*52,0) -> 43818.666 | AF17: =IFERROR('HEM Table'!H17*52,0) -> 46713.15253 | AG17: =IFERROR('HEM Table'!I17*52,0) -> 50854.5239 | AH17: =IFERROR('HEM Table'!J17*52,0) -> 54702.20967 | AI17: =IFERROR('HEM Table'!K17*52,0) -> 59278.79477 | AJ17: =IFERROR('HEM Table'!L17*52,0) -> 61561.16655 | AK17: =IFERROR('HEM Table'!M17*52,0) -> 64077.0652 | AL17: =IFERROR('HEM Table'!N17*52,0) -> 70632.13936 | AM17: =IFERROR('HEM Table'!O17*52,0) -> 76921.46815 | AN17: =IFERROR('HEM Table'!P17*52,0) -> 79083.71843 | AO17: =IFERROR('HEM Table'!P17*52,0) -> 79083.71843 | AS17: 1465 | AT17: SYD | AU17: Sydney | AW17: 7999 | AX17: TAS | AY17: TAS
Y18: SYD Single | Z18: SYDSN | AA18: =IFERROR('HEM Table'!C18*52,0) -> 14039.68825 | AB18: =IFERROR('HEM Table'!D18*52,0) -> 14925.97829 | AC18: =IFERROR('HEM Table'!E18*52,0) -> 15642.18106 | AD18: =IFERROR('HEM Table'!F18*52,0) -> 16667.16587 | AE18: =IFERROR('HEM Table'!G18*52,0) -> 18672.52771 | AF18: =IFERROR('HEM Table'!H18*52,0) -> 21565.89038 | AG18: =IFERROR('HEM Table'!I18*52,0) -> 25705.6589 | AH18: =IFERROR('HEM Table'!J18*52,0) -> 29551.85278 | AI18: =IFERROR('HEM Table'!K18*52,0) -> 34126.66393 | AJ18: =IFERROR('HEM Table'!L18*52,0) -> 36408.15007 | AK18: =IFERROR('HEM Table'!M18*52,0) -> 38923.07448 | AL18: =IFERROR('HEM Table'!N18*52,0) -> 45475.60396 | AM18: =IFERROR('HEM Table'!O18*52,0) -> 51762.49685 | AN18: =IFERROR('HEM Table'!P18*52,0) -> 53923.91285 | AO18: =IFERROR('HEM Table'!P18*52,0) -> 53923.91285 | AS18: 1466 | AT18: SYD | AU18: Sydney | AW18: 8000 | AX18: VIC | AY18: VIC
A19: Existing Line of Credit (Auswide) total exposure | C19: LOC Product Rate | Y19: SYD S child | Z19: SYDSY | AA19: =IFERROR('HEM Table'!C19*52,0) -> 20153.25062 | AB19: =IFERROR('HEM Table'!D19*52,0) -> 20153.25062 | AC19: =IFERROR('HEM Table'!E19*52,0) -> 20868.28454 | AD19: =IFERROR('HEM Table'!F19*52,0) -> 21891.59736 | AE19: =IFERROR('HEM Table'!G19*52,0) -> 23893.68821 | AF19: =IFERROR('HEM Table'!H19*52,0) -> 26782.33227 | AG19: =IFERROR('HEM Table'!I19*52,0) -> 30915.34833 | AH19: =IFERROR('HEM Table'!J19*52,0) -> 34755.26952 | AI19: =IFERROR('HEM Table'!K19*52,0) -> 39322.61914 | AJ19: =IFERROR('HEM Table'!L19*52,0) -> 41600.38415 | AK19: =IFERROR('HEM Table'!M19*52,0) -> 44111.20671 | AL19: =IFERROR('HEM Table'!N19*52,0) -> 50653.05091 | AM19: =IFERROR('HEM Table'!O19*52,0) -> 56929.68792 | AN19: =IFERROR('HEM Table'!P19*52,0) -> 59087.57864 | AO19: =IFERROR('HEM Table'!P19*52,0) -> 59087.57864 | AS19: 1470 | AT19: SYD | AU19: Sydney | AW19: 8999 | AX19: VIC | AY19: VIC
A20: Remaining Term (months) | C20: Stressed LOC Product Rate | E20: =MAX(0.07,E19+0.03) -> 0.07 | Y20: SYD S child2 | Z20: SYDSY2 | AA20: =IFERROR('HEM Table'!C20*52,0) -> 26011.85019 | AB20: =IFERROR('HEM Table'!D20*52,0) -> 26011.85019 | AC20: =IFERROR('HEM Table'!E20*52,0) -> 26724.93716 | AD20: =IFERROR('HEM Table'!F20*52,0) -> 27745.46444 | AE20: =IFERROR('HEM Table'!G20*52,0) -> 29742.10451 | AF20: =IFERROR('HEM Table'!H20*52,0) -> 32622.88362 | AG20: =IFERROR('HEM Table'!I20*52,0) -> 36744.64735 | AH20: =IFERROR('HEM Table'!J20*52,0) -> 40574.11418 | AI20: =IFERROR('HEM Table'!K20*52,0) -> 45129.02993 | AJ20: =IFERROR('HEM Table'!L20*52,0) -> 47400.59458 | AK20: =IFERROR('HEM Table'!M20*52,0) -> 49904.5794 | AL20: =IFERROR('HEM Table'!N20*52,0) -> 56428.61121 | AM20: =IFERROR('HEM Table'!O20*52,0) -> 62688.16361 | AN20: =IFERROR('HEM Table'!P20*52,0) -> 64840.17555 | AO20: =IFERROR('HEM Table'!P20*52,0) -> 64840.17555 | AS20: 1475 | AT20: SYD | AU20: Sydney | AW20: 9000 | AX20: QLD | AY20: QLD
C21: Repay (existing LOC) | E21: =IF(B19>0,INT(-PMT(E19/12,B20,B19,0)),0) -> 0 | F21: Stressed repayment | H21: =IF(B19>0,INT(-PMT(E20/12,B20,B19,0)),0) -> 0 | Y21: SYD S child3 | Z21: SYDSY3 | AA21: =IFERROR('HEM Table'!C21*52,0) -> 32581.58978 | AB21: =IFERROR('HEM Table'!D21*52,0) -> 32581.58978 | AC21: =IFERROR('HEM Table'!E21*52,0) -> 32581.58978 | AD21: =IFERROR('HEM Table'!F21*52,0) -> 33599.33152 | AE21: =IFERROR('HEM Table'!G21*52,0) -> 35590.5208 | AF21: =IFERROR('HEM Table'!H21*52,0) -> 38463.43497 | AG21: =IFERROR('HEM Table'!I21*52,0) -> 42573.94637 | AH21: =IFERROR('HEM Table'!J21*52,0) -> 46392.95884 | AI21: =IFERROR('HEM Table'!K21*52,0) -> 50935.44073 | AJ21: =IFERROR('HEM Table'!L21*52,0) -> 53200.80502 | AK21: =IFERROR('HEM Table'!M21*52,0) -> 55697.95209 | AL21: =IFERROR('HEM Table'!N21*52,0) -> 62204.17151 | AM21: =IFERROR('HEM Table'!O21*52,0) -> 68446.63931 | AN21: =IFERROR('HEM Table'!P21*52,0) -> 70592.77247 | AO21: =IFERROR('HEM Table'!P21*52,0) -> 70592.77247 | AS21: 1480 | AT21: SYD | AU21: Sydney | AW21: 9999 | AX21: QLD | AY21: QLD
A22: EXISTING OTHER COMMITMENTS | Y22: Balance of NSW | AS22: 1481 | AT22: SYD | AU22: Sydney | AW22: 10000 | AX22: AU | AY22: AU
A23: Existing Home Loan (Other FI) total exposure | C23: Monthly repayment | E23: Stressed repayment | F23: =MAX(IF(B23>0,INT(-PMT(7%/12,30*12,B23)),0),D23) -> 0 | Y23: NSW Couple | Z23: NSWCN | AA23: =IFERROR('HEM Table'!C23*52,0) -> 29895.65652 | AB23: =IFERROR('HEM Table'!D23*52,0) -> 29895.65652 | AC23: =IFERROR('HEM Table'!E23*52,0) -> 30610.8082 | AD23: =IFERROR('HEM Table'!F23*52,0) -> 31634.28716 | AE23: =IFERROR('HEM Table'!G23*52,0) -> 33636.70353 | AF23: =IFERROR('HEM Table'!H23*52,0) -> 36525.81656 | AG23: =IFERROR('HEM Table'!I23*52,0) -> 40659.50362 | AH23: =IFERROR('HEM Table'!J23*52,0) -> 44500.04727 | AI23: =IFERROR('HEM Table'!K23*52,0) -> 49068.13936 | AJ23: =IFERROR('HEM Table'!L23*52,0) -> 51346.2713 | AK23: =IFERROR('HEM Table'!M23*52,0) -> 53857.50437 | AL23: =IFERROR('HEM Table'!N23*52,0) -> 60400.40872 | AM23: =IFERROR('HEM Table'!O23*52,0) -> 66678.06859 | AN23: =IFERROR('HEM Table'!P23*52,0) -> 68836.3039 | AO23: =IFERROR('HEM Table'!P23*52,0) -> 68836.3039 | AS23: 1485 | AT23: SYD | AU23: Sydney
A24: Existing Personal Loan (Other FI) total exposure | C24: Monthly repayment | E24: Stressed repayment | F24: =MAX(IF(B24>0,INT(-PMT(10%/12,7*12,B24)),0),D24) -> 0 | Y24: NSW C child | Z24: NSWCY | AA24: =IFERROR('HEM Table'!C24*52,0) -> 35089.57273 | AB24: =IFERROR('HEM Table'!D24*52,0) -> 35089.57273 | AC24: =IFERROR('HEM Table'!E24*52,0) -> 35089.57273 | AD24: =IFERROR('HEM Table'!F24*52,0) -> 36112.08424 | AE24: =IFERROR('HEM Table'!G24*52,0) -> 38112.60734 | AF24: =IFERROR('HEM Table'!H24*52,0) -> 40998.98895 | AG24: =IFERROR('HEM Table'!I24*52,0) -> 45128.77151 | AH24: =IFERROR('HEM Table'!J24*52,0) -> 48965.68104 | AI24: =IFERROR('HEM Table'!K24*52,0) -> 53529.45513 | AJ24: =IFERROR('HEM Table'!L24*52,0) -> 55805.43749 | AK24: =IFERROR('HEM Table'!M24*52,0) -> 58314.29202 | AL24: =IFERROR('HEM Table'!N24*52,0) -> 64851.01551 | AM24: =IFERROR('HEM Table'!O24*52,0) -> 71122.73757 | AN24: =IFERROR('HEM Table'!P24*52,0) -> 73278.93854 | AO24: =IFERROR('HEM Table'!P24*52,0) -> 73278.93854 | AS24: 1490 | AT24: SYD | AU24: Sydney
A25: Existing Line of Credit (Other FI) limit amount | C25: Monthly repayment | E25: Stressed repayment | F25: =MAX(IF(B25>0,INT(-PMT(7%/12,30*12,B25)),0),D25) -> 0 | Y25: NSW C child2 | Z25: NSWCY2 | AA25: =IFERROR('HEM Table'!C25*52,0) -> 38886.02482 | AB25: =IFERROR('HEM Table'!D25*52,0) -> 38886.02482 | AC25: =IFERROR('HEM Table'!E25*52,0) -> 38886.02482 | AD25: =IFERROR('HEM Table'!F25*52,0) -> 39909.69678 | AE25: =IFERROR('HEM Table'!G25*52,0) -> 41912.49403 | AF25: =IFERROR('HEM Table'!H25*52,0) -> 44802.15872 | AG25: =IFERROR('HEM Table'!I25*52,0) -> 48936.63591 | AH25: =IFERROR('HEM Table'!J25*52,0) -> 52777.90715 | AI25: =IFERROR('HEM Table'!K25*52,0) -> 57346.86922 | AJ25: =IFERROR('HEM Table'!L25*52,0) -> 59625.43886 | AK25: =IFERROR('HEM Table'!M25*52,0) -> 62137.1454 | AL25: =IFERROR('HEM Table'!N25*52,0) -> 68681.29967 | AM25: =IFERROR('HEM Table'!O25*52,0) -> 74960.15127 | AN25: =IFERROR('HEM Table'!P25*52,0) -> 77118.80336 | AO25: =IFERROR('HEM Table'!P25*52,0) -> 77118.80336 | AS25: 1495 | AT25: SYD | AU25: Sydney
A26: Monthly Rental Payments | Y26: NSW C child3 | Z26: NSWCY3 | AA26: =IFERROR('HEM Table'!C26*52,0) -> 43307.00565 | AB26: =IFERROR('HEM Table'!D26*52,0) -> 43307.00565 | AC26: =IFERROR('HEM Table'!E26*52,0) -> 43307.00565 | AD26: =IFERROR('HEM Table'!F26*52,0) -> 43307.00565 | AE26: =IFERROR('HEM Table'!G26*52,0) -> 45313.14486 | AF26: =IFERROR('HEM Table'!H26*52,0) -> 48207.63138 | AG26: =IFERROR('HEM Table'!I26*52,0) -> 52349.00276 | AH26: =IFERROR('HEM Table'!J26*52,0) -> 56196.68853 | AI26: =IFERROR('HEM Table'!K26*52,0) -> 60773.27459 | AJ26: =IFERROR('HEM Table'!L26*52,0) -> 63055.64636 | AK26: =IFERROR('HEM Table'!M26*52,0) -> 65571.5431 | AL26: =IFERROR('HEM Table'!N26*52,0) -> 72126.61341 | AM26: =IFERROR('HEM Table'!O26*52,0) -> 78415.94605 | AN26: =IFERROR('HEM Table'!P26*52,0) -> 80578.19633 | AO26: =IFERROR('HEM Table'!P26*52,0) -> 80578.19633 | AS26: 1499 | AT26: SYD | AU26: Sydney
A27: Credit Card Limit | C27: Credit Card Pmt | D27: =B27*3.8% -> 0 | Y27: NSW Single | Z27: NSWSN | AA27: =IFERROR('HEM Table'!C27*52,0) -> 15533.58687 | AB27: =IFERROR('HEM Table'!D27*52,0) -> 16419.87691 | AC27: =IFERROR('HEM Table'!E27*52,0) -> 17136.07967 | AD27: =IFERROR('HEM Table'!F27*52,0) -> 18161.06449 | AE27: =IFERROR('HEM Table'!G27*52,0) -> 20166.42633 | AF27: =IFERROR('HEM Table'!H27*52,0) -> 23059.78804 | AG27: =IFERROR('HEM Table'!I27*52,0) -> 27199.55848 | AH27: =IFERROR('HEM Table'!J27*52,0) -> 31045.75044 | AI27: =IFERROR('HEM Table'!K27*52,0) -> 35620.56255 | AJ27: =IFERROR('HEM Table'!L27*52,0) -> 37902.04964 | AK27: =IFERROR('HEM Table'!M27*52,0) -> 40416.97214 | AL27: =IFERROR('HEM Table'!N27*52,0) -> 46969.5045 | AM27: =IFERROR('HEM Table'!O27*52,0) -> 53256.39739 | AN27: =IFERROR('HEM Table'!P27*52,0) -> 55417.80763 | AO27: =IFERROR('HEM Table'!P27*52,0) -> 55417.80763 | AS27: 1515 | AT27: SYD | AU27: Sydney
A28: Other Monthly Liability | Y28: NSW S child | Z28: NSWSY | AA28: =IFERROR('HEM Table'!C28*52,0) -> 21644.71197 | AB28: =IFERROR('HEM Table'!D28*52,0) -> 21644.71197 | AC28: =IFERROR('HEM Table'!E28*52,0) -> 22359.74756 | AD28: =IFERROR('HEM Table'!F28*52,0) -> 23383.06038 | AE28: =IFERROR('HEM Table'!G28*52,0) -> 25385.15171 | AF28: =IFERROR('HEM Table'!H28*52,0) -> 28273.79337 | AG28: =IFERROR('HEM Table'!I28*52,0) -> 32406.81135 | AH28: =IFERROR('HEM Table'!J28*52,0) -> 36246.73063 | AI28: =IFERROR('HEM Table'!K28*52,0) -> 40814.08216 | AJ28: =IFERROR('HEM Table'!L28*52,0) -> 43091.84717 | AK28: =IFERROR('HEM Table'!M28*52,0) -> 45602.66782 | AL28: =IFERROR('HEM Table'!N28*52,0) -> 52144.51297 | AM28: =IFERROR('HEM Table'!O28*52,0) -> 58421.14998 | AN28: =IFERROR('HEM Table'!P28*52,0) -> 60579.03687 | AO28: =IFERROR('HEM Table'!P28*52,0) -> 60579.03687 | AS28: 1560 | AT28: SYD | AU28: Sydney
A29: INCOME | B29: Gross Base Annual | C29: Gross Overtime & Allowances | D29: Gross Rental | E29: Invest. Loan Int | F29: Total | G29: Tax | H29: Net | Y29: NSW S child2 | Z29: NSWSY2 | AA29: =IFERROR('HEM Table'!C29*52,0) -> 27499.25073 | AB29: =IFERROR('HEM Table'!D29*52,0) -> 27499.25073 | AC29: =IFERROR('HEM Table'!E29*52,0) -> 28212.3396 | AD29: =IFERROR('HEM Table'!F29*52,0) -> 29232.86497 | AE29: =IFERROR('HEM Table'!G29*52,0) -> 31229.50695 | AF29: =IFERROR('HEM Table'!H29*52,0) -> 34110.28415 | AG29: =IFERROR('HEM Table'!I29*52,0) -> 38232.05075 | AH29: =IFERROR('HEM Table'!J29*52,0) -> 42061.51471 | AI29: =IFERROR('HEM Table'!K29*52,0) -> 46616.43238 | AJ29: =IFERROR('HEM Table'!L29*52,0) -> 48887.9932 | AK29: =IFERROR('HEM Table'!M29*52,0) -> 51391.98185 | AL29: =IFERROR('HEM Table'!N29*52,0) -> 57916.01461 | AM29: =IFERROR('HEM Table'!O29*52,0) -> 64175.56701 | AN29: =IFERROR('HEM Table'!P29*52,0) -> 66327.57704 | AO29: =IFERROR('HEM Table'!P29*52,0) -> 66327.57704 | AS29: 1565 | AT29: SYD | AU29: Sydney
A30: Applicant 1 | B30: 0 | C30: 0 | D30: 0 | E30: 0 | F30: =SUM(B30+(C30*80%)+(D30*80%)-E30) -> 0 | G30: =ROUND((IF(F30>180000,51667+(F30-180000)*0.45,IF(F30>120000,29467+(F30-120000)*0.37,IF(F30>45000,5092+(F30-45000)*0.325,IF(F30>18200,(F30-18200)*0.19,0))))+F30*0.02),0) -> 0 | H30: =(F30-G30)+E30 -> 0 | Y30: NSW S child3 | Z30: NSWSY3 | AA30: =IFERROR('HEM Table'!C30*52,0) -> 34064.93165 | AB30: =IFERROR('HEM Table'!D30*52,0) -> 34064.93165 | AC30: =IFERROR('HEM Table'!E30*52,0) -> 34064.93165 | AD30: =IFERROR('HEM Table'!F30*52,0) -> 35082.66957 | AE30: =IFERROR('HEM Table'!G30*52,0) -> 37073.86219 | AF30: =IFERROR('HEM Table'!H30*52,0) -> 39946.77493 | AG30: =IFERROR('HEM Table'!I30*52,0) -> 44057.29015 | AH30: =IFERROR('HEM Table'!J30*52,0) -> 47876.2988 | AI30: =IFERROR('HEM Table'!K30*52,0) -> 52418.78259 | AJ30: =IFERROR('HEM Table'!L30*52,0) -> 54684.13923 | AK30: =IFERROR('HEM Table'!M30*52,0) -> 57181.29588 | AL30: =IFERROR('HEM Table'!N30*52,0) -> 63687.51625 | AM30: =IFERROR('HEM Table'!O30*52,0) -> 69929.98404 | AN30: =IFERROR('HEM Table'!P30*52,0) -> 72076.11721 | AO30: =IFERROR('HEM Table'!P30*52,0) -> 72076.11721 | AS30: 1570 | AT30: SYD | AU30: Sydney
A31: Applicant 2 | B31: 0 | C31: 0 | D31: 0 | E31: 0 | F31: 0 | G31: =ROUND((IF(F31>180000,51667+(F31-180000)*0.45,IF(F31>120000,29467+(F31-120000)*0.37,IF(F31>45000,5092+(F31-45000)*0.325,IF(F31>18200,(F31-18200)*0.19,0))))+F31*0.02),0) -> 0 | H31: 0 | Y31: Melbourne | AS31: 1585 | AT31: SYD | AU31: Sydney
A32: Applicant 3 | B32: 0 | C32: 0 | D32: 0 | E32: 0 | F32: 0 | G32: 0 | H32: 0 | Y32: MEL Couple | Z32: MELCN | AA32: =IFERROR('HEM Table'!C32*52,0) -> 29513.79579 | AB32: =IFERROR('HEM Table'!D32*52,0) -> 29513.79579 | AC32: =IFERROR('HEM Table'!E32*52,0) -> 30228.94556 | AD32: =IFERROR('HEM Table'!F32*52,0) -> 31252.42499 | AE32: =IFERROR('HEM Table'!G32*52,0) -> 33254.84088 | AF32: =IFERROR('HEM Table'!H32*52,0) -> 36143.95343 | AG32: =IFERROR('HEM Table'!I32*52,0) -> 40277.64145 | AH32: =IFERROR('HEM Table'!J32*52,0) -> 44118.18319 | AI32: =IFERROR('HEM Table'!K32*52,0) -> 48686.27528 | AJ32: =IFERROR('HEM Table'!L32*52,0) -> 50964.41105 | AK32: =IFERROR('HEM Table'!M32*52,0) -> 53475.63933 | AL32: =IFERROR('HEM Table'!N32*52,0) -> 60018.54848 | AM32: =IFERROR('HEM Table'!O32*52,0) -> 66296.20451 | AN32: =IFERROR('HEM Table'!P32*52,0) -> 68454.44365 | AO32: =IFERROR('HEM Table'!P32*52,0) -> 68454.44365 | AS32: 1590 | AT32: SYD | AU32: Sydney
A33: Applicant 4 | B33: 0 | C33: 0 | D33: 0 | E33: 0 | F33: 0 | G33: 0 | H33: 0 | Y33: MEL C child | Z33: MELCY | AA33: =IFERROR('HEM Table'!C33*52,0) -> 34708.07104 | AB33: =IFERROR('HEM Table'!D33*52,0) -> 34708.07104 | AC33: =IFERROR('HEM Table'!E33*52,0) -> 34708.07104 | AD33: =IFERROR('HEM Table'!F33*52,0) -> 35730.58303 | AE33: =IFERROR('HEM Table'!G33*52,0) -> 37731.10613 | AF33: =IFERROR('HEM Table'!H33*52,0) -> 40617.48774 | AG33: =IFERROR('HEM Table'!I33*52,0) -> 44747.26742 | AH33: =IFERROR('HEM Table'!J33*52,0) -> 48584.18175 | AI33: =IFERROR('HEM Table'!K33*52,0) -> 53147.95584 | AJ33: =IFERROR('HEM Table'!L33*52,0) -> 55423.9382 | AK33: =IFERROR('HEM Table'!M33*52,0) -> 57932.79273 | AL33: =IFERROR('HEM Table'!N33*52,0) -> 64469.51239 | AM33: =IFERROR('HEM Table'!O33*52,0) -> 70741.23828 | AN33: =IFERROR('HEM Table'!P33*52,0) -> 72897.43542 | AO33: =IFERROR('HEM Table'!P33*52,0) -> 72897.43542 | AS33: 1595 | AT33: SYD | AU33: Sydney
A34: Applicant 5 | B34: 0 | C34: 0 | D34: 0 | E34: 0 | F34: 0 | G34: 0 | H34: 0 | Y34: MEL C child2 | Z34: MELCY2 | AA34: =IFERROR('HEM Table'!C34*52,0) -> 38504.08945 | AB34: =IFERROR('HEM Table'!D34*52,0) -> 38504.08945 | AC34: =IFERROR('HEM Table'!E34*52,0) -> 38504.08945 | AD34: =IFERROR('HEM Table'!F34*52,0) -> 39527.76381 | AE34: =IFERROR('HEM Table'!G34*52,0) -> 41530.56106 | AF34: =IFERROR('HEM Table'!H34*52,0) -> 44420.22575 | AG34: =IFERROR('HEM Table'!I34*52,0) -> 48554.6991 | AH34: =IFERROR('HEM Table'!J34*52,0) -> 52395.97418 | AI34: =IFERROR('HEM Table'!K34*52,0) -> 56964.93625 | AJ34: =IFERROR('HEM Table'!L34*52,0) -> 59243.50589 | AK34: =IFERROR('HEM Table'!M34*52,0) -> 61755.21243 | AL34: =IFERROR('HEM Table'!N34*52,0) -> 68299.36286 | AM34: =IFERROR('HEM Table'!O34*52,0) -> 74578.2183 | AN34: =IFERROR('HEM Table'!P34*52,0) -> 76736.86655 | AO34: =IFERROR('HEM Table'!P34*52,0) -> 76736.86655 | AS34: 1630 | AT34: SYD | AU34: Sydney
A35: Applicant 6 | B35: 0 | C35: 0 | D35: 0 | E35: 0 | F35: 0 | G35: 0 | H35: 0 | Y35: MEL C child3 | Z35: MELCY3 | AA35: =IFERROR('HEM Table'!C35*52,0) -> 42924.4344 | AB35: =IFERROR('HEM Table'!D35*52,0) -> 42924.4344 | AC35: =IFERROR('HEM Table'!E35*52,0) -> 42924.4344 | AD35: =IFERROR('HEM Table'!F35*52,0) -> 42924.4344 | AE35: =IFERROR('HEM Table'!G35*52,0) -> 44930.57457 | AF35: =IFERROR('HEM Table'!H35*52,0) -> 47825.05726 | AG35: =IFERROR('HEM Table'!I35*52,0) -> 51966.43248 | AH35: =IFERROR('HEM Table'!J35*52,0) -> 55814.11825 | AI35: =IFERROR('HEM Table'!K35*52,0) -> 60390.70335 | AJ35: =IFERROR('HEM Table'!L35*52,0) -> 62673.07224 | AK35: =IFERROR('HEM Table'!M35*52,0) -> 65188.97281 | AL35: =IFERROR('HEM Table'!N35*52,0) -> 71744.04313 | AM35: =IFERROR('HEM Table'!O35*52,0) -> 78033.37577 | AN35: =IFERROR('HEM Table'!P35*52,0) -> 80195.62605 | AO35: =IFERROR('HEM Table'!P35*52,0) -> 80195.62605 | AS35: 1635 | AT35: SYD | AU35: Sydney
A36: Untaxed Allowable Income | B36: 0 | D36: Business Depreciation ↓ | F36: =B36 -> 0 | H36: =F36-G36 -> 0 | Y36: MEL Single | Z36: MELSN | AA36: =IFERROR('HEM Table'!C36*52,0) -> 15151.16379 | AB36: =IFERROR('HEM Table'!D36*52,0) -> 16037.45371 | AC36: =IFERROR('HEM Table'!E36*52,0) -> 16753.65648 | AD36: =IFERROR('HEM Table'!F36*52,0) -> 17778.6413 | AE36: =IFERROR('HEM Table'!G36*52,0) -> 19784.0029 | AF36: =IFERROR('HEM Table'!H36*52,0) -> 22677.36605 | AG36: =IFERROR('HEM Table'!I36*52,0) -> 26817.13409 | AH36: =IFERROR('HEM Table'!J36*52,0) -> 30663.32844 | AI36: =IFERROR('HEM Table'!K36*52,0) -> 35238.1396 | AJ36: =IFERROR('HEM Table'!L36*52,0) -> 37519.62573 | AK36: =IFERROR('HEM Table'!M36*52,0) -> 40034.55015 | AL36: =IFERROR('HEM Table'!N36*52,0) -> 46587.07963 | AM36: =IFERROR('HEM Table'!O36*52,0) -> 52873.97347 | AN36: =IFERROR('HEM Table'!P36*52,0) -> 55035.38563 | AO36: =IFERROR('HEM Table'!P36*52,0) -> 55035.38563 | AS36: 1640 | AT36: SYD | AU36: Sydney
A37: Company NPBT | B37: 0 | D37: 0 | F37: =B37+D37 -> 0 | G37: =B37*30% -> 0 | H37: =F37-G37 -> 0 | Y37: MEL S child | Z37: MELSY | AA37: =IFERROR('HEM Table'!C37*52,0) -> 21262.91347 | AB37: =IFERROR('HEM Table'!D37*52,0) -> 21262.91347 | AC37: =IFERROR('HEM Table'!E37*52,0) -> 21977.94691 | AD37: =IFERROR('HEM Table'!F37*52,0) -> 23001.26021 | AE37: =IFERROR('HEM Table'!G37*52,0) -> 25003.35106 | AF37: =IFERROR('HEM Table'!H37*52,0) -> 27891.99463 | AG37: =IFERROR('HEM Table'!I37*52,0) -> 32025.01117 | AH37: =IFERROR('HEM Table'!J37*52,0) -> 35864.93237 | AI37: =IFERROR('HEM Table'!K37*52,0) -> 40432.28198 | AJ37: =IFERROR('HEM Table'!L37*52,0) -> 42710.04604 | AK37: =IFERROR('HEM Table'!M37*52,0) -> 45220.86956 | AL37: =IFERROR('HEM Table'!N37*52,0) -> 51762.71087 | AM37: =IFERROR('HEM Table'!O37*52,0) -> 58039.35172 | AN37: =IFERROR('HEM Table'!P37*52,0) -> 60197.23861 | AO37: =IFERROR('HEM Table'!P37*52,0) -> 60197.23861 | AS37: 1655 | AT37: SYD | AU37: Sydney
A38: Annual Rental | B38: 0 | F38: =SUM(F30:F37) -> 0 | G38: Total Net Income: | H38: =SUM(H30:H37) -> 0 | I38: HEM Income | J38: =(SUM($B$30:$D$35)+$B$36) -> 0 | Y38: MEL S child2 | Z38: MELSY2 | AA38: =IFERROR('HEM Table'!C38*52,0) -> 27118.49002 | AB38: =IFERROR('HEM Table'!D38*52,0) -> 27118.49002 | AC38: =IFERROR('HEM Table'!E38*52,0) -> 27831.5789 | AD38: =IFERROR('HEM Table'!F38*52,0) -> 28852.1057 | AE38: =IFERROR('HEM Table'!G38*52,0) -> 30848.74624 | AF38: =IFERROR('HEM Table'!H38*52,0) -> 33729.52535 | AG38: =IFERROR('HEM Table'!I38*52,0) -> 37851.28909 | AH38: =IFERROR('HEM Table'!J38*52,0) -> 41680.75592 | AI38: =IFERROR('HEM Table'!K38*52,0) -> 46235.6688 | AJ38: =IFERROR('HEM Table'!L38*52,0) -> 48507.23441 | AK38: =IFERROR('HEM Table'!M38*52,0) -> 51011.21923 | AL38: =IFERROR('HEM Table'!N38*52,0) -> 57535.25581 | AM38: =IFERROR('HEM Table'!O38*52,0) -> 63794.80248 | AN38: =IFERROR('HEM Table'!P38*52,0) -> 65946.81824 | AO38: =IFERROR('HEM Table'!P38*52,0) -> 65946.81824 | AS38: 1660 | AT38: SYD | AU38: Sydney
A39: Investment Loan Balance | B39: 0 | E39: SERVICEABILITY SUMMARY | G39: Unstressed | H39: Stressed | Y39: MEL S child3 | Z39: MELSY3 | AA39: =IFERROR('HEM Table'!C39*52,0) -> 33685.21089 | AB39: =IFERROR('HEM Table'!D39*52,0) -> 33685.21089 | AC39: =IFERROR('HEM Table'!E39*52,0) -> 33685.21089 | AD39: =IFERROR('HEM Table'!F39*52,0) -> 34702.95119 | AE39: =IFERROR('HEM Table'!G39*52,0) -> 36694.14143 | AF39: =IFERROR('HEM Table'!H39*52,0) -> 39567.05607 | AG39: =IFERROR('HEM Table'!I39*52,0) -> 43677.567 | AH39: =IFERROR('HEM Table'!J39*52,0) -> 47496.57947 | AI39: =IFERROR('HEM Table'!K39*52,0) -> 52039.05562 | AJ39: =IFERROR('HEM Table'!L39*52,0) -> 54304.42278 | AK39: =IFERROR('HEM Table'!M39*52,0) -> 56801.56889 | AL39: =IFERROR('HEM Table'!N39*52,0) -> 63307.80075 | AM39: =IFERROR('HEM Table'!O39*52,0) -> 69550.25324 | AN39: =IFERROR('HEM Table'!P39*52,0) -> 71696.39788 | AO39: =IFERROR('HEM Table'!P39*52,0) -> 71696.39788 | AS39: 1670 | AT39: SYD | AU39: Sydney
A40: Investment Loan Interest Rate | B40: 0 | F40: Additional Buffer: | G40: 2400 | H40: 2400
A41: Investment Loan Interest | B41: =SUM(B39*B40) -> 0 | D41: =SUM(B30+B31+B32+B33+B34+B35+B36+B37+C30+C31+C32+C33+C34+C35+D30+D31+D32+D33+D34+D35) -> 0 | F41: Applicant Living Costs: | G41: =IF($B$8=0,0,IF(AND($B$8=1,$B$10=0),($J$55+$J$55*$B$43)*(1+$J$61),IF(AND($B$8=1,$B$10=1),($J$56+$J$56*$B$43)*(1+$J$61),IF(AND($B$8=1,$B$10=2),($J$57+$J$57*$B$43)*(1+$J$61),IF(AND($B$8=1,$B$10>=3),($J$58+$J$58*$B$43)*(1+$J$61),IF(AND($B$8>=1,$B$10=0),($J$51+$J$51*$B$43)*(1+$J$61),IF(AND($B$8>=1,$B$10=1),($J$52+$J$52*$B$43)*(1+$J$61),IF(AND($B$8>=1,$B$10=2),($J$53+$J$53*$B$43)*(1+$J$61),IF(AND($B$8>=1,$B$10>=3),($J$54+$J$54*$B$43)*(1+$J$61))))))))))+$J$59*(1+$J$61)+$D$47 -> 0 | H41: =G41 -> 0 | Y41: Balance of VIC | AS41: 1675 | AT41: SYD | AU41: Sydney
A42: LIVING COSTS | F42: Proposed Annual Repayments: | G42: =E8*12 -> 0 | H42: =H8*12 -> 0 | I42: =IF(D41>0,IF(G41=0," X",""),"") ->  | Y42: VIC Couple | Z42: VICCN | AA42: =IFERROR('HEM Table'!C41*52,0) -> 31411.97254 | AB42: =IFERROR('HEM Table'!D41*52,0) -> 31411.97254 | AC42: =IFERROR('HEM Table'!E41*52,0) -> 32127.1223 | AD42: =IFERROR('HEM Table'!F41*52,0) -> 33150.60126 | AE42: =IFERROR('HEM Table'!G41*52,0) -> 35153.01763 | AF42: =IFERROR('HEM Table'!H41*52,0) -> 38042.13018 | AG42: =IFERROR('HEM Table'!I41*52,0) -> 42175.81724 | AH42: =IFERROR('HEM Table'!J41*52,0) -> 46016.36186 | AI42: =IFERROR('HEM Table'!K41*52,0) -> 50584.45298 | AJ42: =IFERROR('HEM Table'!L41*52,0) -> 52862.58972 | AK42: =IFERROR('HEM Table'!M41*52,0) -> 55373.818 | AL42: =IFERROR('HEM Table'!N41*52,0) -> 61916.72235 | AM42: =IFERROR('HEM Table'!O41*52,0) -> 68194.38222 | AN42: =IFERROR('HEM Table'!P41*52,0) -> 70352.61944 | AO42: =IFERROR('HEM Table'!P41*52,0) -> 70352.61944 | AS42: 1680 | AT42: SYD | AU42: Sydney
B43: 0 | F43: Other Repayments: | G43: =SUM(B26+D27+E14+E17+E21+D23+D24+D25+B28)*12 -> 0 | H43: =SUM(H14,H17,H21,F23,F24,F25,B26,D27,B28)*12 -> 0 | I43: =IF(B6>0,IF(E6=0," X",""),"") ->  | Y43: VIC C child | Z43: VICCY | AA43: =IFERROR('HEM Table'!C42*52,0) -> 36604.45497 | AB43: =IFERROR('HEM Table'!D42*52,0) -> 36604.45497 | AC43: =IFERROR('HEM Table'!E42*52,0) -> 36604.45497 | AD43: =IFERROR('HEM Table'!F42*52,0) -> 37626.96696 | AE43: =IFERROR('HEM Table'!G42*52,0) -> 39627.49006 | AF43: =IFERROR('HEM Table'!H42*52,0) -> 42513.87023 | AG43: =IFERROR('HEM Table'!I42*52,0) -> 46643.65183 | AH43: =IFERROR('HEM Table'!J42*52,0) -> 50480.56616 | AI43: =IFERROR('HEM Table'!K42*52,0) -> 55044.33929 | AJ43: =IFERROR('HEM Table'!L42*52,0) -> 57320.31782 | AK43: =IFERROR('HEM Table'!M42*52,0) -> 59829.17618 | AL43: =IFERROR('HEM Table'!N42*52,0) -> 66365.89584 | AM43: =IFERROR('HEM Table'!O42*52,0) -> 72637.62173 | AN43: =IFERROR('HEM Table'!P42*52,0) -> 74793.81887 | AO43: =IFERROR('HEM Table'!P42*52,0) -> 74793.81887 | AS43: 1685 | AT43: SYD | AU43: Sydney
A44: As a responsible lender, Auswide Bank Ltd assesses applications for credit based upon an estimate | F44: Total Commitments | G44: =G42+G43 -> 0 | H44: =H42+H43 -> 0 | I44: =(G43*0.22)+G43 -> 0 | J44: =I47 -> 0 | Y44: VIC C child2 | Z44: VICCY2 | AA44: =IFERROR('HEM Table'!C43*52,0) -> 40402.62962 | AB44: =IFERROR('HEM Table'!D43*52,0) -> 40402.62962 | AC44: =IFERROR('HEM Table'!E43*52,0) -> 40402.62962 | AD44: =IFERROR('HEM Table'!F43*52,0) -> 41426.3035 | AE44: =IFERROR('HEM Table'!G43*52,0) -> 43429.10122 | AF44: =IFERROR('HEM Table'!H43*52,0) -> 46318.76208 | AG44: =IFERROR('HEM Table'!I43*52,0) -> 50453.23831 | AH44: =IFERROR('HEM Table'!J43*52,0) -> 54294.51435 | AI44: =IFERROR('HEM Table'!K43*52,0) -> 58863.47546 | AJ44: =IFERROR('HEM Table'!L43*52,0) -> 61142.04222 | AK44: =IFERROR('HEM Table'!M43*52,0) -> 63653.75164 | AL44: =IFERROR('HEM Table'!N43*52,0) -> 70197.90207 | AM44: =IFERROR('HEM Table'!O43*52,0) -> 76476.75751 | AN44: =IFERROR('HEM Table'!P43*52,0) -> 78635.40576 | AO44: =IFERROR('HEM Table'!P43*52,0) -> 78635.40576 | AS44: 1700 | AT44: SYD | AU44: Sydney
A45: of the applicants monthly living expenses. | F45: Total Costs: | G45: =SUM(G40:G43) -> 2400 | H45: =SUM(H40:H43) -> 2400 | Y45: VIC C child3 | Z45: VICCY3 | AA45: =IFERROR('HEM Table'!C44*52,0) -> 44826.13873 | AB45: =IFERROR('HEM Table'!D44*52,0) -> 44826.13873 | AC45: =IFERROR('HEM Table'!E44*52,0) -> 44826.13873 | AD45: =IFERROR('HEM Table'!F44*52,0) -> 44826.13873 | AE45: =IFERROR('HEM Table'!G44*52,0) -> 46832.27794 | AF45: =IFERROR('HEM Table'!H44*52,0) -> 49726.76447 | AG45: =IFERROR('HEM Table'!I44*52,0) -> 53868.1368 | AH45: =IFERROR('HEM Table'!J44*52,0) -> 57715.82161 | AI45: =IFERROR('HEM Table'!K44*52,0) -> 62292.40767 | AJ45: =IFERROR('HEM Table'!L44*52,0) -> 64574.77945 | AK45: =IFERROR('HEM Table'!M44*52,0) -> 67090.6781 | AL45: =IFERROR('HEM Table'!N44*52,0) -> 73645.75226 | AM45: =IFERROR('HEM Table'!O44*52,0) -> 79935.08105 | AN45: =IFERROR('HEM Table'!P44*52,0) -> 82097.33325 | AO45: =IFERROR('HEM Table'!P44*52,0) -> 82097.33325 | AS45: 1710 | AT45: SYD | AU45: Sydney
A46: Our estimate is | B46: =G41/12 -> 0 | F46: Net Disposable Income: | G46: =H38-G45 -> -2400 | H46: =H38-H45 -> -2400 | Y46: VIC Single | Z46: VICSN | AA46: =IFERROR('HEM Table'!C45*52,0) -> 17052.13255 | AB46: =IFERROR('HEM Table'!D45*52,0) -> 17938.42259 | AC46: =IFERROR('HEM Table'!E45*52,0) -> 18654.62536 | AD46: =IFERROR('HEM Table'!F45*52,0) -> 19679.61017 | AE46: =IFERROR('HEM Table'!G45*52,0) -> 21684.97202 | AF46: =IFERROR('HEM Table'!H45*52,0) -> 24578.33468 | AG46: =IFERROR('HEM Table'!I45*52,0) -> 28718.1032 | AH46: =IFERROR('HEM Table'!J45*52,0) -> 32564.2966 | AI46: =IFERROR('HEM Table'!K45*52,0) -> 37139.10872 | AJ46: =IFERROR('HEM Table'!L45*52,0) -> 39420.59389 | AK46: =IFERROR('HEM Table'!M45*52,0) -> 41935.51926 | AL46: =IFERROR('HEM Table'!N45*52,0) -> 48488.05067 | AM46: =IFERROR('HEM Table'!O45*52,0) -> 54774.94163 | AN46: =IFERROR('HEM Table'!P45*52,0) -> 56936.35571 | AO46: =IFERROR('HEM Table'!P45*52,0) -> 56936.35571 | AS46: 1715 | AT46: SYD | AU46: Sydney
A47: Additional Monthly Discretionary Living Expenses | B47: 0 | C47: Annual | D47: =B47*12 -> 0 | I47: =SUM(H38-(G41+I44)) -> 0 | J47: =J44/12 -> 0 | Y47: VIC S child | Z47: VICSY | AA47: =IFERROR('HEM Table'!C46*52,0) -> 23160.78161 | AB47: =IFERROR('HEM Table'!D46*52,0) -> 23160.78161 | AC47: =IFERROR('HEM Table'!E46*52,0) -> 23875.81553 | AD47: =IFERROR('HEM Table'!F46*52,0) -> 24899.12835 | AE47: =IFERROR('HEM Table'!G46*52,0) -> 26901.21968 | AF47: =IFERROR('HEM Table'!H46*52,0) -> 29789.86326 | AG47: =IFERROR('HEM Table'!I46*52,0) -> 33922.8798 | AH47: =IFERROR('HEM Table'!J46*52,0) -> 37762.80003 | AI47: =IFERROR('HEM Table'!K46*52,0) -> 42330.15061 | AJ47: =IFERROR('HEM Table'!L46*52,0) -> 44607.91466 | AK47: =IFERROR('HEM Table'!M46*52,0) -> 47118.73531 | AL47: =IFERROR('HEM Table'!N46*52,0) -> 53660.58238 | AM47: =IFERROR('HEM Table'!O46*52,0) -> 59937.22322 | AN47: =IFERROR('HEM Table'!P46*52,0) -> 62095.10819 | AO47: =IFERROR('HEM Table'!P46*52,0) -> 62095.10819 | AS47: 1730 | AT47: SYD | AU47: Sydney
Y48: VIC S child2 | Z48: VICSY2 | AA48: =IFERROR('HEM Table'!C47*52,0) -> 29011.19304 | AB48: =IFERROR('HEM Table'!D47*52,0) -> 29011.19304 | AC48: =IFERROR('HEM Table'!E47*52,0) -> 29724.28001 | AD48: =IFERROR('HEM Table'!F47*52,0) -> 30744.80729 | AE48: =IFERROR('HEM Table'!G47*52,0) -> 32741.44736 | AF48: =IFERROR('HEM Table'!H47*52,0) -> 35622.22694 | AG48: =IFERROR('HEM Table'!I47*52,0) -> 39743.99068 | AH48: =IFERROR('HEM Table'!J47*52,0) -> 43573.45751 | AI48: =IFERROR('HEM Table'!K47*52,0) -> 48128.3723 | AJ48: =IFERROR('HEM Table'!L47*52,0) -> 50399.93696 | AK48: =IFERROR('HEM Table'!M47*52,0) -> 52903.92273 | AL48: =IFERROR('HEM Table'!N47*52,0) -> 59427.95454 | AM48: =IFERROR('HEM Table'!O47*52,0) -> 65687.50694 | AN48: =IFERROR('HEM Table'!P47*52,0) -> 67839.51888 | AO48: =IFERROR('HEM Table'!P47*52,0) -> 67839.51888 | AS48: 1750 | AT48: SYD | AU48: Sydney
I49: =IF(H50>=6,"DTI may be unacceptable ","") ->  | Y49: VIC S child3 | Z49: VICSY3 | AA49: =IFERROR('HEM Table'!C48*52,0) -> 35572.74449 | AB49: =IFERROR('HEM Table'!D48*52,0) -> 35572.74449 | AC49: =IFERROR('HEM Table'!E48*52,0) -> 35572.74449 | AD49: =IFERROR('HEM Table'!F48*52,0) -> 36590.48623 | AE49: =IFERROR('HEM Table'!G48*52,0) -> 38581.67503 | AF49: =IFERROR('HEM Table'!H48*52,0) -> 41454.59063 | AG49: =IFERROR('HEM Table'!I48*52,0) -> 45565.10156 | AH49: =IFERROR('HEM Table'!J48*52,0) -> 49384.11498 | AI49: =IFERROR('HEM Table'!K48*52,0) -> 53926.594 | AJ49: =IFERROR('HEM Table'!L48*52,0) -> 56191.95925 | AK49: =IFERROR('HEM Table'!M48*52,0) -> 58689.11015 | AL49: =IFERROR('HEM Table'!N48*52,0) -> 65195.3267 | AM49: =IFERROR('HEM Table'!O48*52,0) -> 71437.79066 | AN49: =IFERROR('HEM Table'!P48*52,0) -> 73583.92957 | AO49: =IFERROR('HEM Table'!P48*52,0) -> 73583.92957 | AS49: 1755 | AT49: SYD | AU49: Sydney
F50: Debt to Income Ratio (DTI): | G50: Times | H50: =ROUND(($B$6+$B$12+$B$16+$B$19+$B$23+$B$24+$B$25+$B$27)/(SUM($B$30:$B$37,$C$30:$C$35,$D$30:$D$35)),2) ->  | I50: LIVING COSTS | Y50: Brisbane | AS50: 1765 | AT50: SYD | AU50: Sydney
D51: =IF(D41>0,IF(G41=0,"WARNING - ERROR",""),"") ->  | F51: COLA RATIO: | G51: =IF(H38>0,(H38-G41)/(G45-G41),"") ->  | H51: =IF(H38>0,(H38-H41)/(H45-H41),"") ->  | I51: Couple with no children | J51: =IF($B$8=0,"",IF($B$10>=1,"",$BD$7)) ->  | Y51: BRI Couple | Z51: BRICN | AA51: =IFERROR('HEM Table'!C50*52,0) -> 28140.12248 | AB51: =IFERROR('HEM Table'!D50*52,0) -> 28140.12248 | AC51: =IFERROR('HEM Table'!E50*52,0) -> 28855.27416 | AD51: =IFERROR('HEM Table'!F50*52,0) -> 29878.75312 | AE51: =IFERROR('HEM Table'!G50*52,0) -> 31881.16901 | AF51: =IFERROR('HEM Table'!H50*52,0) -> 34770.28204 | AG51: =IFERROR('HEM Table'!I50*52,0) -> 38903.9691 | AH51: =IFERROR('HEM Table'!J50*52,0) -> 42744.51371 | AI51: =IFERROR('HEM Table'!K50*52,0) -> 47312.60484 | AJ51: =IFERROR('HEM Table'!L50*52,0) -> 49590.73774 | AK51: =IFERROR('HEM Table'!M50*52,0) -> 52101.96985 | AL51: =IFERROR('HEM Table'!N50*52,0) -> 58644.87325 | AM51: =IFERROR('HEM Table'!O50*52,0) -> 64922.53312 | AN51: =IFERROR('HEM Table'!P50*52,0) -> 67080.77034 | AO51: =IFERROR('HEM Table'!P50*52,0) -> 67080.77034 | AS51: 1790 | AT51: SYD | AU51: Sydney
F52: Net Servicing Ratio (NSR) | H52: =H51 ->  | I52: Couple with 1 child | J52: =IF($B$8>=2,IF($B$10=1,$BA$11,""),"") ->  | Y52: BRI C child | Z52: BRICY | AA52: =IFERROR('HEM Table'!C51*52,0) -> 33335.69763 | AB52: =IFERROR('HEM Table'!D51*52,0) -> 33335.69763 | AC52: =IFERROR('HEM Table'!E51*52,0) -> 33335.69763 | AD52: =IFERROR('HEM Table'!F51*52,0) -> 34358.20962 | AE52: =IFERROR('HEM Table'!G51*52,0) -> 36358.73273 | AF52: =IFERROR('HEM Table'!H51*52,0) -> 39245.11481 | AG52: =IFERROR('HEM Table'!I51*52,0) -> 43374.89641 | AH52: =IFERROR('HEM Table'!J51*52,0) -> 47211.80691 | AI52: =IFERROR('HEM Table'!K51*52,0) -> 51775.58387 | AJ52: =IFERROR('HEM Table'!L51*52,0) -> 54051.5624 | AK52: =IFERROR('HEM Table'!M51*52,0) -> 56560.41789 | AL52: =IFERROR('HEM Table'!N51*52,0) -> 63097.14137 | AM52: =IFERROR('HEM Table'!O51*52,0) -> 69368.86727 | AN52: =IFERROR('HEM Table'!P51*52,0) -> 71525.06441 | AO52: =IFERROR('HEM Table'!P51*52,0) -> 71525.06441 | AS52: 1800 | AT52: SYD | AU52: Sydney
A53: MAXIMUM LOAN AMOUNT | B53: =PV(E7/12,B7,-(H38-H40-H41-H53*H43)/(H53*12),0,0) -> 0 | F53: HLN Minimum NSR | G53: 1.25 | H53: 1 | I53: Couple with 2 children | J53: =IF($B$8>=2,IF($B$10=2,$BA$11,""),"") ->  | Y53: BRI C child2 | Z53: BRICY2 | AA53: =IFERROR('HEM Table'!C52*52,0) -> 37130.15597 | AB53: =IFERROR('HEM Table'!D52*52,0) -> 37130.15597 | AC53: =IFERROR('HEM Table'!E52*52,0) -> 37130.15597 | AD53: =IFERROR('HEM Table'!F52*52,0) -> 38153.83032 | AE53: =IFERROR('HEM Table'!G52*52,0) -> 40156.62805 | AF53: =IFERROR('HEM Table'!H52*52,0) -> 43046.29082 | AG53: =IFERROR('HEM Table'!I52*52,0) -> 47180.76705 | AH53: =IFERROR('HEM Table'!J52*52,0) -> 51022.03925 | AI53: =IFERROR('HEM Table'!K52*52,0) -> 55591.00036 | AJ53: =IFERROR('HEM Table'!L52*52,0) -> 57869.57096 | AK53: =IFERROR('HEM Table'!M52*52,0) -> 60381.2775 | AL53: =IFERROR('HEM Table'!N52*52,0) -> 66925.43177 | AM53: =IFERROR('HEM Table'!O52*52,0) -> 73204.28337 | AN53: =IFERROR('HEM Table'!P52*52,0) -> 75362.93546 | AO53: =IFERROR('HEM Table'!P52*52,0) -> 75362.93546 | AS53: 1805 | AT53: SYD | AU53: Sydney
F54: PLN Minimium NSR | H54: 1 | I54: Couple with 3 or more children | J54: =IF($B$8>=2,IF($B$10>=3,$BA$11,""),"") ->  | Y54: BRI C child3 | Z54: BRICY3 | AA54: =IFERROR('HEM Table'!C53*52,0) -> 41548.20686 | AB54: =IFERROR('HEM Table'!D53*52,0) -> 41548.20686 | AC54: =IFERROR('HEM Table'!E53*52,0) -> 41548.20686 | AD54: =IFERROR('HEM Table'!F53*52,0) -> 41548.20686 | AE54: =IFERROR('HEM Table'!G53*52,0) -> 43554.34607 | AF54: =IFERROR('HEM Table'!H53*52,0) -> 46448.8326 | AG54: =IFERROR('HEM Table'!I53*52,0) -> 50590.20494 | AH54: =IFERROR('HEM Table'!J53*52,0) -> 54437.88975 | AI54: =IFERROR('HEM Table'!K53*52,0) -> 59014.47581 | AJ54: =IFERROR('HEM Table'!L53*52,0) -> 61296.84854 | AK54: =IFERROR('HEM Table'!M53*52,0) -> 63812.74527 | AL54: =IFERROR('HEM Table'!N53*52,0) -> 70367.81559 | AM54: =IFERROR('HEM Table'!O53*52,0) -> 76657.14823 | AN54: =IFERROR('HEM Table'!P53*52,0) -> 78819.39851 | AO54: =IFERROR('HEM Table'!P53*52,0) -> 78819.39851 | AS54: 1811 | AT54: SYD | AU54: Sydney
I55: Single with no children | J55: =IF($B$8=0,"",IF($B$8>=2,"",IF($B$10>=1,"",$BA$7))) ->  | Y55: BRI Single | Z55: BRISN | AA55: =IFERROR('HEM Table'!C54*52,0) -> 13775.47018 | AB55: =IFERROR('HEM Table'!D54*52,0) -> 14661.76034 | AC55: =IFERROR('HEM Table'!E54*52,0) -> 15377.96311 | AD55: =IFERROR('HEM Table'!F54*52,0) -> 16402.94792 | AE55: =IFERROR('HEM Table'!G54*52,0) -> 18408.30977 | AF55: =IFERROR('HEM Table'!H54*52,0) -> 21301.67243 | AG55: =IFERROR('HEM Table'!I54*52,0) -> 25441.44191 | AH55: =IFERROR('HEM Table'!J54*52,0) -> 29287.63339 | AI55: =IFERROR('HEM Table'!K54*52,0) -> 33862.44742 | AJ55: =IFERROR('HEM Table'!L54*52,0) -> 36143.9326 | AK55: =IFERROR('HEM Table'!M54*52,0) -> 38658.85509 | AL55: =IFERROR('HEM Table'!N54*52,0) -> 45211.38649 | AM55: =IFERROR('HEM Table'!O54*52,0) -> 51498.27938 | AN55: =IFERROR('HEM Table'!P54*52,0) -> 53659.69154 | AO55: =IFERROR('HEM Table'!P54*52,0) -> 53659.69154 | AS55: 1825 | AT55: SYD | AU55: Sydney
I56: Single with 1 child | J56: =IF($B$8>=2,"",IF($B$10=1,$BA$11,"")) ->  | Y56: BRI S child | Z56: BRISY | AA56: =IFERROR('HEM Table'!C55*52,0) -> 19889.46266 | AB56: =IFERROR('HEM Table'!D55*52,0) -> 19889.46266 | AC56: =IFERROR('HEM Table'!E55*52,0) -> 20604.49801 | AD56: =IFERROR('HEM Table'!F55*52,0) -> 21627.81131 | AE56: =IFERROR('HEM Table'!G55*52,0) -> 23629.90216 | AF56: =IFERROR('HEM Table'!H55*52,0) -> 26518.54574 | AG56: =IFERROR('HEM Table'!I55*52,0) -> 30651.56228 | AH56: =IFERROR('HEM Table'!J55*52,0) -> 34491.48299 | AI56: =IFERROR('HEM Table'!K55*52,0) -> 39058.83357 | AJ56: =IFERROR('HEM Table'!L55*52,0) -> 41336.59762 | AK56: =IFERROR('HEM Table'!M55*52,0) -> 43847.42018 | AL56: =IFERROR('HEM Table'!N55*52,0) -> 50389.26438 | AM56: =IFERROR('HEM Table'!O55*52,0) -> 56665.90139 | AN56: =IFERROR('HEM Table'!P55*52,0) -> 58823.78828 | AO56: =IFERROR('HEM Table'!P55*52,0) -> 58823.78828 | AS56: 1835 | AT56: SYD | AU56: Sydney
A57: Important - Please Note: This Quick Qualifier was prepared by Auswide Bank (ABN 40 087 652 060) to provide an estimate as to | I57: Single with 2 chilcren | J57: =IF($B$8>=2,"",IF($B$10=2,$BA$11,"")) ->  | Y57: BRI S child2 | Z57: BRISY2 | AA57: =IFERROR('HEM Table'!C56*52,0) -> 25748.7804 | AB57: =IFERROR('HEM Table'!D56*52,0) -> 25748.7804 | AC57: =IFERROR('HEM Table'!E56*52,0) -> 26461.86928 | AD57: =IFERROR('HEM Table'!F56*52,0) -> 27482.39608 | AE57: =IFERROR('HEM Table'!G56*52,0) -> 29479.03663 | AF57: =IFERROR('HEM Table'!H56*52,0) -> 32359.81382 | AG57: =IFERROR('HEM Table'!I56*52,0) -> 36481.57995 | AH57: =IFERROR('HEM Table'!J56*52,0) -> 40311.04391 | AI57: =IFERROR('HEM Table'!K56*52,0) -> 44865.96157 | AJ57: =IFERROR('HEM Table'!L56*52,0) -> 47137.5224 | AK57: =IFERROR('HEM Table'!M56*52,0) -> 49641.512 | AL57: =IFERROR('HEM Table'!N56*52,0) -> 56165.54285 | AM57: =IFERROR('HEM Table'!O56*52,0) -> 62425.09525 | AN57: =IFERROR('HEM Table'!P56*52,0) -> 64577.10719 | AO57: =IFERROR('HEM Table'!P56*52,0) -> 64577.10719 | AS57: 1851 | AT57: SYD | AU57: Sydney
A58: whether a loan application meets Auswide Bank's loan servicing criteria. | I58: Single with 3 or more children | J58: =IF($B$8>=2,"",IF($B$10>=3,$BA$11,"")) ->  | Y58: BRI S child3 | Z58: BRISY3 | AA58: =IFERROR('HEM Table'!C57*52,0) -> 32319.24055 | AB58: =IFERROR('HEM Table'!D57*52,0) -> 32319.24055 | AC58: =IFERROR('HEM Table'!E57*52,0) -> 32319.24055 | AD58: =IFERROR('HEM Table'!F57*52,0) -> 33336.98086 | AE58: =IFERROR('HEM Table'!G57*52,0) -> 35328.17109 | AF58: =IFERROR('HEM Table'!H57*52,0) -> 38201.08191 | AG58: =IFERROR('HEM Table'!I57*52,0) -> 42311.59762 | AH58: =IFERROR('HEM Table'!J57*52,0) -> 46130.60483 | AI58: =IFERROR('HEM Table'!K57*52,0) -> 50673.08958 | AJ58: =IFERROR('HEM Table'!L57*52,0) -> 52938.44718 | AK58: =IFERROR('HEM Table'!M57*52,0) -> 55435.60382 | AL58: =IFERROR('HEM Table'!N57*52,0) -> 61941.82133 | AM58: =IFERROR('HEM Table'!O57*52,0) -> 68184.28912 | AN58: =IFERROR('HEM Table'!P57*52,0) -> 70330.42611 | AO58: =IFERROR('HEM Table'!P57*52,0) -> 70330.42611 | AS58: 1860 | AT58: SYD | AU58: Sydney
A59: This estimate will be considered with Auswide Bank's credit policies and lending guidelines in determining the applicant's suitability for credit. | I59: Additional Single | J59: =$BA$9*$B$9 -> 0 | L59: =$J$59*(1+$J$61) -> 0 | Y59: Balance of QLD | AS59: 1871 | AT59: SYD | AU59: Sydney
A60: Accordingly a positive outcome does not constitute any representation that Auswide Bank accepts that the applicant meets Auswide Bank's | Y60: QLD Couple | Z60: QLDCN | AA60: =IFERROR('HEM Table'!C59*52,0) -> 30784.46436 | AB60: =IFERROR('HEM Table'!D59*52,0) -> 30784.46436 | AC60: =IFERROR('HEM Table'!E59*52,0) -> 31499.61605 | AD60: =IFERROR('HEM Table'!F59*52,0) -> 32523.09308 | AE60: =IFERROR('HEM Table'!G59*52,0) -> 34525.51089 | AF60: =IFERROR('HEM Table'!H59*52,0) -> 37414.62153 | AG60: =IFERROR('HEM Table'!I59*52,0) -> 41548.31146 | AH60: =IFERROR('HEM Table'!J59*52,0) -> 45388.85512 | AI60: =IFERROR('HEM Table'!K59*52,0) -> 49956.94721 | AJ60: =IFERROR('HEM Table'!L59*52,0) -> 52235.07915 | AK60: =IFERROR('HEM Table'!M59*52,0) -> 54746.31126 | AL60: =IFERROR('HEM Table'!N59*52,0) -> 61289.21657 | AM60: =IFERROR('HEM Table'!O59*52,0) -> 67566.87644 | AN60: =IFERROR('HEM Table'!P59*52,0) -> 69725.11174 | AO60: =IFERROR('HEM Table'!P59*52,0) -> 69725.11174 | AS60: 1875 | AT60: SYD | AU60: Sydney
A61: credit policies and lending guidelines. | I61: HPI Inflator | J61: 0 | Y61: QLD C child | Z61: QLDCY | AA61: =IFERROR('HEM Table'!C60*52,0) -> 35977.53995 | AB61: =IFERROR('HEM Table'!D60*52,0) -> 35977.53995 | AC61: =IFERROR('HEM Table'!E60*52,0) -> 35977.53995 | AD61: =IFERROR('HEM Table'!F60*52,0) -> 37000.05194 | AE61: =IFERROR('HEM Table'!G60*52,0) -> 39000.57504 | AF61: =IFERROR('HEM Table'!H60*52,0) -> 41886.95665 | AG61: =IFERROR('HEM Table'!I60*52,0) -> 46016.73441 | AH61: =IFERROR('HEM Table'!J60*52,0) -> 49853.64874 | AI61: =IFERROR('HEM Table'!K60*52,0) -> 54417.42283 | AJ61: =IFERROR('HEM Table'!L60*52,0) -> 56693.40519 | AK61: =IFERROR('HEM Table'!M60*52,0) -> 59202.25972 | AL61: =IFERROR('HEM Table'!N60*52,0) -> 65738.98321 | AM61: =IFERROR('HEM Table'!O60*52,0) -> 72010.70527 | AN61: =IFERROR('HEM Table'!P60*52,0) -> 74166.90624 | AO61: =IFERROR('HEM Table'!P60*52,0) -> 74166.90624 | AS61: 1885 | AT61: SYD | AU61: Sydney
A62: This Quick Qualifier does not replace credit policy, prudent lending guidelines or responsible lending obligations. | Y62: QLD C child2 | Z62: QLDCY2 | AA62: =IFERROR('HEM Table'!C61*52,0) -> 39774.99954 | AB62: =IFERROR('HEM Table'!D61*52,0) -> 39774.99954 | AC62: =IFERROR('HEM Table'!E61*52,0) -> 39774.99954 | AD62: =IFERROR('HEM Table'!F61*52,0) -> 40798.6739 | AE62: =IFERROR('HEM Table'!G61*52,0) -> 42801.47114 | AF62: =IFERROR('HEM Table'!H61*52,0) -> 45691.13584 | AG62: =IFERROR('HEM Table'!I61*52,0) -> 49825.60919 | AH62: =IFERROR('HEM Table'!J61*52,0) -> 53666.88427 | AI62: =IFERROR('HEM Table'!K61*52,0) -> 58235.84634 | AJ62: =IFERROR('HEM Table'!L61*52,0) -> 60514.41598 | AK62: =IFERROR('HEM Table'!M61*52,0) -> 63026.12252 | AL62: =IFERROR('HEM Table'!N61*52,0) -> 69570.27678 | AM62: =IFERROR('HEM Table'!O61*52,0) -> 75849.12838 | AN62: =IFERROR('HEM Table'!P61*52,0) -> 78007.77664 | AO62: =IFERROR('HEM Table'!P61*52,0) -> 78007.77664 | AS62: 1890 | AT62: SYD | AU62: Sydney
A63: AB1298 | Y63: QLD C child3 | Z63: QLDCY3 | AA63: =IFERROR('HEM Table'!C62*52,0) -> 44197.46519 | AB63: =IFERROR('HEM Table'!D62*52,0) -> 44197.46519 | AC63: =IFERROR('HEM Table'!E62*52,0) -> 44197.46519 | AD63: =IFERROR('HEM Table'!F62*52,0) -> 44197.46519 | AE63: =IFERROR('HEM Table'!G62*52,0) -> 46203.60536 | AF63: =IFERROR('HEM Table'!H62*52,0) -> 49098.08805 | AG63: =IFERROR('HEM Table'!I62*52,0) -> 53239.46327 | AH63: =IFERROR('HEM Table'!J62*52,0) -> 57087.14904 | AI63: =IFERROR('HEM Table'!K62*52,0) -> 61663.73414 | AJ63: =IFERROR('HEM Table'!L62*52,0) -> 63946.10687 | AK63: =IFERROR('HEM Table'!M62*52,0) -> 66462.0036 | AL63: =IFERROR('HEM Table'!N62*52,0) -> 73017.07392 | AM63: =IFERROR('HEM Table'!O62*52,0) -> 79306.40656 | AN63: =IFERROR('HEM Table'!P62*52,0) -> 81468.65684 | AO63: =IFERROR('HEM Table'!P62*52,0) -> 81468.65684 | AS63: 1891 | AT63: SYD | AU63: Sydney
Y64: QLD Single | Z64: QLDSN | AA64: =IFERROR('HEM Table'!C63*52,0) -> 16423.70114 | AB64: =IFERROR('HEM Table'!D63*52,0) -> 17309.99226 | AC64: =IFERROR('HEM Table'!E63*52,0) -> 18026.19479 | AD64: =IFERROR('HEM Table'!F63*52,0) -> 19051.17864 | AE64: =IFERROR('HEM Table'!G63*52,0) -> 21056.54073 | AF64: =IFERROR('HEM Table'!H63*52,0) -> 23949.90339 | AG64: =IFERROR('HEM Table'!I63*52,0) -> 28089.67143 | AH64: =IFERROR('HEM Table'!J63*52,0) -> 31935.86579 | AI64: =IFERROR('HEM Table'!K63*52,0) -> 36510.67694 | AJ64: =IFERROR('HEM Table'!L63*52,0) -> 38792.16308 | AK64: =IFERROR('HEM Table'!M63*52,0) -> 41307.08749 | AL64: =IFERROR('HEM Table'!N63*52,0) -> 47859.6189 | AM64: =IFERROR('HEM Table'!O63*52,0) -> 54146.51082 | AN64: =IFERROR('HEM Table'!P63*52,0) -> 56307.92298 | AO64: =IFERROR('HEM Table'!P63*52,0) -> 56307.92298 | AS64: 2000 | AT64: SYD | AU64: Sydney
Y65: QLD S child | Z65: QLDSY | AA65: =IFERROR('HEM Table'!C64*52,0) -> 22533.3753 | AB65: =IFERROR('HEM Table'!D64*52,0) -> 22533.3753 | AC65: =IFERROR('HEM Table'!E64*52,0) -> 23248.41065 | AD65: =IFERROR('HEM Table'!F64*52,0) -> 24271.72204 | AE65: =IFERROR('HEM Table'!G64*52,0) -> 26273.81289 | AF65: =IFERROR('HEM Table'!H64*52,0) -> 29162.45646 | AG65: =IFERROR('HEM Table'!I64*52,0) -> 33295.47492 | AH65: =IFERROR('HEM Table'!J64*52,0) -> 37135.3942 | AI65: =IFERROR('HEM Table'!K64*52,0) -> 41702.74381 | AJ65: =IFERROR('HEM Table'!L64*52,0) -> 43980.50787 | AK65: =IFERROR('HEM Table'!M64*52,0) -> 46491.33139 | AL65: =IFERROR('HEM Table'!N64*52,0) -> 53033.1727 | AM65: =IFERROR('HEM Table'!O64*52,0) -> 59309.81355 | AN65: =IFERROR('HEM Table'!P64*52,0) -> 61467.70044 | AO65: =IFERROR('HEM Table'!P64*52,0) -> 61467.70044 | AS65: 2001 | AT65: SYD | AU65: Sydney
Y66: QLD S child2 | Z66: QLDSY2 | AA66: =IFERROR('HEM Table'!C65*52,0) -> 28385.49487 | AB66: =IFERROR('HEM Table'!D65*52,0) -> 28385.49487 | AC66: =IFERROR('HEM Table'!E65*52,0) -> 29098.58184 | AD66: =IFERROR('HEM Table'!F65*52,0) -> 30119.10864 | AE66: =IFERROR('HEM Table'!G65*52,0) -> 32115.74918 | AF66: =IFERROR('HEM Table'!H65*52,0) -> 34996.52829 | AG66: =IFERROR('HEM Table'!I65*52,0) -> 39118.29203 | AH66: =IFERROR('HEM Table'!J65*52,0) -> 42947.75886 | AI66: =IFERROR('HEM Table'!K65*52,0) -> 47502.67556 | AJ66: =IFERROR('HEM Table'!L65*52,0) -> 49774.23735 | AK66: =IFERROR('HEM Table'!M65*52,0) -> 52278.22599 | AL66: =IFERROR('HEM Table'!N65*52,0) -> 58802.25875 | AM66: =IFERROR('HEM Table'!O65*52,0) -> 65061.81116 | AN66: =IFERROR('HEM Table'!P65*52,0) -> 67213.82118 | AO66: =IFERROR('HEM Table'!P65*52,0) -> 67213.82118 | AS66: 2002 | AT66: SYD | AU66: Sydney
Y67: QLD S child3 | Z67: QLDSY3 | AA67: =IFERROR('HEM Table'!C66*52,0) -> 34948.75302 | AB67: =IFERROR('HEM Table'!D66*52,0) -> 34948.75302 | AC67: =IFERROR('HEM Table'!E66*52,0) -> 34948.75302 | AD67: =IFERROR('HEM Table'!F66*52,0) -> 35966.49524 | AE67: =IFERROR('HEM Table'!G66*52,0) -> 37957.68548 | AF67: =IFERROR('HEM Table'!H66*52,0) -> 40830.60012 | AG67: =IFERROR('HEM Table'!I66*52,0) -> 44941.10913 | AH67: =IFERROR('HEM Table'!J66*52,0) -> 48760.12352 | AI67: =IFERROR('HEM Table'!K66*52,0) -> 53302.60732 | AJ67: =IFERROR('HEM Table'!L66*52,0) -> 55567.96683 | AK67: =IFERROR('HEM Table'!M66*52,0) -> 58065.12059 | AL67: =IFERROR('HEM Table'!N66*52,0) -> 64571.3448 | AM67: =IFERROR('HEM Table'!O66*52,0) -> 70813.80876 | AN67: =IFERROR('HEM Table'!P66*52,0) -> 72959.94193 | AO67: =IFERROR('HEM Table'!P66*52,0) -> 72959.94193 | AS67: 2004 | AT67: SYD | AU67: Sydney
Y68: Adelaide | AS68: 2006 | AT68: SYD | AU68: Sydney
Y69: ADE Couple | Z69: ADECN | AA69: =IFERROR('HEM Table'!C68*52,0) -> 30249.75062 | AB69: =IFERROR('HEM Table'!D68*52,0) -> 30249.75062 | AC69: =IFERROR('HEM Table'!E68*52,0) -> 30964.90231 | AD69: =IFERROR('HEM Table'!F68*52,0) -> 31988.38126 | AE69: =IFERROR('HEM Table'!G68*52,0) -> 33990.79763 | AF69: =IFERROR('HEM Table'!H68*52,0) -> 36879.91019 | AG69: =IFERROR('HEM Table'!I68*52,0) -> 41013.59725 | AH69: =IFERROR('HEM Table'!J68*52,0) -> 44854.14186 | AI69: =IFERROR('HEM Table'!K68*52,0) -> 49422.23299 | AJ69: =IFERROR('HEM Table'!L68*52,0) -> 51700.36972 | AK69: =IFERROR('HEM Table'!M68*52,0) -> 54211.59704 | AL69: =IFERROR('HEM Table'!N68*52,0) -> 60754.50139 | AM69: =IFERROR('HEM Table'!O68*52,0) -> 67032.16126 | AN69: =IFERROR('HEM Table'!P68*52,0) -> 69190.39848 | AO69: =IFERROR('HEM Table'!P68*52,0) -> 69190.39848 | AS69: 2007 | AT69: SYD | AU69: Sydney
Y70: ADE C child | Z70: ADECY | AA70: =IFERROR('HEM Table'!C69*52,0) -> 35443.33165 | AB70: =IFERROR('HEM Table'!D69*52,0) -> 35443.33165 | AC70: =IFERROR('HEM Table'!E69*52,0) -> 35443.33165 | AD70: =IFERROR('HEM Table'!F69*52,0) -> 36465.84364 | AE70: =IFERROR('HEM Table'!G69*52,0) -> 38466.36722 | AF70: =IFERROR('HEM Table'!H69*52,0) -> 41352.74883 | AG70: =IFERROR('HEM Table'!I69*52,0) -> 45482.53043 | AH70: =IFERROR('HEM Table'!J69*52,0) -> 49319.44475 | AI70: =IFERROR('HEM Table'!K69*52,0) -> 53883.21788 | AJ70: =IFERROR('HEM Table'!L69*52,0) -> 56159.19641 | AK70: =IFERROR('HEM Table'!M69*52,0) -> 58668.05573 | AL70: =IFERROR('HEM Table'!N69*52,0) -> 65204.77539 | AM70: =IFERROR('HEM Table'!O69*52,0) -> 71476.50128 | AN70: =IFERROR('HEM Table'!P69*52,0) -> 73632.69842 | AO70: =IFERROR('HEM Table'!P69*52,0) -> 73632.69842 | AS70: 2008 | AT70: SYD | AU70: Sydney
Y71: ADE C child2 | Z71: ADECY2 | AA71: =IFERROR('HEM Table'!C70*52,0) -> 39240.18589 | AB71: =IFERROR('HEM Table'!D70*52,0) -> 39240.18589 | AC71: =IFERROR('HEM Table'!E70*52,0) -> 39240.18589 | AD71: =IFERROR('HEM Table'!F70*52,0) -> 40263.86216 | AE71: =IFERROR('HEM Table'!G70*52,0) -> 42266.65989 | AF71: =IFERROR('HEM Table'!H70*52,0) -> 45156.32074 | AG71: =IFERROR('HEM Table'!I70*52,0) -> 49290.79697 | AH71: =IFERROR('HEM Table'!J70*52,0) -> 53132.06917 | AI71: =IFERROR('HEM Table'!K70*52,0) -> 57701.03412 | AJ71: =IFERROR('HEM Table'!L70*52,0) -> 59979.60088 | AK71: =IFERROR('HEM Table'!M70*52,0) -> 62491.30742 | AL71: =IFERROR('HEM Table'!N70*52,0) -> 69035.46169 | AM71: =IFERROR('HEM Table'!O70*52,0) -> 75314.31713 | AN71: =IFERROR('HEM Table'!P70*52,0) -> 77472.96538 | AO71: =IFERROR('HEM Table'!P70*52,0) -> 77472.96538 | AS71: 2009 | AT71: SYD | AU71: Sydney
Y72: ADE C child3 | Z72: ADECY3 | AA72: =IFERROR('HEM Table'!C71*52,0) -> 43661.75768 | AB72: =IFERROR('HEM Table'!D71*52,0) -> 43661.75768 | AC72: =IFERROR('HEM Table'!E71*52,0) -> 43661.75768 | AD72: =IFERROR('HEM Table'!F71*52,0) -> 43661.75768 | AE72: =IFERROR('HEM Table'!G71*52,0) -> 45667.89689 | AF72: =IFERROR('HEM Table'!H71*52,0) -> 48562.38342 | AG72: =IFERROR('HEM Table'!I71*52,0) -> 52703.75576 | AH72: =IFERROR('HEM Table'!J71*52,0) -> 56551.44057 | AI72: =IFERROR('HEM Table'!K71*52,0) -> 61128.02567 | AJ72: =IFERROR('HEM Table'!L71*52,0) -> 63410.39744 | AK72: =IFERROR('HEM Table'!M71*52,0) -> 65926.29609 | AL72: =IFERROR('HEM Table'!N71*52,0) -> 72481.36641 | AM72: =IFERROR('HEM Table'!O71*52,0) -> 78770.69905 | AN72: =IFERROR('HEM Table'!P71*52,0) -> 80932.94932 | AO72: =IFERROR('HEM Table'!P71*52,0) -> 80932.94932 | AS72: 2010 | AT72: SYD | AU72: Sydney
Y73: ADE Single | Z73: ADESN | AA73: =IFERROR('HEM Table'!C72*52,0) -> 15888.20188 | AB73: =IFERROR('HEM Table'!D72*52,0) -> 16774.49192 | AC73: =IFERROR('HEM Table'!E72*52,0) -> 17490.69564 | AD73: =IFERROR('HEM Table'!F72*52,0) -> 18515.67926 | AE73: =IFERROR('HEM Table'!G72*52,0) -> 20521.04134 | AF73: =IFERROR('HEM Table'!H72*52,0) -> 23414.40497 | AG73: =IFERROR('HEM Table'!I72*52,0) -> 27554.17349 | AH73: =IFERROR('HEM Table'!J72*52,0) -> 31400.36497 | AI73: =IFERROR('HEM Table'!K72*52,0) -> 35975.179 | AJ73: =IFERROR('HEM Table'!L72*52,0) -> 38256.66417 | AK73: =IFERROR('HEM Table'!M72*52,0) -> 40771.58859 | AL73: =IFERROR('HEM Table'!N72*52,0) -> 47324.11807 | AM73: =IFERROR('HEM Table'!O72*52,0) -> 53611.01095 | AN73: =IFERROR('HEM Table'!P72*52,0) -> 55772.42312 | AO73: =IFERROR('HEM Table'!P72*52,0) -> 55772.42312 | AS73: 2011 | AT73: SYD | AU73: Sydney
Y74: ADE S child | Z74: ADESY | AA74: =IFERROR('HEM Table'!C73*52,0) -> 21998.74836 | AB74: =IFERROR('HEM Table'!D73*52,0) -> 21998.74836 | AC74: =IFERROR('HEM Table'!E73*52,0) -> 22713.78371 | AD74: =IFERROR('HEM Table'!F73*52,0) -> 23737.09701 | AE74: =IFERROR('HEM Table'!G73*52,0) -> 25739.18786 | AF74: =IFERROR('HEM Table'!H73*52,0) -> 28627.83144 | AG74: =IFERROR('HEM Table'!I73*52,0) -> 32760.84846 | AH74: =IFERROR('HEM Table'!J73*52,0) -> 36600.76869 | AI74: =IFERROR('HEM Table'!K73*52,0) -> 41168.11927 | AJ74: =IFERROR('HEM Table'!L73*52,0) -> 43445.88332 | AK74: =IFERROR('HEM Table'!M73*52,0) -> 45956.70589 | AL74: =IFERROR('HEM Table'!N73*52,0) -> 52498.55008 | AM74: =IFERROR('HEM Table'!O73*52,0) -> 58775.18709 | AN74: =IFERROR('HEM Table'!P73*52,0) -> 60933.07781 | AO74: =IFERROR('HEM Table'!P73*52,0) -> 60933.07781 | AS74: 2012 | AT74: SYD | AU74: Sydney
Y75: ADE S child2 | Z75: ADESY2 | AA75: =IFERROR('HEM Table'!C74*52,0) -> 27852.32348 | AB75: =IFERROR('HEM Table'!D74*52,0) -> 27852.32348 | AC75: =IFERROR('HEM Table'!E74*52,0) -> 28565.41235 | AD75: =IFERROR('HEM Table'!F74*52,0) -> 29585.93916 | AE75: =IFERROR('HEM Table'!G74*52,0) -> 31582.5797 | AF75: =IFERROR('HEM Table'!H74*52,0) -> 34463.35929 | AG75: =IFERROR('HEM Table'!I74*52,0) -> 38585.12302 | AH75: =IFERROR('HEM Table'!J74*52,0) -> 42414.5889 | AI75: =IFERROR('HEM Table'!K74*52,0) -> 46969.50465 | AJ75: =IFERROR('HEM Table'!L74*52,0) -> 49241.06548 | AK75: =IFERROR('HEM Table'!M74*52,0) -> 51745.05412 | AL75: =IFERROR('HEM Table'!N74*52,0) -> 58269.08593 | AM75: =IFERROR('HEM Table'!O74*52,0) -> 64528.63833 | AN75: =IFERROR('HEM Table'!P74*52,0) -> 66680.65027 | AO75: =IFERROR('HEM Table'!P74*52,0) -> 66680.65027 | AS75: 2015 | AT75: SYD | AU75: Sydney
Y76: ADE S child3 | Z76: ADESY3 | AA76: =IFERROR('HEM Table'!C75*52,0) -> 34417.04099 | AB76: =IFERROR('HEM Table'!D75*52,0) -> 34417.04099 | AC76: =IFERROR('HEM Table'!E75*52,0) -> 34417.04099 | AD76: =IFERROR('HEM Table'!F75*52,0) -> 35434.7813 | AE76: =IFERROR('HEM Table'!G75*52,0) -> 37425.97154 | AF76: =IFERROR('HEM Table'!H75*52,0) -> 40298.88714 | AG76: =IFERROR('HEM Table'!I75*52,0) -> 44409.39758 | AH76: =IFERROR('HEM Table'!J75*52,0) -> 48228.4091 | AI76: =IFERROR('HEM Table'!K75*52,0) -> 52770.89003 | AJ76: =IFERROR('HEM Table'!L75*52,0) -> 55036.24763 | AK76: =IFERROR('HEM Table'!M75*52,0) -> 57533.40235 | AL76: =IFERROR('HEM Table'!N75*52,0) -> 64039.62177 | AM76: =IFERROR('HEM Table'!O75*52,0) -> 70282.08956 | AN76: =IFERROR('HEM Table'!P75*52,0) -> 72428.22272 | AO76: =IFERROR('HEM Table'!P75*52,0) -> 72428.22272 | AS76: 2016 | AT76: SYD | AU76: Sydney
Y77: Balance of SA | AS77: 2017 | AT77: SYD | AU77: Sydney
Y78: SA Couple | Z78: SACN | AA78: =IFERROR('HEM Table'!C77*52,0) -> 28102.30903 | AB78: =IFERROR('HEM Table'!D77*52,0) -> 28102.30903 | AC78: =IFERROR('HEM Table'!E77*52,0) -> 28817.45879 | AD78: =IFERROR('HEM Table'!F77*52,0) -> 29840.93775 | AE78: =IFERROR('HEM Table'!G77*52,0) -> 31843.35412 | AF78: =IFERROR('HEM Table'!H77*52,0) -> 34732.46667 | AG78: =IFERROR('HEM Table'!I77*52,0) -> 38866.15373 | AH78: =IFERROR('HEM Table'!J77*52,0) -> 42706.69834 | AI78: =IFERROR('HEM Table'!K77*52,0) -> 47274.78947 | AJ78: =IFERROR('HEM Table'!L77*52,0) -> 49552.92621 | AK78: =IFERROR('HEM Table'!M77*52,0) -> 52064.15544 | AL78: =IFERROR('HEM Table'!N77*52,0) -> 58607.0598 | AM78: =IFERROR('HEM Table'!O77*52,0) -> 64884.71967 | AN78: =IFERROR('HEM Table'!P77*52,0) -> 67042.95497 | AO78: =IFERROR('HEM Table'!P77*52,0) -> 67042.95497 | AS78: 2018 | AT78: SYD | AU78: Sydney
Y79: SA C child | Z79: SACY | AA79: =IFERROR('HEM Table'!C78*52,0) -> 33297.92041 | AB79: =IFERROR('HEM Table'!D78*52,0) -> 33297.92041 | AC79: =IFERROR('HEM Table'!E78*52,0) -> 33297.92041 | AD79: =IFERROR('HEM Table'!F78*52,0) -> 34320.43192 | AE79: =IFERROR('HEM Table'!G78*52,0) -> 36320.9555 | AF79: =IFERROR('HEM Table'!H78*52,0) -> 39207.33519 | AG79: =IFERROR('HEM Table'!I78*52,0) -> 43337.11679 | AH79: =IFERROR('HEM Table'!J78*52,0) -> 47174.03111 | AI79: =IFERROR('HEM Table'!K78*52,0) -> 51737.80424 | AJ79: =IFERROR('HEM Table'!L78*52,0) -> 54013.78373 | AK79: =IFERROR('HEM Table'!M78*52,0) -> 56522.6421 | AL79: =IFERROR('HEM Table'!N78*52,0) -> 63059.36175 | AM79: =IFERROR('HEM Table'!O78*52,0) -> 69331.08764 | AN79: =IFERROR('HEM Table'!P78*52,0) -> 71487.28479 | AO79: =IFERROR('HEM Table'!P78*52,0) -> 71487.28479 | AS79: 2019 | AT79: SYD | AU79: Sydney
Y80: SA C child2 | Z80: SACY2 | AA80: =IFERROR('HEM Table'!C79*52,0) -> 37092.33579 | AB80: =IFERROR('HEM Table'!D79*52,0) -> 37092.33579 | AC80: =IFERROR('HEM Table'!E79*52,0) -> 37092.33579 | AD80: =IFERROR('HEM Table'!F79*52,0) -> 38116.00775 | AE80: =IFERROR('HEM Table'!G79*52,0) -> 40118.80739 | AF80: =IFERROR('HEM Table'!H79*52,0) -> 43008.46825 | AG80: =IFERROR('HEM Table'!I79*52,0) -> 47142.94448 | AH80: =IFERROR('HEM Table'!J79*52,0) -> 50984.22052 | AI80: =IFERROR('HEM Table'!K79*52,0) -> 55553.18163 | AJ80: =IFERROR('HEM Table'!L79*52,0) -> 57831.74839 | AK80: =IFERROR('HEM Table'!M79*52,0) -> 60343.45877 | AL80: =IFERROR('HEM Table'!N79*52,0) -> 66887.6092 | AM80: =IFERROR('HEM Table'!O79*52,0) -> 73166.46464 | AN80: =IFERROR('HEM Table'!P79*52,0) -> 75325.11289 | AO80: =IFERROR('HEM Table'!P79*52,0) -> 75325.11289 | AS80: 2020 | AT80: SYD | AU80: Sydney
Y81: SA C child3 | Z81: SACY3 | AA81: =IFERROR('HEM Table'!C80*52,0) -> 41510.32118 | AB81: =IFERROR('HEM Table'!D80*52,0) -> 41510.32118 | AC81: =IFERROR('HEM Table'!E80*52,0) -> 41510.32118 | AD81: =IFERROR('HEM Table'!F80*52,0) -> 41510.32118 | AE81: =IFERROR('HEM Table'!G80*52,0) -> 43516.46039 | AF81: =IFERROR('HEM Table'!H80*52,0) -> 46410.94692 | AG81: =IFERROR('HEM Table'!I80*52,0) -> 50552.31925 | AH81: =IFERROR('HEM Table'!J80*52,0) -> 54400.00407 | AI81: =IFERROR('HEM Table'!K80*52,0) -> 58976.58917 | AJ81: =IFERROR('HEM Table'!L80*52,0) -> 61258.96286 | AK81: =IFERROR('HEM Table'!M80*52,0) -> 63774.85959 | AL81: =IFERROR('HEM Table'!N80*52,0) -> 70329.93375 | AM81: =IFERROR('HEM Table'!O80*52,0) -> 76619.26254 | AN81: =IFERROR('HEM Table'!P80*52,0) -> 78781.51667 | AO81: =IFERROR('HEM Table'!P80*52,0) -> 78781.51667 | AS81: 2021 | AT81: SYD | AU81: Sydney
Y82: SA Single | Z82: SASN | AA82: =IFERROR('HEM Table'!C81*52,0) -> 13737.6005 | AB82: =IFERROR('HEM Table'!D81*52,0) -> 14623.8903 | AC82: =IFERROR('HEM Table'!E81*52,0) -> 15340.09307 | AD82: =IFERROR('HEM Table'!F81*52,0) -> 16365.07788 | AE82: =IFERROR('HEM Table'!G81*52,0) -> 18370.43973 | AF82: =IFERROR('HEM Table'!H81*52,0) -> 21263.80239 | AG82: =IFERROR('HEM Table'!I81*52,0) -> 25403.57092 | AH82: =IFERROR('HEM Table'!J81*52,0) -> 29249.76527 | AI82: =IFERROR('HEM Table'!K81*52,0) -> 33824.57643 | AJ82: =IFERROR('HEM Table'!L81*52,0) -> 36106.0616 | AK82: =IFERROR('HEM Table'!M81*52,0) -> 38620.98697 | AL82: =IFERROR('HEM Table'!N81*52,0) -> 45173.51742 | AM82: =IFERROR('HEM Table'!O81*52,0) -> 51460.40838 | AN82: =IFERROR('HEM Table'!P81*52,0) -> 53621.82438 | AO82: =IFERROR('HEM Table'!P81*52,0) -> 53621.82438 | AS82: 2022 | AT82: SYD | AU82: Sydney
Y83: SA S child | Z83: SASY | AA83: =IFERROR('HEM Table'!C82*52,0) -> 19851.65558 | AB83: =IFERROR('HEM Table'!D82*52,0) -> 19851.65558 | AC83: =IFERROR('HEM Table'!E82*52,0) -> 20566.68926 | AD83: =IFERROR('HEM Table'!F82*52,0) -> 21590.00208 | AE83: =IFERROR('HEM Table'!G82*52,0) -> 23592.09341 | AF83: =IFERROR('HEM Table'!H82*52,0) -> 26480.73699 | AG83: =IFERROR('HEM Table'!I82*52,0) -> 30613.75353 | AH83: =IFERROR('HEM Table'!J82*52,0) -> 34453.67376 | AI83: =IFERROR('HEM Table'!K82*52,0) -> 39021.02434 | AJ83: =IFERROR('HEM Table'!L82*52,0) -> 41298.78839 | AK83: =IFERROR('HEM Table'!M82*52,0) -> 43809.61095 | AL83: =IFERROR('HEM Table'!N82*52,0) -> 50351.45515 | AM83: =IFERROR('HEM Table'!O82*52,0) -> 56628.09599 | AN83: =IFERROR('HEM Table'!P82*52,0) -> 58785.98288 | AO83: =IFERROR('HEM Table'!P82*52,0) -> 58785.98288 | AS83: 2023 | AT83: SYD | AU83: Sydney
Y84: SA S child2 | Z84: SASY2 | AA84: =IFERROR('HEM Table'!C83*52,0) -> 25711.07602 | AB84: =IFERROR('HEM Table'!D83*52,0) -> 25711.07602 | AC84: =IFERROR('HEM Table'!E83*52,0) -> 26424.16299 | AD84: =IFERROR('HEM Table'!F83*52,0) -> 27444.69027 | AE84: =IFERROR('HEM Table'!G83*52,0) -> 29441.33033 | AF84: =IFERROR('HEM Table'!H83*52,0) -> 32322.10992 | AG84: =IFERROR('HEM Table'!I83*52,0) -> 36443.87366 | AH84: =IFERROR('HEM Table'!J83*52,0) -> 40273.34049 | AI84: =IFERROR('HEM Table'!K83*52,0) -> 44828.25528 | AJ84: =IFERROR('HEM Table'!L83*52,0) -> 47099.81993 | AK84: =IFERROR('HEM Table'!M83*52,0) -> 49603.80571 | AL84: =IFERROR('HEM Table'!N83*52,0) -> 56127.83656 | AM84: =IFERROR('HEM Table'!O83*52,0) -> 62387.38896 | AN84: =IFERROR('HEM Table'!P83*52,0) -> 64539.4009 | AO84: =IFERROR('HEM Table'!P83*52,0) -> 64539.4009 | AS84: 2024 | AT84: SYD | AU84: Sydney
Y85: SA S child3 | Z85: SASY3 | AA85: =IFERROR('HEM Table'!C84*52,0) -> 32281.63671 | AB85: =IFERROR('HEM Table'!D84*52,0) -> 32281.63671 | AC85: =IFERROR('HEM Table'!E84*52,0) -> 32281.63671 | AD85: =IFERROR('HEM Table'!F84*52,0) -> 33299.37846 | AE85: =IFERROR('HEM Table'!G84*52,0) -> 35290.56726 | AF85: =IFERROR('HEM Table'!H84*52,0) -> 38163.48286 | AG85: =IFERROR('HEM Table'!I84*52,0) -> 42273.99378 | AH85: =IFERROR('HEM Table'!J84*52,0) -> 46093.00721 | AI85: =IFERROR('HEM Table'!K84*52,0) -> 50635.48623 | AJ85: =IFERROR('HEM Table'!L84*52,0) -> 52900.85147 | AK85: =IFERROR('HEM Table'!M84*52,0) -> 55398.00046 | AL85: =IFERROR('HEM Table'!N84*52,0) -> 61904.21797 | AM85: =IFERROR('HEM Table'!O84*52,0) -> 68146.68193 | AN85: =IFERROR('HEM Table'!P84*52,0) -> 70292.81892 | AO85: =IFERROR('HEM Table'!P84*52,0) -> 70292.81892 | AS85: 2025 | AT85: SYD | AU85: Sydney
Y86: Perth | AS86: 2026 | AT86: SYD | AU86: Sydney
Y87: PER Couple | Z87: PERCN | AA87: =IFERROR('HEM Table'!C86*52,0) -> 26862.94393 | AB87: =IFERROR('HEM Table'!D86*52,0) -> 26862.94393 | AC87: =IFERROR('HEM Table'!E86*52,0) -> 27578.09562 | AD87: =IFERROR('HEM Table'!F86*52,0) -> 28601.57457 | AE87: =IFERROR('HEM Table'!G86*52,0) -> 30603.99094 | AF87: =IFERROR('HEM Table'!H86*52,0) -> 33493.10158 | AG87: =IFERROR('HEM Table'!I86*52,0) -> 37626.79104 | AH87: =IFERROR('HEM Table'!J86*52,0) -> 41467.33277 | AI87: =IFERROR('HEM Table'!K86*52,0) -> 46035.42486 | AJ87: =IFERROR('HEM Table'!L86*52,0) -> 48313.56063 | AK87: =IFERROR('HEM Table'!M86*52,0) -> 50824.78987 | AL87: =IFERROR('HEM Table'!N86*52,0) -> 57367.6971 | AM87: =IFERROR('HEM Table'!O86*52,0) -> 63645.35313 | AN87: =IFERROR('HEM Table'!P86*52,0) -> 65803.59036 | AO87: =IFERROR('HEM Table'!P86*52,0) -> 65803.59036 | AS87: 2027 | AT87: SYD | AU87: Sydney
Y88: PER C child | Z88: PERCY | AA88: =IFERROR('HEM Table'!C87*52,0) -> 32059.72682 | AB88: =IFERROR('HEM Table'!D87*52,0) -> 32059.72682 | AC88: =IFERROR('HEM Table'!E87*52,0) -> 32059.72682 | AD88: =IFERROR('HEM Table'!F87*52,0) -> 33082.23833 | AE88: =IFERROR('HEM Table'!G87*52,0) -> 35082.76144 | AF88: =IFERROR('HEM Table'!H87*52,0) -> 37969.14305 | AG88: =IFERROR('HEM Table'!I87*52,0) -> 42098.92369 | AH88: =IFERROR('HEM Table'!J87*52,0) -> 45935.83706 | AI88: =IFERROR('HEM Table'!K87*52,0) -> 50499.61114 | AJ88: =IFERROR('HEM Table'!L87*52,0) -> 52775.5935 | AK88: =IFERROR('HEM Table'!M87*52,0) -> 55284.44804 | AL88: =IFERROR('HEM Table'!N87*52,0) -> 61821.16865 | AM88: =IFERROR('HEM Table'!O87*52,0) -> 68092.89454 | AN88: =IFERROR('HEM Table'!P87*52,0) -> 70249.08977 | AO88: =IFERROR('HEM Table'!P87*52,0) -> 70249.08977 | AS88: 2028 | AT88: SYD | AU88: Sydney
Y89: PER C child2 | Z89: PERCY2 | AA89: =IFERROR('HEM Table'!C88*52,0) -> 35852.73466 | AB89: =IFERROR('HEM Table'!D88*52,0) -> 35852.73466 | AC89: =IFERROR('HEM Table'!E88*52,0) -> 35852.73466 | AD89: =IFERROR('HEM Table'!F88*52,0) -> 36876.40854 | AE89: =IFERROR('HEM Table'!G88*52,0) -> 38879.20627 | AF89: =IFERROR('HEM Table'!H88*52,0) -> 41768.86665 | AG89: =IFERROR('HEM Table'!I88*52,0) -> 45903.34384 | AH89: =IFERROR('HEM Table'!J88*52,0) -> 49744.61891 | AI89: =IFERROR('HEM Table'!K88*52,0) -> 54313.58098 | AJ89: =IFERROR('HEM Table'!L88*52,0) -> 56592.14679 | AK89: =IFERROR('HEM Table'!M88*52,0) -> 59103.85812 | AL89: =IFERROR('HEM Table'!N88*52,0) -> 65648.00855 | AM89: =IFERROR('HEM Table'!O88*52,0) -> 71926.86399 | AN89: =IFERROR('HEM Table'!P88*52,0) -> 74085.51032 | AO89: =IFERROR('HEM Table'!P88*52,0) -> 74085.51032 | AS89: 2029 | AT89: SYD | AU89: Sydney
Y90: PER C child3 | Z90: PERCY3 | AA90: =IFERROR('HEM Table'!C89*52,0) -> 40268.65159 | AB90: =IFERROR('HEM Table'!D89*52,0) -> 40268.65159 | AC90: =IFERROR('HEM Table'!E89*52,0) -> 40268.65159 | AD90: =IFERROR('HEM Table'!F89*52,0) -> 40268.65159 | AE90: =IFERROR('HEM Table'!G89*52,0) -> 42274.79513 | AF90: =IFERROR('HEM Table'!H89*52,0) -> 45169.27781 | AG90: =IFERROR('HEM Table'!I89*52,0) -> 49310.65303 | AH90: =IFERROR('HEM Table'!J89*52,0) -> 53158.33496 | AI90: =IFERROR('HEM Table'!K89*52,0) -> 57734.92006 | AJ90: =IFERROR('HEM Table'!L89*52,0) -> 60017.29279 | AK90: =IFERROR('HEM Table'!M89*52,0) -> 62533.19048 | AL90: =IFERROR('HEM Table'!N89*52,0) -> 69088.26465 | AM90: =IFERROR('HEM Table'!O89*52,0) -> 75377.59344 | AN90: =IFERROR('HEM Table'!P89*52,0) -> 77539.84756 | AO90: =IFERROR('HEM Table'!P89*52,0) -> 77539.84756 | AS90: 2030 | AT90: SYD | AU90: Sydney
Y91: PER Single | Z91: PERSN | AA91: =IFERROR('HEM Table'!C90*52,0) -> 12496.41208 | AB91: =IFERROR('HEM Table'!D90*52,0) -> 13382.70296 | AC91: =IFERROR('HEM Table'!E90*52,0) -> 14098.90573 | AD91: =IFERROR('HEM Table'!F90*52,0) -> 15123.89055 | AE91: =IFERROR('HEM Table'!G90*52,0) -> 17129.25239 | AF91: =IFERROR('HEM Table'!H90*52,0) -> 20022.61409 | AG91: =IFERROR('HEM Table'!I90*52,0) -> 24162.38262 | AH91: =IFERROR('HEM Table'!J90*52,0) -> 28008.57649 | AI91: =IFERROR('HEM Table'!K90*52,0) -> 32583.38861 | AJ91: =IFERROR('HEM Table'!L90*52,0) -> 34864.87378 | AK91: =IFERROR('HEM Table'!M90*52,0) -> 37379.7982 | AL91: =IFERROR('HEM Table'!N90*52,0) -> 43932.3296 | AM91: =IFERROR('HEM Table'!O90*52,0) -> 50219.2244 | AN91: =IFERROR('HEM Table'!P90*52,0) -> 52380.63656 | AO91: =IFERROR('HEM Table'!P90*52,0) -> 52380.63656 | AS91: 2031 | AT91: SYD | AU91: Sydney
Y92: PER S child | Z92: PERSY | AA92: =IFERROR('HEM Table'!C91*52,0) -> 18612.49167 | AB92: =IFERROR('HEM Table'!D91*52,0) -> 18612.49167 | AC92: =IFERROR('HEM Table'!E91*52,0) -> 19327.52631 | AD92: =IFERROR('HEM Table'!F91*52,0) -> 20350.83817 | AE92: =IFERROR('HEM Table'!G91*52,0) -> 22352.93141 | AF92: =IFERROR('HEM Table'!H91*52,0) -> 25241.57307 | AG92: =IFERROR('HEM Table'!I91*52,0) -> 29374.59105 | AH92: =IFERROR('HEM Table'!J91*52,0) -> 33214.51033 | AI92: =IFERROR('HEM Table'!K91*52,0) -> 37781.85994 | AJ92: =IFERROR('HEM Table'!L91*52,0) -> 40059.62688 | AK92: =IFERROR('HEM Table'!M91*52,0) -> 42570.44752 | AL92: =IFERROR('HEM Table'!N91*52,0) -> 49112.29171 | AM92: =IFERROR('HEM Table'!O91*52,0) -> 55388.93256 | AN92: =IFERROR('HEM Table'!P91*52,0) -> 57546.81945 | AO92: =IFERROR('HEM Table'!P91*52,0) -> 57546.81945 | AS92: 2032 | AT92: SYD | AU92: Sydney
Y93: PER S child2 | Z93: PERSY2 | AA93: =IFERROR('HEM Table'!C92*52,0) -> 24475.28579 | AB93: =IFERROR('HEM Table'!D92*52,0) -> 24475.28579 | AC93: =IFERROR('HEM Table'!E92*52,0) -> 25188.37276 | AD93: =IFERROR('HEM Table'!F92*52,0) -> 26208.90004 | AE93: =IFERROR('HEM Table'!G92*52,0) -> 28205.5401 | AF93: =IFERROR('HEM Table'!H92*52,0) -> 31086.31921 | AG93: =IFERROR('HEM Table'!I92*52,0) -> 35208.0839 | AH93: =IFERROR('HEM Table'!J92*52,0) -> 39037.54978 | AI93: =IFERROR('HEM Table'!K92*52,0) -> 43592.46553 | AJ93: =IFERROR('HEM Table'!L92*52,0) -> 45864.03018 | AK93: =IFERROR('HEM Table'!M92*52,0) -> 48368.015 | AL93: =IFERROR('HEM Table'!N92*52,0) -> 54892.0468 | AM93: =IFERROR('HEM Table'!O92*52,0) -> 61151.59921 | AN93: =IFERROR('HEM Table'!P92*52,0) -> 63303.61115 | AO93: =IFERROR('HEM Table'!P92*52,0) -> 63303.61115 | AS93: 2033 | AT93: SYD | AU93: Sydney
Y94: PER S child3 | Z94: PERSY3 | AA94: =IFERROR('HEM Table'!C93*52,0) -> 31049.2192 | AB94: =IFERROR('HEM Table'!D93*52,0) -> 31049.2192 | AC94: =IFERROR('HEM Table'!E93*52,0) -> 31049.2192 | AD94: =IFERROR('HEM Table'!F93*52,0) -> 32066.96191 | AE94: =IFERROR('HEM Table'!G93*52,0) -> 34058.14879 | AF94: =IFERROR('HEM Table'!H93*52,0) -> 36931.06535 | AG94: =IFERROR('HEM Table'!I93*52,0) -> 41041.57675 | AH94: =IFERROR('HEM Table'!J93*52,0) -> 44860.58923 | AI94: =IFERROR('HEM Table'!K93*52,0) -> 49403.07111 | AJ94: =IFERROR('HEM Table'!L93*52,0) -> 51668.43348 | AK94: =IFERROR('HEM Table'!M93*52,0) -> 54165.58247 | AL94: =IFERROR('HEM Table'!N93*52,0) -> 60671.8019 | AM94: =IFERROR('HEM Table'!O93*52,0) -> 66914.26585 | AN94: =IFERROR('HEM Table'!P93*52,0) -> 69060.40285 | AO94: =IFERROR('HEM Table'!P93*52,0) -> 69060.40285 | AS94: 2034 | AT94: SYD | AU94: Sydney
Y95: Balance of WA | AS95: 2035 | AT95: SYD | AU95: Sydney
Y96: WA Couple | Z96: WACN | AA96: =IFERROR('HEM Table'!C95*52,0) -> 29932.70104 | AB96: =IFERROR('HEM Table'!D95*52,0) -> 29932.70104 | AC96: =IFERROR('HEM Table'!E95*52,0) -> 30647.85273 | AD96: =IFERROR('HEM Table'!F95*52,0) -> 31671.33024 | AE96: =IFERROR('HEM Table'!G95*52,0) -> 33673.74661 | AF96: =IFERROR('HEM Table'!H95*52,0) -> 36562.85917 | AG96: =IFERROR('HEM Table'!I95*52,0) -> 40696.54814 | AH96: =IFERROR('HEM Table'!J95*52,0) -> 44537.09084 | AI96: =IFERROR('HEM Table'!K95*52,0) -> 49105.18388 | AJ96: =IFERROR('HEM Table'!L95*52,0) -> 51383.31582 | AK96: =IFERROR('HEM Table'!M95*52,0) -> 53894.5489 | AL96: =IFERROR('HEM Table'!N95*52,0) -> 60437.45325 | AM96: =IFERROR('HEM Table'!O95*52,0) -> 66715.11312 | AN96: =IFERROR('HEM Table'!P95*52,0) -> 68873.35034 | AO96: =IFERROR('HEM Table'!P95*52,0) -> 68873.35034 | AS96: 2036 | AT96: SYD | AU96: Sydney
Y97: WA C child | Z97: WACY | AA97: =IFERROR('HEM Table'!C96*52,0) -> 35126.58224 | AB97: =IFERROR('HEM Table'!D96*52,0) -> 35126.58224 | AC97: =IFERROR('HEM Table'!E96*52,0) -> 35126.58224 | AD97: =IFERROR('HEM Table'!F96*52,0) -> 36149.09375 | AE97: =IFERROR('HEM Table'!G96*52,0) -> 38149.61685 | AF97: =IFERROR('HEM Table'!H96*52,0) -> 41035.99846 | AG97: =IFERROR('HEM Table'!I96*52,0) -> 45165.77718 | AH97: =IFERROR('HEM Table'!J96*52,0) -> 49002.69055 | AI97: =IFERROR('HEM Table'!K96*52,0) -> 53566.46464 | AJ97: =IFERROR('HEM Table'!L96*52,0) -> 55842.447 | AK97: =IFERROR('HEM Table'!M96*52,0) -> 58351.30153 | AL97: =IFERROR('HEM Table'!N96*52,0) -> 64888.02502 | AM97: =IFERROR('HEM Table'!O96*52,0) -> 71159.74708 | AN97: =IFERROR('HEM Table'!P96*52,0) -> 73315.94422 | AO97: =IFERROR('HEM Table'!P96*52,0) -> 73315.94422 | AS97: 2037 | AT97: SYD | AU97: Sydney
Y98: WA C child2 | Z98: WACY2 | AA98: =IFERROR('HEM Table'!C97*52,0) -> 38923.0764 | AB98: =IFERROR('HEM Table'!D97*52,0) -> 38923.0764 | AC98: =IFERROR('HEM Table'!E97*52,0) -> 38923.0764 | AD98: =IFERROR('HEM Table'!F97*52,0) -> 39946.74884 | AE98: =IFERROR('HEM Table'!G97*52,0) -> 41949.54561 | AF98: =IFERROR('HEM Table'!H97*52,0) -> 44839.21126 | AG98: =IFERROR('HEM Table'!I97*52,0) -> 48973.68365 | AH98: =IFERROR('HEM Table'!J97*52,0) -> 52814.95969 | AI98: =IFERROR('HEM Table'!K97*52,0) -> 57383.9208 | AJ98: =IFERROR('HEM Table'!L97*52,0) -> 59662.49044 | AK98: =IFERROR('HEM Table'!M97*52,0) -> 62174.19698 | AL98: =IFERROR('HEM Table'!N97*52,0) -> 68718.35125 | AM98: =IFERROR('HEM Table'!O97*52,0) -> 74997.20285 | AN98: =IFERROR('HEM Table'!P97*52,0) -> 77155.8511 | AO98: =IFERROR('HEM Table'!P97*52,0) -> 77155.8511 | AS98: 2038 | AT98: SYD | AU98: Sydney
Y99: WA C child3 | Z99: WACY3 | AA99: =IFERROR('HEM Table'!C98*52,0) -> 43344.11905 | AB99: =IFERROR('HEM Table'!D98*52,0) -> 43344.11905 | AC99: =IFERROR('HEM Table'!E98*52,0) -> 43344.11905 | AD99: =IFERROR('HEM Table'!F98*52,0) -> 43344.11905 | AE99: =IFERROR('HEM Table'!G98*52,0) -> 45350.25826 | AF99: =IFERROR('HEM Table'!H98*52,0) -> 48244.74095 | AG99: =IFERROR('HEM Table'!I98*52,0) -> 52386.11617 | AH99: =IFERROR('HEM Table'!J98*52,0) -> 56233.80194 | AI99: =IFERROR('HEM Table'!K98*52,0) -> 60810.388 | AJ99: =IFERROR('HEM Table'!L98*52,0) -> 63092.75977 | AK99: =IFERROR('HEM Table'!M98*52,0) -> 65608.65842 | AL99: =IFERROR('HEM Table'!N98*52,0) -> 72163.72874 | AM99: =IFERROR('HEM Table'!O98*52,0) -> 78453.05946 | AN99: =IFERROR('HEM Table'!P98*52,0) -> 80615.30973 | AO99: =IFERROR('HEM Table'!P98*52,0) -> 80615.30973 | AS99: 2039 | AT99: SYD | AU99: Sydney
Y100: WA Single | Z100: WASN | AA100: =IFERROR('HEM Table'!C99*52,0) -> 15570.68517 | AB100: =IFERROR('HEM Table'!D99*52,0) -> 16456.97521 | AC100: =IFERROR('HEM Table'!E99*52,0) -> 17173.17894 | AD100: =IFERROR('HEM Table'!F99*52,0) -> 18198.16279 | AE100: =IFERROR('HEM Table'!G99*52,0) -> 20203.52439 | AF100: =IFERROR('HEM Table'!H99*52,0) -> 23096.88754 | AG100: =IFERROR('HEM Table'!I99*52,0) -> 27236.65558 | AH100: =IFERROR('HEM Table'!J99*52,0) -> 31082.84946 | AI100: =IFERROR('HEM Table'!K99*52,0) -> 35657.66157 | AJ100: =IFERROR('HEM Table'!L99*52,0) -> 37939.14675 | AK100: =IFERROR('HEM Table'!M99*52,0) -> 40454.07116 | AL100: =IFERROR('HEM Table'!N99*52,0) -> 47006.60352 | AM100: =IFERROR('HEM Table'!O99*52,0) -> 53293.49641 | AN100: =IFERROR('HEM Table'!P99*52,0) -> 55454.90665 | AO100: =IFERROR('HEM Table'!P99*52,0) -> 55454.90665 | AS100: 2040 | AT100: SYD | AU100: Sydney
Y101: WA S child | Z101: WASY | AA101: =IFERROR('HEM Table'!C100*52,0) -> 21681.75048 | AB101: =IFERROR('HEM Table'!D100*52,0) -> 21681.75048 | AC101: =IFERROR('HEM Table'!E100*52,0) -> 22396.78416 | AD101: =IFERROR('HEM Table'!F100*52,0) -> 23420.09746 | AE101: =IFERROR('HEM Table'!G100*52,0) -> 25422.18831 | AF101: =IFERROR('HEM Table'!H100*52,0) -> 28310.83188 | AG101: =IFERROR('HEM Table'!I100*52,0) -> 32443.84794 | AH101: =IFERROR('HEM Table'!J100*52,0) -> 36283.76914 | AI101: =IFERROR('HEM Table'!K100*52,0) -> 40851.11971 | AJ101: =IFERROR('HEM Table'!L100*52,0) -> 43128.88377 | AK101: =IFERROR('HEM Table'!M100*52,0) -> 45639.70633 | AL101: =IFERROR('HEM Table'!N100*52,0) -> 52181.54956 | AM101: =IFERROR('HEM Table'!O100*52,0) -> 58458.18849 | AN101: =IFERROR('HEM Table'!P100*52,0) -> 60616.07538 | AO101: =IFERROR('HEM Table'!P100*52,0) -> 60616.07538 | AS101: 2041 | AT101: SYD | AU101: Sydney
Y102: WA S child2 | Z102: WASY2 | AA102: =IFERROR('HEM Table'!C101*52,0) -> 27536.18888 | AB102: =IFERROR('HEM Table'!D101*52,0) -> 27536.18888 | AC102: =IFERROR('HEM Table'!E101*52,0) -> 28249.27584 | AD102: =IFERROR('HEM Table'!F101*52,0) -> 29269.80265 | AE102: =IFERROR('HEM Table'!G101*52,0) -> 31266.44319 | AF102: =IFERROR('HEM Table'!H101*52,0) -> 34147.22182 | AG102: =IFERROR('HEM Table'!I101*52,0) -> 38268.98651 | AH102: =IFERROR('HEM Table'!J101*52,0) -> 42098.45239 | AI102: =IFERROR('HEM Table'!K101*52,0) -> 46653.37005 | AJ102: =IFERROR('HEM Table'!L101*52,0) -> 48924.93088 | AK102: =IFERROR('HEM Table'!M101*52,0) -> 51428.92048 | AL102: =IFERROR('HEM Table'!N101*52,0) -> 57952.95228 | AM102: =IFERROR('HEM Table'!O101*52,0) -> 64212.50469 | AN102: =IFERROR('HEM Table'!P101*52,0) -> 66364.51471 | AO102: =IFERROR('HEM Table'!P101*52,0) -> 66364.51471 | AS102: 2042 | AT102: SYD | AU102: Sydney
Y103: WA S child3 | Z103: WASY3 | AA103: =IFERROR('HEM Table'!C102*52,0) -> 34101.76753 | AB103: =IFERROR('HEM Table'!D102*52,0) -> 34101.76753 | AC103: =IFERROR('HEM Table'!E102*52,0) -> 34101.76753 | AD103: =IFERROR('HEM Table'!F102*52,0) -> 35119.50784 | AE103: =IFERROR('HEM Table'!G102*52,0) -> 37110.69807 | AF103: =IFERROR('HEM Table'!H102*52,0) -> 39983.61176 | AG103: =IFERROR('HEM Table'!I102*52,0) -> 44094.12508 | AH103: =IFERROR('HEM Table'!J102*52,0) -> 47913.13564 | AI103: =IFERROR('HEM Table'!K102*52,0) -> 52455.62039 | AJ103: =IFERROR('HEM Table'!L102*52,0) -> 54720.97799 | AK103: =IFERROR('HEM Table'!M102*52,0) -> 57218.13462 | AL103: =IFERROR('HEM Table'!N102*52,0) -> 63724.355 | AM103: =IFERROR('HEM Table'!O102*52,0) -> 69966.82088 | AN103: =IFERROR('HEM Table'!P102*52,0) -> 72112.95405 | AO103: =IFERROR('HEM Table'!P102*52,0) -> 72112.95405 | AS103: 2043 | AT103: SYD | AU103: Sydney
Y104: Hobart | AS104: 2044 | AT104: SYD | AU104: Sydney
Y105: HOB Couple | Z105: HOBCN | AA105: =IFERROR('HEM Table'!C104*52,0) -> 30604.22632 | AB105: =IFERROR('HEM Table'!D104*52,0) -> 30604.22632 | AC105: =IFERROR('HEM Table'!E104*52,0) -> 31319.378 | AD105: =IFERROR('HEM Table'!F104*52,0) -> 32342.85744 | AE105: =IFERROR('HEM Table'!G104*52,0) -> 34345.27381 | AF105: =IFERROR('HEM Table'!H104*52,0) -> 37234.38636 | AG105: =IFERROR('HEM Table'!I104*52,0) -> 41368.07342 | AH105: =IFERROR('HEM Table'!J104*52,0) -> 45208.61611 | AI105: =IFERROR('HEM Table'!K104*52,0) -> 49776.70724 | AJ105: =IFERROR('HEM Table'!L104*52,0) -> 52054.84398 | AK105: =IFERROR('HEM Table'!M104*52,0) -> 54566.0713 | AL105: =IFERROR('HEM Table'!N104*52,0) -> 61108.97949 | AM105: =IFERROR('HEM Table'!O104*52,0) -> 67386.63552 | AN105: =IFERROR('HEM Table'!P104*52,0) -> 69544.87658 | AO105: =IFERROR('HEM Table'!P104*52,0) -> 69544.87658 | AS105: 2045 | AT105: SYD | AU105: Sydney
Y106: HOB C child | Z106: HOBCY | AA106: =IFERROR('HEM Table'!C105*52,0) -> 35797.47275 | AB106: =IFERROR('HEM Table'!D105*52,0) -> 35797.47275 | AC106: =IFERROR('HEM Table'!E105*52,0) -> 35797.47275 | AD106: =IFERROR('HEM Table'!F105*52,0) -> 36819.98426 | AE106: =IFERROR('HEM Table'!G105*52,0) -> 38820.50737 | AF106: =IFERROR('HEM Table'!H105*52,0) -> 41706.88993 | AG106: =IFERROR('HEM Table'!I105*52,0) -> 45836.66962 | AH106: =IFERROR('HEM Table'!J105*52,0) -> 49673.58298 | AI106: =IFERROR('HEM Table'!K105*52,0) -> 54237.35707 | AJ106: =IFERROR('HEM Table'!L105*52,0) -> 56513.33943 | AK106: =IFERROR('HEM Table'!M105*52,0) -> 59022.19492 | AL106: =IFERROR('HEM Table'!N105*52,0) -> 65558.91458 | AM106: =IFERROR('HEM Table'!O105*52,0) -> 71830.64047 | AN106: =IFERROR('HEM Table'!P105*52,0) -> 73986.8357 | AO106: =IFERROR('HEM Table'!P105*52,0) -> 73986.8357 | AS106: 2046 | AT106: SYD | AU106: Sydney
Y107: HOB C child2 | Z107: HOBCY2 | AA107: =IFERROR('HEM Table'!C106*52,0) -> 39594.72957 | AB107: =IFERROR('HEM Table'!D106*52,0) -> 39594.72957 | AC107: =IFERROR('HEM Table'!E106*52,0) -> 39594.72957 | AD107: =IFERROR('HEM Table'!F106*52,0) -> 40618.40344 | AE107: =IFERROR('HEM Table'!G106*52,0) -> 42621.20165 | AF107: =IFERROR('HEM Table'!H106*52,0) -> 45510.86251 | AG107: =IFERROR('HEM Table'!I106*52,0) -> 49645.33874 | AH107: =IFERROR('HEM Table'!J106*52,0) -> 53486.61477 | AI107: =IFERROR('HEM Table'!K106*52,0) -> 58055.57589 | AJ107: =IFERROR('HEM Table'!L106*52,0) -> 60334.14553 | AK107: =IFERROR('HEM Table'!M106*52,0) -> 62845.85302 | AL107: =IFERROR('HEM Table'!N106*52,0) -> 69390.00346 | AM107: =IFERROR('HEM Table'!O106*52,0) -> 75668.85889 | AN107: =IFERROR('HEM Table'!P106*52,0) -> 77827.50715 | AO107: =IFERROR('HEM Table'!P106*52,0) -> 77827.50715 | AS107: 2047 | AT107: SYD | AU107: Sydney
Y108: HOB C child3 | Z108: HOBCY3 | AA108: =IFERROR('HEM Table'!C107*52,0) -> 44016.89489 | AB108: =IFERROR('HEM Table'!D107*52,0) -> 44016.89489 | AC108: =IFERROR('HEM Table'!E107*52,0) -> 44016.89489 | AD108: =IFERROR('HEM Table'!F107*52,0) -> 44016.89489 | AE108: =IFERROR('HEM Table'!G107*52,0) -> 46023.03411 | AF108: =IFERROR('HEM Table'!H107*52,0) -> 48917.51679 | AG108: =IFERROR('HEM Table'!I107*52,0) -> 53058.89201 | AH108: =IFERROR('HEM Table'!J107*52,0) -> 56906.57394 | AI108: =IFERROR('HEM Table'!K107*52,0) -> 61483.16288 | AJ108: =IFERROR('HEM Table'!L107*52,0) -> 63765.53081 | AK108: =IFERROR('HEM Table'!M107*52,0) -> 66281.4333 | AL108: =IFERROR('HEM Table'!N107*52,0) -> 72836.50362 | AM108: =IFERROR('HEM Table'!O107*52,0) -> 79125.83626 | AN108: =IFERROR('HEM Table'!P107*52,0) -> 81288.08654 | AO108: =IFERROR('HEM Table'!P107*52,0) -> 81288.08654 | AS108: 2048 | AT108: SYD | AU108: Sydney
Y109: HOB Single | Z109: HOBSN | AA109: =IFERROR('HEM Table'!C108*52,0) -> 16243.19927 | AB109: =IFERROR('HEM Table'!D108*52,0) -> 17129.48931 | AC109: =IFERROR('HEM Table'!E108*52,0) -> 17845.69232 | AD109: =IFERROR('HEM Table'!F108*52,0) -> 18870.67689 | AE109: =IFERROR('HEM Table'!G108*52,0) -> 20876.0385 | AF109: =IFERROR('HEM Table'!H108*52,0) -> 23769.40068 | AG109: =IFERROR('HEM Table'!I108*52,0) -> 27909.17113 | AH109: =IFERROR('HEM Table'!J108*52,0) -> 31755.3626 | AI109: =IFERROR('HEM Table'!K108*52,0) -> 36330.17472 | AJ109: =IFERROR('HEM Table'!L108*52,0) -> 38611.66181 | AK109: =IFERROR('HEM Table'!M108*52,0) -> 41126.5843 | AL109: =IFERROR('HEM Table'!N108*52,0) -> 47679.11571 | AM109: =IFERROR('HEM Table'!O108*52,0) -> 53966.01051 | AN109: =IFERROR('HEM Table'!P108*52,0) -> 56127.42267 | AO109: =IFERROR('HEM Table'!P108*52,0) -> 56127.42267 | AS109: 2049 | AT109: SYD | AU109: Sydney
Y110: HOB S child | Z110: HOBSY | AA110: =IFERROR('HEM Table'!C109*52,0) -> 22353.16675 | AB110: =IFERROR('HEM Table'!D109*52,0) -> 22353.16675 | AC110: =IFERROR('HEM Table'!E109*52,0) -> 23068.20235 | AD110: =IFERROR('HEM Table'!F109*52,0) -> 24091.51565 | AE110: =IFERROR('HEM Table'!G109*52,0) -> 26093.6065 | AF110: =IFERROR('HEM Table'!H109*52,0) -> 28982.24815 | AG110: =IFERROR('HEM Table'!I109*52,0) -> 33115.26613 | AH110: =IFERROR('HEM Table'!J109*52,0) -> 36955.18541 | AI110: =IFERROR('HEM Table'!K109*52,0) -> 41522.53598 | AJ110: =IFERROR('HEM Table'!L109*52,0) -> 43800.30196 | AK110: =IFERROR('HEM Table'!M109*52,0) -> 46311.1226 | AL110: =IFERROR('HEM Table'!N109*52,0) -> 52852.96679 | AM110: =IFERROR('HEM Table'!O109*52,0) -> 59129.60764 | AN110: =IFERROR('HEM Table'!P109*52,0) -> 61287.49453 | AO110: =IFERROR('HEM Table'!P109*52,0) -> 61287.49453 | AS110: 2050 | AT110: SYD | AU110: Sydney
Y111: HOB S child2 | Z111: HOBSY2 | AA111: =IFERROR('HEM Table'!C110*52,0) -> 28205.77719 | AB111: =IFERROR('HEM Table'!D110*52,0) -> 28205.77719 | AC111: =IFERROR('HEM Table'!E110*52,0) -> 28918.86607 | AD111: =IFERROR('HEM Table'!F110*52,0) -> 29939.39096 | AE111: =IFERROR('HEM Table'!G110*52,0) -> 31936.03293 | AF111: =IFERROR('HEM Table'!H110*52,0) -> 34816.81013 | AG111: =IFERROR('HEM Table'!I110*52,0) -> 38938.57673 | AH111: =IFERROR('HEM Table'!J110*52,0) -> 42768.0407 | AI111: =IFERROR('HEM Table'!K110*52,0) -> 47322.95645 | AJ111: =IFERROR('HEM Table'!L110*52,0) -> 49594.5211 | AK111: =IFERROR('HEM Table'!M110*52,0) -> 52098.50592 | AL111: =IFERROR('HEM Table'!N110*52,0) -> 58622.54155 | AM111: =IFERROR('HEM Table'!O110*52,0) -> 64882.09013 | AN111: =IFERROR('HEM Table'!P110*52,0) -> 67034.10207 | AO111: =IFERROR('HEM Table'!P110*52,0) -> 67034.10207 | AS111: 2052 | AT111: SYD | AU111: Sydney
Y112: HOB S child3 | Z112: HOBSY3 | AA112: =IFERROR('HEM Table'!C111*52,0) -> 34769.52978 | AB112: =IFERROR('HEM Table'!D111*52,0) -> 34769.52978 | AC112: =IFERROR('HEM Table'!E111*52,0) -> 34769.52978 | AD112: =IFERROR('HEM Table'!F111*52,0) -> 35787.26627 | AE112: =IFERROR('HEM Table'!G111*52,0) -> 37778.45937 | AF112: =IFERROR('HEM Table'!H111*52,0) -> 40651.37211 | AG112: =IFERROR('HEM Table'!I111*52,0) -> 44761.88733 | AH112: =IFERROR('HEM Table'!J111*52,0) -> 48580.89599 | AI112: =IFERROR('HEM Table'!K111*52,0) -> 53123.37691 | AJ112: =IFERROR('HEM Table'!L111*52,0) -> 55388.74024 | AK112: =IFERROR('HEM Table'!M111*52,0) -> 57885.88923 | AL112: =IFERROR('HEM Table'!N111*52,0) -> 64392.1163 | AM112: =IFERROR('HEM Table'!O111*52,0) -> 70634.57261 | AN112: =IFERROR('HEM Table'!P111*52,0) -> 72780.70961 | AO112: =IFERROR('HEM Table'!P111*52,0) -> 72780.70961 | AS112: 2057 | AT112: SYD | AU112: Sydney
Y113: Balance of TAS | AS113: 2059 | AT113: SYD | AU113: Sydney
Y114: TAS Couple | Z114: TASCN | AA114: =IFERROR('HEM Table'!C113*52,0) -> 30086.39585 | AB114: =IFERROR('HEM Table'!D113*52,0) -> 30086.39585 | AC114: =IFERROR('HEM Table'!E113*52,0) -> 30801.54561 | AD114: =IFERROR('HEM Table'!F113*52,0) -> 31825.02457 | AE114: =IFERROR('HEM Table'!G113*52,0) -> 33827.44046 | AF114: =IFERROR('HEM Table'!H113*52,0) -> 36716.55301 | AG114: =IFERROR('HEM Table'!I113*52,0) -> 40850.24103 | AH114: =IFERROR('HEM Table'!J113*52,0) -> 44690.78468 | AI114: =IFERROR('HEM Table'!K113*52,0) -> 49258.87677 | AJ114: =IFERROR('HEM Table'!L113*52,0) -> 51537.01255 | AK114: =IFERROR('HEM Table'!M113*52,0) -> 54048.24178 | AL114: =IFERROR('HEM Table'!N113*52,0) -> 60591.14614 | AM114: =IFERROR('HEM Table'!O113*52,0) -> 66868.806 | AN114: =IFERROR('HEM Table'!P113*52,0) -> 69027.04131 | AO114: =IFERROR('HEM Table'!P113*52,0) -> 69027.04131 | AS114: 2060 | AT114: SYD | AU114: Sydney
Y115: TAS C child | Z115: TASCY | AA115: =IFERROR('HEM Table'!C114*52,0) -> 35280.13128 | AB115: =IFERROR('HEM Table'!D114*52,0) -> 35280.13128 | AC115: =IFERROR('HEM Table'!E114*52,0) -> 35280.13128 | AD115: =IFERROR('HEM Table'!F114*52,0) -> 36302.64327 | AE115: =IFERROR('HEM Table'!G114*52,0) -> 38303.16637 | AF115: =IFERROR('HEM Table'!H114*52,0) -> 41189.54607 | AG115: =IFERROR('HEM Table'!I114*52,0) -> 45319.32862 | AH115: =IFERROR('HEM Table'!J114*52,0) -> 49156.24199 | AI115: =IFERROR('HEM Table'!K114*52,0) -> 53720.01608 | AJ115: =IFERROR('HEM Table'!L114*52,0) -> 55995.99461 | AK115: =IFERROR('HEM Table'!M114*52,0) -> 58504.85297 | AL115: =IFERROR('HEM Table'!N114*52,0) -> 65041.57263 | AM115: =IFERROR('HEM Table'!O114*52,0) -> 71313.29852 | AN115: =IFERROR('HEM Table'!P114*52,0) -> 73469.49566 | AO115: =IFERROR('HEM Table'!P114*52,0) -> 73469.49566 | AS115: 2061 | AT115: SYD | AU115: Sydney
Y116: TAS C child2 | Z116: TASCY2 | AA116: =IFERROR('HEM Table'!C115*52,0) -> 39076.80048 | AB116: =IFERROR('HEM Table'!D115*52,0) -> 39076.80048 | AC116: =IFERROR('HEM Table'!E115*52,0) -> 39076.80048 | AD116: =IFERROR('HEM Table'!F115*52,0) -> 40100.47435 | AE116: =IFERROR('HEM Table'!G115*52,0) -> 42103.2716 | AF116: =IFERROR('HEM Table'!H115*52,0) -> 44992.93246 | AG116: =IFERROR('HEM Table'!I115*52,0) -> 49127.40965 | AH116: =IFERROR('HEM Table'!J115*52,0) -> 52968.68472 | AI116: =IFERROR('HEM Table'!K115*52,0) -> 57537.64679 | AJ116: =IFERROR('HEM Table'!L115*52,0) -> 59816.21356 | AK116: =IFERROR('HEM Table'!M115*52,0) -> 62327.92297 | AL116: =IFERROR('HEM Table'!N115*52,0) -> 68872.0734 | AM116: =IFERROR('HEM Table'!O115*52,0) -> 75150.92884 | AN116: =IFERROR('HEM Table'!P115*52,0) -> 77309.57709 | AO116: =IFERROR('HEM Table'!P115*52,0) -> 77309.57709 | AS116: 2062 | AT116: SYD | AU116: Sydney
Y117: TAS C child3 | Z117: TASCY3 | AA117: =IFERROR('HEM Table'!C116*52,0) -> 43498.09772 | AB117: =IFERROR('HEM Table'!D116*52,0) -> 43498.09772 | AC117: =IFERROR('HEM Table'!E116*52,0) -> 43498.09772 | AD117: =IFERROR('HEM Table'!F116*52,0) -> 43498.09772 | AE117: =IFERROR('HEM Table'!G116*52,0) -> 45504.23693 | AF117: =IFERROR('HEM Table'!H116*52,0) -> 48398.72346 | AG117: =IFERROR('HEM Table'!I116*52,0) -> 52540.09483 | AH117: =IFERROR('HEM Table'!J116*52,0) -> 56387.7806 | AI117: =IFERROR('HEM Table'!K116*52,0) -> 60964.36666 | AJ117: =IFERROR('HEM Table'!L116*52,0) -> 63246.73844 | AK117: =IFERROR('HEM Table'!M116*52,0) -> 65762.63517 | AL117: =IFERROR('HEM Table'!N116*52,0) -> 72317.70933 | AM117: =IFERROR('HEM Table'!O116*52,0) -> 78607.03812 | AN117: =IFERROR('HEM Table'!P116*52,0) -> 80769.29224 | AO117: =IFERROR('HEM Table'!P116*52,0) -> 80769.29224 | AS117: 2063 | AT117: SYD | AU117: Sydney
Y118: TAS Single | Z118: TASSN | AA118: =IFERROR('HEM Table'!C117*52,0) -> 15724.60583 | AB118: =IFERROR('HEM Table'!D117*52,0) -> 16610.89587 | AC118: =IFERROR('HEM Table'!E117*52,0) -> 17327.09864 | AD118: =IFERROR('HEM Table'!F117*52,0) -> 18352.08321 | AE118: =IFERROR('HEM Table'!G117*52,0) -> 20357.4453 | AF118: =IFERROR('HEM Table'!H117*52,0) -> 23250.80796 | AG118: =IFERROR('HEM Table'!I117*52,0) -> 27390.57648 | AH118: =IFERROR('HEM Table'!J117*52,0) -> 31236.77036 | AI118: =IFERROR('HEM Table'!K117*52,0) -> 35811.58151 | AJ118: =IFERROR('HEM Table'!L117*52,0) -> 38093.06765 | AK118: =IFERROR('HEM Table'!M117*52,0) -> 40607.99206 | AL118: =IFERROR('HEM Table'!N117*52,0) -> 47160.52442 | AM118: =IFERROR('HEM Table'!O117*52,0) -> 53447.41539 | AN118: =IFERROR('HEM Table'!P117*52,0) -> 55608.82947 | AO118: =IFERROR('HEM Table'!P117*52,0) -> 55608.82947 | AS118: 2064 | AT118: SYD | AU118: Sydney
Y119: TAS S child | Z119: TASSY | AA119: =IFERROR('HEM Table'!C118*52,0) -> 21835.42034 | AB119: =IFERROR('HEM Table'!D118*52,0) -> 21835.42034 | AC119: =IFERROR('HEM Table'!E118*52,0) -> 22550.45401 | AD119: =IFERROR('HEM Table'!F118*52,0) -> 23573.76683 | AE119: =IFERROR('HEM Table'!G118*52,0) -> 25575.85816 | AF119: =IFERROR('HEM Table'!H118*52,0) -> 28464.50174 | AG119: =IFERROR('HEM Table'!I118*52,0) -> 32597.5178 | AH119: =IFERROR('HEM Table'!J118*52,0) -> 36437.43899 | AI119: =IFERROR('HEM Table'!K118*52,0) -> 41004.78861 | AJ119: =IFERROR('HEM Table'!L118*52,0) -> 43282.55362 | AK119: =IFERROR('HEM Table'!M118*52,0) -> 45793.37619 | AL119: =IFERROR('HEM Table'!N118*52,0) -> 52335.21942 | AM119: =IFERROR('HEM Table'!O118*52,0) -> 58611.86027 | AN119: =IFERROR('HEM Table'!P118*52,0) -> 60769.74715 | AO119: =IFERROR('HEM Table'!P118*52,0) -> 60769.74715 | AS119: 2065 | AT119: SYD | AU119: Sydney
Y120: TAS S child2 | Z120: TASSY2 | AA120: =IFERROR('HEM Table'!C119*52,0) -> 27689.43988 | AB120: =IFERROR('HEM Table'!D119*52,0) -> 27689.43988 | AC120: =IFERROR('HEM Table'!E119*52,0) -> 28402.52685 | AD120: =IFERROR('HEM Table'!F119*52,0) -> 29423.05413 | AE120: =IFERROR('HEM Table'!G119*52,0) -> 31419.69419 | AF120: =IFERROR('HEM Table'!H119*52,0) -> 34300.4733 | AG120: =IFERROR('HEM Table'!I119*52,0) -> 38422.23704 | AH120: =IFERROR('HEM Table'!J119*52,0) -> 42251.70387 | AI120: =IFERROR('HEM Table'!K119*52,0) -> 46806.61962 | AJ120: =IFERROR('HEM Table'!L119*52,0) -> 49078.18427 | AK120: =IFERROR('HEM Table'!M119*52,0) -> 51582.17005 | AL120: =IFERROR('HEM Table'!N119*52,0) -> 58106.20185 | AM120: =IFERROR('HEM Table'!O119*52,0) -> 64365.75426 | AN120: =IFERROR('HEM Table'!P119*52,0) -> 66517.76428 | AO120: =IFERROR('HEM Table'!P119*52,0) -> 66517.76428 | AS120: 2066 | AT120: SYD | AU120: Sydney
Y121: TAS S child3 | Z121: TASSY3 | AA121: =IFERROR('HEM Table'!C120*52,0) -> 34254.59968 | AB121: =IFERROR('HEM Table'!D120*52,0) -> 34254.59968 | AC121: =IFERROR('HEM Table'!E120*52,0) -> 34254.59968 | AD121: =IFERROR('HEM Table'!F120*52,0) -> 35272.34143 | AE121: =IFERROR('HEM Table'!G120*52,0) -> 37263.53023 | AF121: =IFERROR('HEM Table'!H120*52,0) -> 40136.44487 | AG121: =IFERROR('HEM Table'!I120*52,0) -> 44246.95628 | AH121: =IFERROR('HEM Table'!J120*52,0) -> 48065.96875 | AI121: =IFERROR('HEM Table'!K120*52,0) -> 52608.45063 | AJ121: =IFERROR('HEM Table'!L120*52,0) -> 54873.81492 | AK121: =IFERROR('HEM Table'!M120*52,0) -> 57370.96391 | AL121: =IFERROR('HEM Table'!N120*52,0) -> 63877.18429 | AM121: =IFERROR('HEM Table'!O120*52,0) -> 70119.64825 | AN121: =IFERROR('HEM Table'!P120*52,0) -> 72265.78141 | AO121: =IFERROR('HEM Table'!P120*52,0) -> 72265.78141 | AS121: 2067 | AT121: SYD | AU121: Sydney
Y122: ACT | AS122: 2068 | AT122: SYD | AU122: Sydney
Y123: ACT Couple | Z123: ACTCN | AA123: =IFERROR('HEM Table'!C122*52,0) -> 30592.4029 | AB123: =IFERROR('HEM Table'!D122*52,0) -> 30592.4029 | AC123: =IFERROR('HEM Table'!E122*52,0) -> 31307.55267 | AD123: =IFERROR('HEM Table'!F122*52,0) -> 32331.03163 | AE123: =IFERROR('HEM Table'!G122*52,0) -> 34333.44752 | AF123: =IFERROR('HEM Table'!H122*52,0) -> 37222.56007 | AG123: =IFERROR('HEM Table'!I122*52,0) -> 41356.24809 | AH123: =IFERROR('HEM Table'!J122*52,0) -> 45196.79174 | AI123: =IFERROR('HEM Table'!K122*52,0) -> 49764.88575 | AJ123: =IFERROR('HEM Table'!L122*52,0) -> 52043.01769 | AK123: =IFERROR('HEM Table'!M122*52,0) -> 54554.24597 | AL123: =IFERROR('HEM Table'!N122*52,0) -> 61097.15415 | AM123: =IFERROR('HEM Table'!O122*52,0) -> 67374.81402 | AN123: =IFERROR('HEM Table'!P122*52,0) -> 69533.05124 | AO123: =IFERROR('HEM Table'!P122*52,0) -> 69533.05124 | AS123: 2069 | AT123: SYD | AU123: Sydney
Y124: ACT C child | Z124: ACTCY | AA124: =IFERROR('HEM Table'!C123*52,0) -> 35785.66004 | AB124: =IFERROR('HEM Table'!D123*52,0) -> 35785.66004 | AC124: =IFERROR('HEM Table'!E123*52,0) -> 35785.66004 | AD124: =IFERROR('HEM Table'!F123*52,0) -> 36808.17011 | AE124: =IFERROR('HEM Table'!G123*52,0) -> 38808.69513 | AF124: =IFERROR('HEM Table'!H123*52,0) -> 41695.07482 | AG124: =IFERROR('HEM Table'!I123*52,0) -> 45824.85546 | AH124: =IFERROR('HEM Table'!J123*52,0) -> 49661.76883 | AI124: =IFERROR('HEM Table'!K123*52,0) -> 54225.54292 | AJ124: =IFERROR('HEM Table'!L123*52,0) -> 56501.52528 | AK124: =IFERROR('HEM Table'!M123*52,0) -> 59010.38077 | AL124: =IFERROR('HEM Table'!N123*52,0) -> 65547.10042 | AM124: =IFERROR('HEM Table'!O123*52,0) -> 71818.82632 | AN124: =IFERROR('HEM Table'!P123*52,0) -> 73975.02154 | AO124: =IFERROR('HEM Table'!P123*52,0) -> 73975.02154 | AS124: 2070 | AT124: SYD | AU124: Sydney
Y125: ACT C child2 | Z125: ACTCY2 | AA125: =IFERROR('HEM Table'!C124*52,0) -> 39582.90198 | AB125: =IFERROR('HEM Table'!D124*52,0) -> 39582.90198 | AC125: =IFERROR('HEM Table'!E124*52,0) -> 39582.90198 | AD125: =IFERROR('HEM Table'!F124*52,0) -> 40606.57586 | AE125: =IFERROR('HEM Table'!G124*52,0) -> 42609.37311 | AF125: =IFERROR('HEM Table'!H124*52,0) -> 45499.0378 | AG125: =IFERROR('HEM Table'!I124*52,0) -> 49633.51116 | AH125: =IFERROR('HEM Table'!J124*52,0) -> 53474.78623 | AI125: =IFERROR('HEM Table'!K124*52,0) -> 58043.7483 | AJ125: =IFERROR('HEM Table'!L124*52,0) -> 60322.31794 | AK125: =IFERROR('HEM Table'!M124*52,0) -> 62834.02544 | AL125: =IFERROR('HEM Table'!N124*52,0) -> 69378.17587 | AM125: =IFERROR('HEM Table'!O124*52,0) -> 75657.03131 | AN125: =IFERROR('HEM Table'!P124*52,0) -> 77815.67764 | AO125: =IFERROR('HEM Table'!P124*52,0) -> 77815.67764 | AS125: 2071 | AT125: SYD | AU125: Sydney
Y126: ACT C child3 | Z126: ACTCY3 | AA126: =IFERROR('HEM Table'!C125*52,0) -> 44005.04757 | AB126: =IFERROR('HEM Table'!D125*52,0) -> 44005.04757 | AC126: =IFERROR('HEM Table'!E125*52,0) -> 44005.04757 | AD126: =IFERROR('HEM Table'!F125*52,0) -> 44005.04757 | AE126: =IFERROR('HEM Table'!G125*52,0) -> 46011.18678 | AF126: =IFERROR('HEM Table'!H125*52,0) -> 48905.66947 | AG126: =IFERROR('HEM Table'!I125*52,0) -> 53047.04469 | AH126: =IFERROR('HEM Table'!J125*52,0) -> 56894.73046 | AI126: =IFERROR('HEM Table'!K125*52,0) -> 61471.31556 | AJ126: =IFERROR('HEM Table'!L125*52,0) -> 63753.68349 | AK126: =IFERROR('HEM Table'!M125*52,0) -> 66269.58598 | AL126: =IFERROR('HEM Table'!N125*52,0) -> 72824.6563 | AM126: =IFERROR('HEM Table'!O125*52,0) -> 79113.98894 | AN126: =IFERROR('HEM Table'!P125*52,0) -> 81276.23922 | AO126: =IFERROR('HEM Table'!P125*52,0) -> 81276.23922 | AS126: 2072 | AT126: SYD | AU126: Sydney
Y127: ACT Single | Z127: ACTSN | AA127: =IFERROR('HEM Table'!C126*52,0) -> 16231.35726 | AB127: =IFERROR('HEM Table'!D126*52,0) -> 17117.6473 | AC127: =IFERROR('HEM Table'!E126*52,0) -> 17833.85007 | AD127: =IFERROR('HEM Table'!F126*52,0) -> 18858.83465 | AE127: =IFERROR('HEM Table'!G126*52,0) -> 20864.19673 | AF127: =IFERROR('HEM Table'!H126*52,0) -> 23757.5594 | AG127: =IFERROR('HEM Table'!I126*52,0) -> 27897.32744 | AH127: =IFERROR('HEM Table'!J126*52,0) -> 31743.52179 | AI127: =IFERROR('HEM Table'!K126*52,0) -> 36318.33295 | AJ127: =IFERROR('HEM Table'!L126*52,0) -> 38599.81908 | AK127: =IFERROR('HEM Table'!M126*52,0) -> 41114.7435 | AL127: =IFERROR('HEM Table'!N126*52,0) -> 47667.27298 | AM127: =IFERROR('HEM Table'!O126*52,0) -> 53954.16778 | AN127: =IFERROR('HEM Table'!P126*52,0) -> 56115.57994 | AO127: =IFERROR('HEM Table'!P126*52,0) -> 56115.57994 | AS127: 2073 | AT127: SYD | AU127: Sydney
Y128: ACT S child | Z128: ACTSY | AA128: =IFERROR('HEM Table'!C127*52,0) -> 22341.34526 | AB128: =IFERROR('HEM Table'!D127*52,0) -> 22341.34526 | AC128: =IFERROR('HEM Table'!E127*52,0) -> 23056.37893 | AD128: =IFERROR('HEM Table'!F127*52,0) -> 24079.69175 | AE128: =IFERROR('HEM Table'!G127*52,0) -> 26081.78308 | AF128: =IFERROR('HEM Table'!H127*52,0) -> 28970.42666 | AG128: =IFERROR('HEM Table'!I127*52,0) -> 33103.44272 | AH128: =IFERROR('HEM Table'!J127*52,0) -> 36943.36391 | AI128: =IFERROR('HEM Table'!K127*52,0) -> 41510.71353 | AJ128: =IFERROR('HEM Table'!L127*52,0) -> 43788.47855 | AK128: =IFERROR('HEM Table'!M127*52,0) -> 46299.30111 | AL128: =IFERROR('HEM Table'!N127*52,0) -> 52841.14338 | AM128: =IFERROR('HEM Table'!O127*52,0) -> 59117.78423 | AN128: =IFERROR('HEM Table'!P127*52,0) -> 61275.67112 | AO128: =IFERROR('HEM Table'!P127*52,0) -> 61275.67112 | AS128: 2074 | AT128: SYD | AU128: Sydney
Y129: ACT S child2 | Z129: ACTSY2 | AA129: =IFERROR('HEM Table'!C128*52,0) -> 28193.9874 | AB129: =IFERROR('HEM Table'!D128*52,0) -> 28193.9874 | AC129: =IFERROR('HEM Table'!E128*52,0) -> 28907.07437 | AD129: =IFERROR('HEM Table'!F128*52,0) -> 29927.60165 | AE129: =IFERROR('HEM Table'!G128*52,0) -> 31924.24171 | AF129: =IFERROR('HEM Table'!H128*52,0) -> 34805.02082 | AG129: =IFERROR('HEM Table'!I128*52,0) -> 38926.78455 | AH129: =IFERROR('HEM Table'!J128*52,0) -> 42756.25139 | AI129: =IFERROR('HEM Table'!K128*52,0) -> 47311.16522 | AJ129: =IFERROR('HEM Table'!L128*52,0) -> 49582.72988 | AK129: =IFERROR('HEM Table'!M128*52,0) -> 52086.7147 | AL129: =IFERROR('HEM Table'!N128*52,0) -> 58610.75033 | AM129: =IFERROR('HEM Table'!O128*52,0) -> 64870.30273 | AN129: =IFERROR('HEM Table'!P128*52,0) -> 67022.31467 | AO129: =IFERROR('HEM Table'!P128*52,0) -> 67022.31467 | AS129: 2075 | AT129: SYD | AU129: Sydney
Y130: ACT S child3 | Z130: ACTSY3 | AA130: =IFERROR('HEM Table'!C129*52,0) -> 34757.7698 | AB130: =IFERROR('HEM Table'!D129*52,0) -> 34757.7698 | AC130: =IFERROR('HEM Table'!E129*52,0) -> 34757.7698 | AD130: =IFERROR('HEM Table'!F129*52,0) -> 35775.51154 | AE130: =IFERROR('HEM Table'!G129*52,0) -> 37766.70034 | AF130: =IFERROR('HEM Table'!H129*52,0) -> 40639.61498 | AG130: =IFERROR('HEM Table'!I129*52,0) -> 44750.12639 | AH130: =IFERROR('HEM Table'!J129*52,0) -> 48569.13886 | AI130: =IFERROR('HEM Table'!K129*52,0) -> 53111.61692 | AJ130: =IFERROR('HEM Table'!L129*52,0) -> 55376.98121 | AK130: =IFERROR('HEM Table'!M129*52,0) -> 57874.12828 | AL130: =IFERROR('HEM Table'!N129*52,0) -> 64380.35727 | AM130: =IFERROR('HEM Table'!O129*52,0) -> 70622.82123 | AN130: =IFERROR('HEM Table'!P129*52,0) -> 72768.95822 | AO130: =IFERROR('HEM Table'!P129*52,0) -> 72768.95822 | AS130: 2076 | AT130: SYD | AU130: Sydney
Y131: NT | AS131: 2077 | AT131: SYD | AU131: Sydney
Y132: NT Couple | Z132: NTCN | AA132: =IFERROR('HEM Table'!C131*52,0) -> 30592.4029 | AB132: =IFERROR('HEM Table'!D131*52,0) -> 30592.4029 | AC132: =IFERROR('HEM Table'!E131*52,0) -> 31307.55267 | AD132: =IFERROR('HEM Table'!F131*52,0) -> 32331.03163 | AE132: =IFERROR('HEM Table'!G131*52,0) -> 34333.44752 | AF132: =IFERROR('HEM Table'!H131*52,0) -> 37222.56007 | AG132: =IFERROR('HEM Table'!I131*52,0) -> 41356.24809 | AH132: =IFERROR('HEM Table'!J131*52,0) -> 45196.79174 | AI132: =IFERROR('HEM Table'!K131*52,0) -> 49764.88575 | AJ132: =IFERROR('HEM Table'!L131*52,0) -> 52043.01769 | AK132: =IFERROR('HEM Table'!M131*52,0) -> 54554.24597 | AL132: =IFERROR('HEM Table'!N131*52,0) -> 61097.15415 | AM132: =IFERROR('HEM Table'!O131*52,0) -> 67374.81402 | AN132: =IFERROR('HEM Table'!P131*52,0) -> 69533.05124 | AO132: =IFERROR('HEM Table'!P131*52,0) -> 69533.05124 | AS132: 2079 | AT132: SYD | AU132: Sydney
Y133: NT C child | Z133: NTCY | AA133: =IFERROR('HEM Table'!C132*52,0) -> 35785.66004 | AB133: =IFERROR('HEM Table'!D132*52,0) -> 35785.66004 | AC133: =IFERROR('HEM Table'!E132*52,0) -> 35785.66004 | AD133: =IFERROR('HEM Table'!F132*52,0) -> 36808.17011 | AE133: =IFERROR('HEM Table'!G132*52,0) -> 38808.69513 | AF133: =IFERROR('HEM Table'!H132*52,0) -> 41695.07482 | AG133: =IFERROR('HEM Table'!I132*52,0) -> 45824.85546 | AH133: =IFERROR('HEM Table'!J132*52,0) -> 49661.76883 | AI133: =IFERROR('HEM Table'!K132*52,0) -> 54225.54292 | AJ133: =IFERROR('HEM Table'!L132*52,0) -> 56501.52528 | AK133: =IFERROR('HEM Table'!M132*52,0) -> 59010.38077 | AL133: =IFERROR('HEM Table'!N132*52,0) -> 65547.10042 | AM133: =IFERROR('HEM Table'!O132*52,0) -> 71818.82632 | AN133: =IFERROR('HEM Table'!P132*52,0) -> 73975.02154 | AO133: =IFERROR('HEM Table'!P132*52,0) -> 73975.02154 | AS133: 2080 | AT133: SYD | AU133: Sydney
Y134: NT C child2 | Z134: NTCY2 | AA134: =IFERROR('HEM Table'!C133*52,0) -> 39582.90198 | AB134: =IFERROR('HEM Table'!D133*52,0) -> 39582.90198 | AC134: =IFERROR('HEM Table'!E133*52,0) -> 39582.90198 | AD134: =IFERROR('HEM Table'!F133*52,0) -> 40606.57586 | AE134: =IFERROR('HEM Table'!G133*52,0) -> 42609.37311 | AF134: =IFERROR('HEM Table'!H133*52,0) -> 45499.0378 | AG134: =IFERROR('HEM Table'!I133*52,0) -> 49633.51116 | AH134: =IFERROR('HEM Table'!J133*52,0) -> 53474.78623 | AI134: =IFERROR('HEM Table'!K133*52,0) -> 58043.7483 | AJ134: =IFERROR('HEM Table'!L133*52,0) -> 60322.31794 | AK134: =IFERROR('HEM Table'!M133*52,0) -> 62834.02544 | AL134: =IFERROR('HEM Table'!N133*52,0) -> 69378.17587 | AM134: =IFERROR('HEM Table'!O133*52,0) -> 75657.03131 | AN134: =IFERROR('HEM Table'!P133*52,0) -> 77815.67764 | AO134: =IFERROR('HEM Table'!P133*52,0) -> 77815.67764 | AS134: 2081 | AT134: SYD | AU134: Sydney
Y135: NT C child3 | Z135: NTCY3 | AA135: =IFERROR('HEM Table'!C134*52,0) -> 44005.04757 | AB135: =IFERROR('HEM Table'!D134*52,0) -> 44005.04757 | AC135: =IFERROR('HEM Table'!E134*52,0) -> 44005.04757 | AD135: =IFERROR('HEM Table'!F134*52,0) -> 44005.04757 | AE135: =IFERROR('HEM Table'!G134*52,0) -> 46011.18678 | AF135: =IFERROR('HEM Table'!H134*52,0) -> 48905.66947 | AG135: =IFERROR('HEM Table'!I134*52,0) -> 53047.04469 | AH135: =IFERROR('HEM Table'!J134*52,0) -> 56894.73046 | AI135: =IFERROR('HEM Table'!K134*52,0) -> 61471.31556 | AJ135: =IFERROR('HEM Table'!L134*52,0) -> 63753.68349 | AK135: =IFERROR('HEM Table'!M134*52,0) -> 66269.58598 | AL135: =IFERROR('HEM Table'!N134*52,0) -> 72824.6563 | AM135: =IFERROR('HEM Table'!O134*52,0) -> 79113.98894 | AN135: =IFERROR('HEM Table'!P134*52,0) -> 81276.23922 | AO135: =IFERROR('HEM Table'!P134*52,0) -> 81276.23922 | AS135: 2082 | AT135: SYD | AU135: Sydney
Y136: NT Single | Z136: NTSN | AA136: =IFERROR('HEM Table'!C135*52,0) -> 16231.35726 | AB136: =IFERROR('HEM Table'!D135*52,0) -> 17117.6473 | AC136: =IFERROR('HEM Table'!E135*52,0) -> 17833.85007 | AD136: =IFERROR('HEM Table'!F135*52,0) -> 18858.83465 | AE136: =IFERROR('HEM Table'!G135*52,0) -> 20864.19673 | AF136: =IFERROR('HEM Table'!H135*52,0) -> 23757.5594 | AG136: =IFERROR('HEM Table'!I135*52,0) -> 27897.32744 | AH136: =IFERROR('HEM Table'!J135*52,0) -> 31743.52179 | AI136: =IFERROR('HEM Table'!K135*52,0) -> 36318.33295 | AJ136: =IFERROR('HEM Table'!L135*52,0) -> 38599.81908 | AK136: =IFERROR('HEM Table'!M135*52,0) -> 41114.7435 | AL136: =IFERROR('HEM Table'!N135*52,0) -> 47667.27298 | AM136: =IFERROR('HEM Table'!O135*52,0) -> 53954.16778 | AN136: =IFERROR('HEM Table'!P135*52,0) -> 56115.57994 | AO136: =IFERROR('HEM Table'!P135*52,0) -> 56115.57994 | AS136: 2083 | AT136: SYD | AU136: Sydney
Y137: NT S child | Z137: NTSY | AA137: =IFERROR('HEM Table'!C136*52,0) -> 22341.34526 | AB137: =IFERROR('HEM Table'!D136*52,0) -> 22341.34526 | AC137: =IFERROR('HEM Table'!E136*52,0) -> 23056.37893 | AD137: =IFERROR('HEM Table'!F136*52,0) -> 24079.69175 | AE137: =IFERROR('HEM Table'!G136*52,0) -> 26081.78308 | AF137: =IFERROR('HEM Table'!H136*52,0) -> 28970.42666 | AG137: =IFERROR('HEM Table'!I136*52,0) -> 33103.44272 | AH137: =IFERROR('HEM Table'!J136*52,0) -> 36943.36391 | AI137: =IFERROR('HEM Table'!K136*52,0) -> 41510.71353 | AJ137: =IFERROR('HEM Table'!L136*52,0) -> 43788.47855 | AK137: =IFERROR('HEM Table'!M136*52,0) -> 46299.30111 | AL137: =IFERROR('HEM Table'!N136*52,0) -> 52841.14338 | AM137: =IFERROR('HEM Table'!O136*52,0) -> 59117.78423 | AN137: =IFERROR('HEM Table'!P136*52,0) -> 61275.67112 | AO137: =IFERROR('HEM Table'!P136*52,0) -> 61275.67112 | AS137: 2084 | AT137: SYD | AU137: Sydney
Y138: NT S child2 | Z138: NTSY2 | AA138: =IFERROR('HEM Table'!C137*52,0) -> 28193.9874 | AB138: =IFERROR('HEM Table'!D137*52,0) -> 28193.9874 | AC138: =IFERROR('HEM Table'!E137*52,0) -> 28907.07437 | AD138: =IFERROR('HEM Table'!F137*52,0) -> 29927.60165 | AE138: =IFERROR('HEM Table'!G137*52,0) -> 31924.24171 | AF138: =IFERROR('HEM Table'!H137*52,0) -> 34805.02082 | AG138: =IFERROR('HEM Table'!I137*52,0) -> 38926.78455 | AH138: =IFERROR('HEM Table'!J137*52,0) -> 42756.25139 | AI138: =IFERROR('HEM Table'!K137*52,0) -> 47311.16522 | AJ138: =IFERROR('HEM Table'!L137*52,0) -> 49582.72988 | AK138: =IFERROR('HEM Table'!M137*52,0) -> 52086.7147 | AL138: =IFERROR('HEM Table'!N137*52,0) -> 58610.75033 | AM138: =IFERROR('HEM Table'!O137*52,0) -> 64870.30273 | AN138: =IFERROR('HEM Table'!P137*52,0) -> 67022.31467 | AO138: =IFERROR('HEM Table'!P137*52,0) -> 67022.31467 | AS138: 2085 | AT138: SYD | AU138: Sydney
Y139: NT S child3 | Z139: NTSY3 | AA139: =IFERROR('HEM Table'!C138*52,0) -> 34757.7698 | AB139: =IFERROR('HEM Table'!D138*52,0) -> 34757.7698 | AC139: =IFERROR('HEM Table'!E138*52,0) -> 34757.7698 | AD139: =IFERROR('HEM Table'!F138*52,0) -> 35775.51154 | AE139: =IFERROR('HEM Table'!G138*52,0) -> 37766.70034 | AF139: =IFERROR('HEM Table'!H138*52,0) -> 40639.61498 | AG139: =IFERROR('HEM Table'!I138*52,0) -> 44750.12639 | AH139: =IFERROR('HEM Table'!J138*52,0) -> 48569.13886 | AI139: =IFERROR('HEM Table'!K138*52,0) -> 53111.61692 | AJ139: =IFERROR('HEM Table'!L138*52,0) -> 55376.98121 | AK139: =IFERROR('HEM Table'!M138*52,0) -> 57874.12828 | AL139: =IFERROR('HEM Table'!N138*52,0) -> 64380.35727 | AM139: =IFERROR('HEM Table'!O138*52,0) -> 70622.82123 | AN139: =IFERROR('HEM Table'!P138*52,0) -> 72768.95822 | AO139: =IFERROR('HEM Table'!P138*52,0) -> 72768.95822 | AS139: 2086 | AT139: SYD | AU139: Sydney
AS140: 2087 | AT140: SYD | AU140: Sydney
AS141: 2088 | AT141: SYD | AU141: Sydney
AS142: 2089 | AT142: SYD | AU142: Sydney
AS143: 2090 | AT143: SYD | AU143: Sydney
AS144: 2091 | AT144: SYD | AU144: Sydney
AS145: 2092 | AT145: SYD | AU145: Sydney
AS146: 2093 | AT146: SYD | AU146: Sydney
AS147: 2094 | AT147: SYD | AU147: Sydney
AS148: 2095 | AT148: SYD | AU148: Sydney
AS149: 2096 | AT149: SYD | AU149: Sydney
AS150: 2097 | AT150: SYD | AU150: Sydney
AS151: 2099 | AT151: SYD | AU151: Sydney
AS152: 2100 | AT152: SYD | AU152: Sydney
AS153: 2101 | AT153: SYD | AU153: Sydney
AS154: 2102 | AT154: SYD | AU154: Sydney
AS155: 2103 | AT155: SYD | AU155: Sydney
AS156: 2104 | AT156: SYD | AU156: Sydney
AS157: 2105 | AT157: SYD | AU157: Sydney
AS158: 2106 | AT158: SYD | AU158: Sydney
AS159: 2107 | AT159: SYD | AU159: Sydney
AS160: 2108 | AT160: SYD | AU160: Sydney
AS161: 2109 | AT161: SYD | AU161: Sydney
AS162: 2110 | AT162: SYD | AU162: Sydney
AS163: 2111 | AT163: SYD | AU163: Sydney
AS164: 2112 | AT164: SYD | AU164: Sydney
AS165: 2113 | AT165: SYD | AU165: Sydney
AS166: 2114 | AT166: SYD | AU166: Sydney
AS167: 2115 | AT167: SYD | AU167: Sydney
AS168: 2116 | AT168: SYD | AU168: Sydney
AS169: 2117 | AT169: SYD | AU169: Sydney
AS170: 2118 | AT170: SYD | AU170: Sydney
AS171: 2119 | AT171: SYD | AU171: Sydney
AS172: 2120 | AT172: SYD | AU172: Sydney
AS173: 2121 | AT173: SYD | AU173: Sydney
AS174: 2122 | AT174: SYD | AU174: Sydney
AS175: 2123 | AT175: SYD | AU175: Sydney
AS176: 2124 | AT176: SYD | AU176: Sydney
AS177: 2125 | AT177: SYD | AU177: Sydney
AS178: 2126 | AT178: SYD | AU178: Sydney
AS179: 2127 | AT179: SYD | AU179: Sydney
AS180: 2128 | AT180: SYD | AU180: Sydney
AS181: 2129 | AT181: SYD | AU181: Sydney
AS182: 2130 | AT182: SYD | AU182: Sydney
AS183: 2131 | AT183: SYD | AU183: Sydney
AS184: 2132 | AT184: SYD | AU184: Sydney
AS185: 2133 | AT185: SYD | AU185: Sydney
AS186: 2134 | AT186: SYD | AU186: Sydney
AS187: 2135 | AT187: SYD | AU187: Sydney
AS188: 2136 | AT188: SYD | AU188: Sydney
AS189: 2137 | AT189: SYD | AU189: Sydney
AS190: 2138 | AT190: SYD | AU190: Sydney
AS191: 2139 | AT191: SYD | AU191: Sydney
AS192: 2140 | AT192: SYD | AU192: Sydney
AS193: 2141 | AT193: SYD | AU193: Sydney
AS194: 2142 | AT194: SYD | AU194: Sydney
AS195: 2143 | AT195: SYD | AU195: Sydney
AS196: 2144 | AT196: SYD | AU196: Sydney
AS197: 2145 | AT197: SYD | AU197: Sydney
AS198: 2146 | AT198: SYD | AU198: Sydney
AS199: 2147 | AT199: SYD | AU199: Sydney
AS200: 2148 | AT200: SYD | AU200: Sydney
... 912 more rows

Sheet HEM Table (hidden)
C2: "HEM Table 1" equivalent: by Income Level and Residency
B3: Australia | C3: Total current gross HH income from all sources (measured in current dollars)
B4: Range up to: | C4: 25000 | D4: 37000 | E4: 50000 | F4: 62000 | G4: 74000 | H4: 99000 | I4: 124000 | J4: 149000 | K4: 173000 | L4: 198000 | M4: 248000 | N4: 309000 | O4: 371000 | P4: 619000 | Q4: NB Upper range shown here
B5: Couple | C5: 562.5749121 | D5: 562.5749121 | E5: 576.3277922 | F5: 596.0100798 | G5: 634.518087 | H5: 690.0779437 | I5: 769.5719257 | J5: 843.4285528 | K5: 931.2764591 | L5: 975.0867809 | M5: 1023.379614 | N5: 1149.204698 | O5: 1269.928926 | P5: 1311.433488
B6: Couple with 1 child | C6: 663.3803249 | D6: 663.3803249 | E6: 663.3803249 | F6: 683.0439802 | G6: 721.5156151 | H6: 777.0229262 | I6: 856.4417662 | J6: 930.2285802 | K6: 1017.993448 | L6: 1061.76234 | M6: 1110.009542 | N6: 1235.715689 | O6: 1356.325803 | P6: 1397.791132
B7: Couple with 2 children | C7: 735.8457434 | D7: 735.8457434 | E7: 735.8457434 | F7: 755.5317794 | G7: 794.0471111 | H7: 849.6175122 | I7: 929.126689 | J7: 1002.997363 | K7: 1090.862019 | L7: 1134.680592 | M7: 1182.982714 | N7: 1308.831761 | O7: 1429.578981 | P7: 1471.091448
B8: Couple with 3 children | C8: 818.0402876 | D8: 818.0402876 | E8: 818.0402876 | F8: 818.0402876 | G8: 856.6198878 | H8: 912.2830164 | I8: 991.924866 | J8: 1065.918805 | K8: 1153.930057 | L8: 1197.821821 | M8: 1246.204488 | N8: 1372.263532 | O8: 1493.212237 | P8: 1534.793973
B9: Single person | C9: 286.5528861 | D9: 303.5969207 | E9: 317.3700509 | F9: 337.0812973 | G9: 375.6459482 | H9: 431.2875194 | I9: 510.8984895 | J9: 584.8637194 | K9: 672.8408754 | L9: 716.7156272 | M9: 765.0795214 | N9: 891.0897407 | O9: 1011.991527 | P9: 1053.557145
B10: Single parent with 1 child | C10: 404.8434236 | D10: 404.8434236 | E10: 418.5940712 | F10: 438.2731639 | G10: 476.7749203 | H10: 532.3257583 | I10: 611.8068363 | J10: 685.6514747 | K10: 773.4851211 | L10: 817.2882945 | M10: 865.5733438 | N10: 991.3780582 | O10: 1112.082653 | P10: 1153.580478
B11: Single parent with 2 children | C11: 518.4603559 | D11: 518.4603559 | E11: 532.1736036 | F11: 551.7991282 | G11: 590.1960526 | H11: 645.5956508 | I11: 724.8603564 | J11: 798.5039309 | K11: 886.0984646 | L11: 929.7823267 | M11: 977.9359544 | N11: 1103.398123 | O11: 1223.774131 | P11: 1265.158939
B12: Single parent with 3 children | C12: 645.7531359 | D12: 645.7531359 | E12: 645.7531359 | F12: 665.3250925 | G12: 703.6171848 | H12: 758.8655434 | I12: 837.9138764 | J12: 911.3563871 | K12: 998.711808 | L12: 1042.276359 | M12: 1090.298565 | N12: 1215.418188 | O12: 1335.465608 | P12: 1376.7374
B13: Sydney
B14: Couple | C14: 546.2298706 | D14: 546.2298706 | E14: 559.9827507 | F14: 579.6650383 | G14: 618.1730455 | H14: 673.732893 | I14: 753.2268934 | J14: 827.0835021 | K14: 914.9314269 | L14: 958.7417302 | M14: 1007.034582 | N14: 1132.859665 | O14: 1253.583894 | P14: 1295.088456
B15: Couple with 1 child | C15: 646.1399815 | D15: 646.1399815 | E15: 646.1399815 | F15: 665.8036368 | G15: 704.2752718 | H15: 759.7825736 | I15: 839.2014689 | J15: 912.9882644 | K15: 1000.753151 | L15: 1044.521969 | M15: 1092.769263 | N15: 1218.47541 | O15: 1339.085524 | P15: 1380.550817
B16: Couple with 2 children | C16: 719.1161055 | D16: 719.1161055 | E16: 719.1161055 | F16: 738.8021047 | G16: 777.3174732 | H16: 832.8878743 | I16: 912.3970511 | J16: 986.2677256 | K16: 1074.132381 | L16: 1117.950954 | M16: 1166.253095 | N16: 1292.102142 | O16: 1412.849362 | P16: 1454.361791
B17: Couple with 3 children | C17: 804.0870536 | D17: 804.0870536 | E17: 804.0870536 | F17: 804.0870536 | G17: 842.6666538 | H17: 898.3298563 | I17: 977.9716135 | J17: 1051.965571 | K17: 1139.976823 | L17: 1183.868587 | M17: 1232.251254 | N17: 1358.310372 | O17: 1479.259003 | P17: 1520.840739
B18: Single person | C18: 269.9940048 | D18: 287.038044 | E18: 300.8111741 | F18: 320.5224206 | G18: 359.0870714 | H18: 414.7286611 | I18: 494.3395943 | J18: 568.3048611 | K18: 656.2819987 | L18: 700.156732 | M18: 748.5206631 | N18: 874.5308455 | O18: 995.4326317 | P18: 1036.998324
B19: Single parent with 1 child | C19: 387.562512 | D19: 387.562512 | E19: 401.3131643 | F19: 420.992257 | G19: 459.4940041 | H19: 515.0448513 | I19: 594.5259294 | J19: 668.3705677 | K19: 756.2042141 | L19: 800.0073876 | M19: 848.2924368 | N19: 974.0971328 | O19: 1094.801691 | P19: 1136.299589
B20: Single parent with 2 children | C20: 500.2278884 | D20: 500.2278884 | E20: 513.9410992 | F20: 533.5666239 | G20: 571.9635482 | H20: 627.3631465 | I20: 706.6278337 | J20: 780.2714266 | K20: 867.8659602 | L20: 911.5498959 | M20: 959.7034501 | N20: 1085.1656 | O20: 1205.541608 | P20: 1246.926453
B21: Single parent with 3 children | C21: 626.5690342 | D21: 626.5690342 | E21: 626.5690342 | F21: 646.1409908 | G21: 684.4330924 | H21: 739.6814417 | I21: 818.729738 | J21: 892.1722854 | K21: 979.5277063 | L21: 1023.092404 | M21: 1071.114463 | N21: 1196.234068 | O21: 1316.281525 | P21: 1357.553317
B22: Balance of NSW
B23: Couple | C23: 574.9164715 | D23: 574.9164715 | E23: 588.6693884 | F23: 608.3516761 | G23: 646.8596832 | H23: 702.4195492 | I23: 781.9135311 | J23: 855.7701398 | K23: 943.6180646 | L23: 987.4282942 | M23: 1035.721238 | N23: 1161.546322 | O23: 1282.27055 | P23: 1323.775075
B24: Couple with 1 child | C24: 674.7994755 | D24: 674.7994755 | E24: 674.7994755 | F24: 694.4631584 | G24: 732.9347565 | H24: 788.4420952 | I24: 867.8609905 | J24: 941.6477123 | K24: 1029.412599 | L24: 1073.18149 | M24: 1121.428693 | N24: 1247.134914 | O24: 1367.744953 | P24: 1409.210357
B25: Couple with 2 children | C25: 747.8081696 | D25: 747.8081696 | E25: 747.8081696 | F25: 767.4941688 | G25: 806.0095005 | H25: 861.5799754 | I25: 941.0891521 | J25: 1014.959753 | K25: 1102.824408 | L25: 1146.643055 | M25: 1194.945104 | N25: 1320.794224 | O25: 1441.54137 | P25: 1483.053911
B26: Couple with 3 children | C26: 832.8270316 | D26: 832.8270316 | E26: 832.8270316 | F26: 832.8270316 | G26: 871.4066319 | H26: 927.0698343 | I26: 1006.711592 | J26: 1080.705549 | K26: 1168.716819 | L26: 1212.608584 | M26: 1260.991213 | N26: 1387.050258 | O26: 1507.998962 | P26: 1549.580699
B27: Single person | C27: 298.7228244 | D27: 315.7668636 | E27: 329.5399937 | F27: 349.2512402 | G27: 387.815891 | H27: 443.4574623 | I27: 523.0684323 | J27: 597.0336623 | K27: 685.0108183 | L27: 728.8855701 | M27: 777.2494642 | N27: 903.259702 | O27: 1024.161488 | P27: 1065.72707
B28: Single parent with 1 child | C28: 416.2444609 | D28: 416.2444609 | E28: 429.9951454 | F28: 449.6742381 | G28: 488.1759945 | H28: 543.7267956 | I28: 623.2079105 | J28: 697.052512 | K28: 784.8861953 | L28: 828.6893687 | M28: 876.9743811 | N28: 1002.779096 | O28: 1123.483653 | P28: 1164.981478
B29: Single parent with 2 children | C29: 528.8317447 | D29: 528.8317447 | E29: 542.5449924 | F29: 562.1704803 | G29: 600.5674414 | H29: 655.9670029 | I29: 735.2317452 | J29: 808.875283 | K29: 896.4698534 | L29: 940.1537155 | M29: 988.3073432 | N29: 1113.769512 | O29: 1234.145519 | P29: 1275.530328
B30: Single parent with 3 children | C30: 655.0948394 | D30: 655.0948394 | E30: 655.0948394 | F30: 674.6667224 | G30: 712.9588883 | H30: 768.2072101 | I30: 847.2555799 | J30: 920.6980539 | K30: 1008.053511 | L30: 1051.618062 | M30: 1099.640305 | N30: 1224.759928 | O30: 1344.807385 | P30: 1386.079177
B31: Melbourne
B32: Couple | C32: 567.572996 | D32: 567.572996 | E32: 581.3258761 | F32: 601.0081729 | G32: 639.5161708 | H32: 695.0760276 | I32: 774.570028 | J32: 848.4265998 | K32: 936.2745246 | L32: 980.0848279 | M32: 1028.377679 | N32: 1154.202855 | O32: 1274.92701 | P32: 1316.431609
B33: Couple with 1 child | C33: 667.4629046 | D33: 667.4629046 | E33: 667.4629046 | F33: 687.1265967 | G33: 725.5981949 | H33: 781.1055335 | I33: 860.5243736 | J33: 934.3111875 | K33: 1022.076074 | L33: 1065.844965 | M33: 1114.092168 | N33: 1239.798315 | O33: 1360.408428 | P33: 1401.873758
B34: Couple with 2 children | C34: 740.4632587 | D34: 740.4632587 | E34: 740.4632587 | F34: 760.149304 | G34: 798.6646357 | H34: 854.2351106 | I34: 933.7442135 | J34: 1007.614888 | K34: 1095.479543 | L34: 1139.29819 | M34: 1187.600239 | N34: 1313.449286 | O34: 1434.196506 | P34: 1475.708972
B35: Couple with 3 children | C35: 825.4698924 | D35: 825.4698924 | E35: 825.4698924 | F35: 825.4698924 | G35: 864.0495111 | H35: 919.7126396 | I35: 999.3544707 | J35: 1073.348428 | K35: 1161.35968 | L35: 1205.251389 | M35: 1253.634093 | N35: 1379.693137 | O35: 1500.641842 | P35: 1542.223578
B36: Single person | C36: 291.3685345 | D36: 308.4125714 | E36: 322.1857016 | F36: 341.896948 | G36: 380.4615942 | H36: 436.1031932 | I36: 515.7141171 | J36: 589.6793932 | K36: 677.6565307 | L36: 721.5312641 | M36: 769.8951951 | N36: 895.9053775 | O36: 1016.807182 | P36: 1058.372801
B37: Single parent with 1 child | C37: 408.9021821 | D37: 408.9021821 | E37: 422.6528251 | F37: 442.331927 | G37: 480.8336741 | H37: 536.3845121 | I37: 615.8655994 | J37: 689.7102378 | K37: 777.5438842 | L37: 821.3470392 | M37: 869.6321069 | N37: 995.4367476 | O37: 1116.141379 | P37: 1157.639204
B38: Single parent with 2 children | C38: 521.5094234 | D38: 521.5094234 | E38: 535.2226711 | F38: 554.8481865 | G38: 593.24512 | H38: 648.6447183 | I38: 727.9094055 | J38: 801.5529984 | K38: 889.1474769 | L38: 932.8314309 | M38: 980.9849851 | N38: 1106.447227 | O38: 1226.823125 | P38: 1268.208043
B39: Single parent with 3 children | C39: 647.792517 | D39: 647.792517 | E39: 647.792517 | F39: 667.364446 | G39: 705.6565659 | H39: 760.9049245 | I39: 839.9532115 | J39: 913.395759 | K39: 1000.75107 | L39: 1044.315823 | M39: 1092.337863 | N39: 1217.457707 | O39: 1337.50487 | P39: 1378.776882
B40: Balance of VIC
B41: Couple | C41: 604.076395 | D41: 604.076395 | E41: 617.8292751 | F41: 637.5115627 | G41: 676.0195698 | H41: 731.5794266 | I41: 811.0734085 | J41: 884.9300357 | K41: 972.777942 | L41: 1016.588264 | M41: 1064.881115 | N41: 1190.706199 | O41: 1311.430427 | P41: 1352.934989
B42: Couple with 1 child | C42: 703.9318263 | D42: 703.9318263 | E42: 703.9318263 | F42: 723.5955184 | G42: 762.0671166 | H42: 817.5744276 | I42: 896.9933045 | J42: 970.7801184 | K42: 1058.544986 | L42: 1102.313804 | M42: 1150.56108 | N42: 1276.267228 | O42: 1396.877341 | P42: 1438.342671
B43: Couple with 2 children | C43: 776.9736466 | D43: 776.9736466 | E43: 776.9736466 | F43: 796.6596827 | G43: 835.1750236 | H43: 890.7454247 | I43: 970.254583 | J43: 1044.125276 | K43: 1131.989913 | L43: 1175.808504 | M43: 1224.110608 | N43: 1349.959655 | O43: 1470.706875 | P43: 1512.219342
B44: Couple with 3 children | C44: 862.0411293 | D44: 862.0411293 | E44: 862.0411293 | F44: 862.0411293 | G44: 900.6207296 | H44: 956.283932 | I44: 1035.925708 | J44: 1109.919646 | K44: 1197.930917 | L44: 1241.822682 | M44: 1290.205348 | N44: 1416.264466 | O44: 1537.213097 | P44: 1578.79487
B45: Single person | C45: 327.925626 | D45: 344.9696652 | E45: 358.7427953 | F45: 378.4540418 | G45: 417.0186926 | H45: 472.6602823 | I45: 552.2712155 | J45: 626.2364731 | K45: 714.2136291 | L45: 758.088344 | M45: 806.4522935 | N45: 932.4625128 | O45: 1053.364262 | P45: 1094.929918
B46: Single parent with 1 child | C46: 445.3996464 | D46: 445.3996464 | E46: 459.1502987 | F46: 478.8293914 | G46: 517.3311477 | H46: 572.8819857 | I46: 652.363073 | J46: 726.2076929 | K46: 814.0413578 | L46: 857.8445128 | M46: 906.1295252 | N46: 1031.934276 | O46: 1152.638908 | P46: 1194.136696
B47: Single parent with 2 children | C47: 557.9075585 | D47: 557.9075585 | E47: 571.6207694 | F47: 591.2462941 | G47: 629.6432184 | H47: 685.0428258 | I47: 764.307513 | J47: 837.9511059 | K47: 925.5456212 | L47: 969.2295568 | M47: 1017.383129 | N47: 1142.84528 | O47: 1263.221287 | P47: 1304.606132
B48: Single parent with 3 children | C48: 684.0912401 | D48: 684.0912401 | E48: 684.0912401 | F48: 703.6631967 | G48: 741.955289 | H48: 797.203666 | I48: 876.251953 | J48: 949.6945189 | K48: 1037.049885 | L48: 1080.614601 | M48: 1128.636734 | N48: 1253.756283 | O48: 1373.803666 | P48: 1415.075569
B49: Brisbane
B50: Couple | C50: 541.1562015 | D50: 541.1562015 | E50: 554.9091185 | F50: 574.5914061 | G50: 613.099404 | H50: 668.65927 | I50: 748.1532519 | J50: 822.0098791 | K50: 909.8577854 | L50: 953.6680335 | M50: 1001.960959 | N50: 1127.786024 | O50: 1248.510252 | P50: 1290.014814
B51: Couple with 1 child | C51: 641.0711083 | D51: 641.0711083 | E51: 641.0711083 | F51: 660.7348004 | G51: 699.2063986 | H51: 754.7137464 | I51: 834.1326233 | J51: 907.9193636 | K51: 995.6843051 | L51: 1039.453123 | M51: 1087.700344 | N51: 1213.406565 | O51: 1334.016678 | P51: 1375.482008
B52: Couple with 2 children | C52: 714.0414609 | D52: 714.0414609 | E52: 714.0414609 | F52: 733.7275062 | G52: 772.2428471 | H52: 827.8132851 | I52: 907.3224433 | J52: 981.1930626 | K52: 1069.057699 | L52: 1112.876365 | M52: 1161.178413 | N52: 1287.027534 | O52: 1407.77468 | P52: 1449.28722
B53: Couple with 3 children | C53: 799.0039781 | D53: 799.0039781 | E53: 799.0039781 | F53: 799.0039781 | G53: 837.5835784 | H53: 893.2467808 | I53: 972.8885565 | J53: 1046.882495 | K53: 1134.893766 | L53: 1178.785549 | M53: 1227.168178 | N53: 1353.227223 | O53: 1474.175927 | P53: 1515.757664
B54: Single person | C54: 264.9128881 | D54: 281.9569296 | E54: 295.7300597 | F54: 315.4413062 | G54: 354.005957 | H54: 409.6475467 | I54: 489.2584983 | J54: 563.223719 | K54: 651.200912 | L54: 695.0756269 | M54: 743.439521 | N54: 869.4497403 | O54: 990.3515265 | P54: 1031.917145
B55: Single parent with 1 child | C55: 382.4896665 | D55: 382.4896665 | E55: 396.2403464 | F55: 415.9194483 | G55: 454.4211954 | H55: 509.9720334 | I55: 589.4531207 | J55: 663.2977499 | K55: 751.1314147 | L55: 794.9345697 | M55: 843.2196189 | N55: 969.0243149 | O55: 1089.728873 | P55: 1131.226698
B56: Single parent with 2 children | C56: 495.1688539 | D56: 495.1688539 | E56: 508.8821016 | F56: 528.507617 | G56: 566.9045505 | H56: 622.304112 | I56: 701.5688452 | J56: 775.2123829 | K56: 862.8069533 | L56: 906.4908154 | M56: 954.6444616 | N56: 1080.106593 | O56: 1200.482601 | P56: 1241.867446
B57: Single parent with 3 children | C57: 621.5238567 | D57: 621.5238567 | E57: 621.5238567 | F57: 641.0957857 | G57: 679.3879056 | H57: 734.6361906 | I57: 813.6845696 | J57: 887.127016 | K57: 974.482492 | L57: 1018.047061 | M57: 1066.069304 | N57: 1191.188872 | O57: 1311.236329 | P57: 1352.508194
B58: Balance of QLD
B59: Couple | C59: 592.0089301 | D59: 592.0089301 | E59: 605.761847 | F59: 625.4440978 | G59: 663.9521326 | H59: 719.5119524 | I59: 799.0059897 | J59: 872.8625984 | K59: 960.7105232 | L59: 1004.520753 | M59: 1052.813678 | N59: 1178.63878 | O59: 1299.363008 | P59: 1340.867534
B60: Couple with 1 child | C60: 691.8757682 | D60: 691.8757682 | E60: 691.8757682 | F60: 711.5394603 | G60: 750.0110584 | H60: 805.5183971 | I60: 884.9372003 | J60: 958.7240142 | K60: 1046.488901 | L60: 1090.257792 | M60: 1138.504995 | N60: 1264.211216 | O60: 1384.821255 | P60: 1426.286659
B61: Couple with 2 children | C61: 764.9038373 | D61: 764.9038373 | E61: 764.9038373 | F61: 784.5898826 | G61: 823.1052143 | H61: 878.6756892 | I61: 958.1847921 | J61: 1032.055467 | K61: 1119.920122 | L61: 1163.738769 | M61: 1212.040818 | N61: 1337.889938 | O61: 1458.637084 | P61: 1500.149551
B62: Couple with 3 children | C62: 849.9512537 | D62: 849.9512537 | E62: 849.9512537 | F62: 849.9512537 | G62: 888.5308724 | H62: 944.194001 | I62: 1023.835832 | J62: 1097.829789 | K62: 1185.841041 | L62: 1229.732824 | M62: 1278.115454 | N62: 1404.174498 | O62: 1525.123203 | P62: 1566.704939
B63: Single person | C63: 315.8404066 | D63: 332.8844665 | E63: 346.6575921 | F63: 366.36882 | G63: 404.9334755 | H63: 460.5750652 | I63: 540.1859891 | J63: 614.1512652 | K63: 702.1284028 | L63: 746.0031361 | M63: 794.3670672 | N63: 920.3772865 | O63: 1041.279054 | P63: 1082.844673
B64: Single parent with 1 child | C64: 433.3341404 | D64: 433.3341404 | E64: 447.0848203 | F64: 466.7638853 | G64: 505.2656324 | H64: 560.8164704 | I64: 640.2975946 | J64: 714.1421961 | K64: 801.9758425 | L64: 845.7789975 | M64: 894.0640652 | N64: 1019.868706 | O64: 1140.573338 | P64: 1182.071162
B65: Single parent with 2 children | C65: 545.8749013 | D65: 545.8749013 | E65: 559.5881122 | F65: 579.2136277 | G65: 617.6105612 | H65: 673.0101595 | I65: 752.2748466 | J65: 825.9184396 | K65: 913.5129916 | L65: 957.1968721 | M65: 1005.3505 | N65: 1130.812668 | O65: 1251.188676 | P65: 1292.573484
B66: Single parent with 3 children | C66: 672.0914042 | D66: 672.0914042 | E66: 672.0914042 | F66: 691.66337 | G66: 729.95549 | H66: 785.2038485 | I66: 864.2520987 | J66: 937.694683 | K66: 1025.050141 | L66: 1068.614747 | M66: 1116.636934 | N66: 1241.756631 | O66: 1361.804015 | P66: 1403.075806
B67: Adelaide
B68: Couple | C68: 581.7259735 | D68: 581.7259735 | E68: 595.4788905 | F68: 615.1611781 | G68: 653.6691853 | H68: 709.229042 | I68: 788.723024 | J68: 862.5796511 | K68: 950.4275575 | L68: 994.2378793 | M68: 1042.530712 | N68: 1168.355796 | O68: 1289.080024 | P68: 1330.584586
B69: Couple with 1 child | C69: 681.6025317 | D69: 681.6025317 | E69: 681.6025317 | F69: 701.2662238 | G69: 739.7378311 | H69: 795.2451698 | I69: 874.6640467 | J69: 948.4508606 | K69: 1036.215728 | L69: 1079.984546 | M69: 1128.231841 | N69: 1253.937988 | O69: 1374.548102 | P69: 1416.013431
B70: Couple with 2 children | C70: 754.6189593 | D70: 754.6189593 | E70: 754.6189593 | F70: 774.3050415 | G70: 812.8203824 | H70: 868.3907835 | I70: 947.8999418 | J70: 1021.770561 | K70: 1109.635272 | L70: 1153.453863 | M70: 1201.755912 | N70: 1327.605033 | O70: 1448.352252 | P70: 1489.864719
B71: Couple with 3 children | C71: 839.6491862 | D71: 839.6491862 | E71: 839.6491862 | F71: 839.6491862 | G71: 878.2287864 | H71: 933.8919888 | I71: 1013.533765 | J71: 1087.527703 | K71: 1175.538955 | L71: 1219.43072 | M71: 1267.813386 | N71: 1393.872431 | O71: 1514.821135 | P71: 1556.402872
B72: Single person | C72: 305.5423438 | D72: 322.586383 | E72: 336.3595316 | F72: 356.070755 | G72: 394.6354104 | H72: 450.2770186 | I72: 529.8879517 | J72: 603.8531724 | K72: 691.8303654 | L72: 735.7050802 | M72: 784.0690113 | N72: 910.0791937 | O72: 1030.98098 | P72: 1072.546598
B73: Single parent with 1 child | C73: 423.052853 | D73: 423.052853 | E73: 436.803533 | F73: 456.4826349 | G73: 494.984382 | H73: 550.53522 | I73: 630.0163165 | J73: 703.8609364 | K73: 791.6946013 | L73: 835.4977562 | M73: 883.7828055 | N73: 1009.587502 | O73: 1130.292059 | P73: 1171.789958
B74: Single parent with 2 children | C74: 535.6216053 | D74: 535.6216053 | E74: 549.334853 | F74: 568.9603684 | G74: 607.3573019 | H74: 662.7569094 | I74: 742.0215966 | J74: 815.6651711 | K74: 903.2597047 | L74: 946.9435668 | M74: 995.0971946 | N74: 1120.559345 | O74: 1240.935352 | P74: 1282.320197
B75: Single parent with 3 children | C75: 661.866173 | D75: 661.866173 | E75: 661.866173 | F75: 681.4381019 | G75: 719.7302219 | H75: 774.9785988 | I75: 854.0268766 | J75: 927.4694058 | K75: 1014.824808 | L75: 1058.389377 | M75: 1106.411584 | N75: 1231.531188 | O75: 1351.578645 | P75: 1392.850437
B76: Balance of SA
B77: Couple | C77: 540.4290198 | D77: 540.4290198 | E77: 554.1818999 | F77: 573.8641875 | G77: 612.3721946 | H77: 667.9320514 | I77: 747.4260333 | J77: 821.2826605 | K77: 909.1305668 | L77: 952.9408886 | M77: 1001.233759 | N77: 1127.058842 | O77: 1247.78307 | P77: 1289.287596
B78: Couple with 1 child | C78: 640.3446232 | D78: 640.3446232 | E78: 640.3446232 | F78: 660.0083061 | G78: 698.4799134 | H78: 753.9872152 | I78: 833.4060921 | J78: 907.1929061 | K78: 994.9577739 | L78: 1038.72661 | M78: 1086.973886 | N78: 1212.680034 | O78: 1333.290147 | P78: 1374.755477
B79: Couple with 2 children | C79: 713.3141499 | D79: 713.3141499 | E79: 713.3141499 | F79: 733.000149 | G79: 771.5155268 | H79: 827.0859279 | I79: 906.5950862 | J79: 980.4657792 | K79: 1068.330416 | L79: 1112.149008 | M79: 1160.45113 | N79: 1286.300177 | O79: 1407.047397 | P79: 1448.559863
B80: Couple with 3 children | C80: 798.2754073 | D80: 798.2754073 | E80: 798.2754073 | F80: 798.2754073 | G80: 836.8550075 | H80: 892.51821 | I80: 972.1599857 | J80: 1046.153924 | K80: 1134.165176 | L80: 1178.056978 | M80: 1226.439608 | N80: 1352.498726 | O80: 1473.447357 | P80: 1515.029167
B81: Single person | C81: 264.184625 | D81: 281.2286596 | E81: 295.0017898 | F81: 314.7130362 | G81: 353.2776871 | H81: 408.9192768 | I81: 488.5302099 | J81: 562.495486 | K81: 650.4726236 | L81: 694.3473384 | M81: 742.711288 | N81: 868.7214888 | O81: 989.6232381 | P81: 1031.18893
B82: Single parent with 1 child | C82: 381.7626074 | D82: 381.7626074 | E82: 395.513255 | F82: 415.1923477 | G82: 453.6941041 | H82: 509.2449421 | I82: 588.7260294 | J82: 662.5706493 | K82: 750.4043141 | L82: 794.2074691 | M82: 842.4925184 | N82: 968.2972144 | O82: 1089.001846 | P82: 1130.499671
B83: Single parent with 2 children | C83: 494.4437696 | D83: 494.4437696 | E83: 508.1569805 | F83: 527.7825052 | G83: 566.1794295 | H83: 621.579037 | I83: 700.8437241 | J83: 774.4873171 | K83: 862.0818323 | L83: 905.765768 | M83: 953.9193405 | N83: 1079.381472 | O83: 1199.75748 | P83: 1241.142325
B84: Single parent with 3 children | C84: 620.800706 | D84: 620.800706 | E84: 620.800706 | F84: 640.3726626 | G84: 678.6647549 | H84: 733.9131319 | I84: 812.9614189 | J84: 886.4039848 | K84: 973.7593505 | L84: 1017.324067 | M84: 1065.346163 | N84: 1190.46573 | O84: 1310.513114 | P84: 1351.784979
B85: Perth
B86: Couple | C86: 516.5950756 | D86: 516.5950756 | E86: 530.3479926 | F86: 550.0302802 | G86: 588.5382874 | H86: 644.0981073 | I86: 723.5921353 | J86: 797.4487071 | K86: 885.2966319 | L86: 929.1069353 | M86: 977.3998052 | N86: 1103.224944 | O86: 1223.949099 | P86: 1265.453661
B87: Couple with 1 child | C87: 616.5332082 | D87: 616.5332082 | E87: 616.5332082 | F87: 636.1968911 | G87: 674.6684892 | H87: 730.1758278 | I87: 809.5946863 | J87: 883.3814818 | K87: 971.1463681 | L87: 1014.91526 | M87: 1063.162462 | N87: 1188.868628 | O87: 1309.478741 | P87: 1350.944034
B88: Couple with 2 children | C88: 689.4756666 | D88: 689.4756666 | E88: 689.4756666 | F88: 709.1617027 | G88: 747.6770436 | H88: 803.2474355 | I88: 882.7566122 | J88: 956.6272867 | K88: 1044.491942 | L88: 1088.310515 | M88: 1136.612656 | N88: 1262.461703 | O88: 1383.208923 | P88: 1424.721352
B89: Couple with 3 children | C89: 774.397146 | D89: 774.397146 | E89: 774.397146 | F89: 774.397146 | G89: 812.9768294 | H89: 868.639958 | I89: 948.281789 | J89: 1022.275672 | K89: 1110.286924 | L89: 1154.178708 | M89: 1202.561355 | N89: 1328.620474 | O89: 1449.569105 | P89: 1491.150915
B90: Single person | C90: 240.315617 | D90: 257.3596724 | E90: 271.1328025 | F90: 290.844049 | G90: 329.4086998 | H90: 385.0502711 | I90: 464.6612042 | J90: 538.626471 | K90: 626.6036271 | L90: 670.4783419 | M90: 718.842273 | N90: 844.8524923 | O90: 965.7543154 | P90: 1007.319934
B91: Single parent with 1 child | C91: 357.9325321 | D91: 357.9325321 | E91: 371.6831982 | F91: 391.3622725 | G91: 429.8640657 | H91: 485.4148668 | I91: 564.8959817 | J91: 638.7405832 | K91: 726.5742297 | L91: 770.3774399 | M91: 818.6624523 | N91: 944.4671483 | O91: 1065.17178 | P91: 1106.669605
B92: Single parent with 2 children | C92: 470.6785729 | D92: 470.6785729 | E92: 484.3917838 | F92: 504.0173084 | G92: 542.4142327 | H92: 597.813831 | I92: 677.0785366 | J92: 750.7221111 | K92: 838.3166447 | L92: 882.0005804 | M92: 930.1541346 | N92: 1055.616285 | O92: 1175.992292 | P92: 1217.377137
B93: Single parent with 3 children | C93: 597.1003693 | D93: 597.1003693 | E93: 597.1003693 | F93: 616.6723443 | G93: 654.9643998 | H93: 710.2127952 | I93: 789.2610914 | J93: 862.7036389 | K93: 950.0590598 | L93: 993.6237208 | M93: 1041.645817 | N93: 1166.765421 | O93: 1286.812805 | P93: 1328.08467
B94: Balance of WA
B95: Couple | C95: 575.6288662 | D95: 575.6288662 | E95: 589.3817832 | F95: 609.0640431 | G95: 647.5720503 | H95: 703.131907 | I95: 782.6259258 | J95: 856.4825161 | K95: 944.3304593 | L95: 988.1406889 | M95: 1036.433633 | N95: 1162.258716 | O95: 1282.982945 | P95: 1324.487507
B96: Couple with 1 child | C96: 675.5111969 | D96: 675.5111969 | E96: 675.5111969 | F96: 695.1748797 | G96: 733.6464779 | H96: 789.1538165 | I96: 868.5726381 | J96: 942.3594337 | K96: 1030.12432 | L96: 1073.893212 | M96: 1122.140414 | N96: 1247.846635 | O96: 1368.456675 | P96: 1409.922004
B97: Couple with 2 children | C97: 748.5207 | D97: 748.5207 | E97: 748.5207 | F97: 768.2067084 | G97: 806.7220309 | H97: 862.2925242 | I97: 941.8016087 | J97: 1015.672302 | K97: 1103.536938 | L97: 1147.355585 | M97: 1195.657634 | N97: 1321.506755 | O97: 1442.253901 | P97: 1483.766367
B98: Couple with 3 children | C98: 833.540751 | D98: 833.540751 | E98: 833.540751 | F98: 833.540751 | G98: 872.1203512 | H98: 927.7834798 | I98: 1007.425311 | J98: 1081.419268 | K98: 1169.430538 | L98: 1213.322303 | M98: 1261.70497 | N98: 1387.764014 | O98: 1508.712682 | P98: 1550.294418
B99: Single person | C99: 299.4362532 | D99: 316.4802925 | E99: 330.2534411 | F99: 349.964669 | G99: 388.5293153 | H99: 444.1709142 | I99: 523.7818381 | J99: 597.747105 | K99: 685.724261 | L99: 729.5989759 | M99: 777.9629069 | N99: 903.9731447 | O99: 1024.874931 | P99: 1066.440512
B100: Single parent with 1 child | C100: 416.95674 | D100: 416.95674 | E100: 430.7073877 | F100: 450.3864896 | G100: 488.8882367 | H100: 544.4390747 | I100: 623.9201528 | J100: 697.7647911 | K100: 785.598456 | L100: 829.401611 | M100: 877.6866602 | N100: 1003.491338 | O100: 1124.195933 | P100: 1165.693757
B101: Single parent with 2 children | C101: 529.5420938 | D101: 529.5420938 | E101: 543.2553047 | F101: 562.8808202 | G101: 601.2777537 | H101: 656.6773427 | I101: 735.9420483 | J101: 809.5856228 | K101: 897.1801933 | L101: 940.8640554 | M101: 989.0177015 | N101: 1114.479852 | O101: 1234.855859 | P101: 1276.240668
B102: Single parent with 3 children | C102: 655.8032217 | D102: 655.8032217 | E102: 655.8032217 | F102: 675.3751507 | G102: 713.6672706 | H102: 768.9156108 | I102: 847.9639439 | J102: 921.4064546 | K102: 1008.761931 | L102: 1052.3265 | M102: 1100.348743 | N102: 1225.468365 | O102: 1345.515786 | P102: 1386.787578
B103: Hobart
B104: Couple | C104: 588.5428138 | D104: 588.5428138 | E104: 602.2957308 | F104: 621.9780276 | G104: 660.4860348 | H104: 716.0458915 | I104: 795.5398735 | J104: 869.3964637 | K104: 957.2443701 | L104: 1001.054692 | M104: 1049.347525 | N104: 1175.172682 | O104: 1295.896837 | P104: 1337.401473
B105: Couple with 1 child | C105: 688.4129376 | D105: 688.4129376 | E105: 688.4129376 | F105: 708.0766204 | G105: 746.5482186 | H105: 802.0555756 | I105: 881.4744157 | J105: 955.2612112 | K105: 1043.026097 | L105: 1086.794989 | M105: 1135.04221 | N105: 1260.748357 | O105: 1381.358471 | P105: 1422.823763
B106: Couple with 2 children | C106: 761.4371071 | D106: 761.4371071 | E106: 761.4371071 | F106: 781.1231432 | G106: 819.6384933 | H106: 875.2088944 | I106: 954.7180527 | J106: 1028.588746 | K106: 1116.453382 | L106: 1160.272029 | M106: 1208.574097 | N106: 1334.423143 | O106: 1455.170363 | P106: 1496.68283
B107: Couple with 3 children | C107: 846.478748 | D107: 846.478748 | E107: 846.478748 | F107: 846.478748 | G107: 885.0583482 | H107: 940.7214767 | I107: 1020.363308 | J107: 1094.357191 | K107: 1182.368517 | L107: 1226.260208 | M107: 1274.642948 | N107: 1400.701993 | O107: 1521.650697 | P107: 1563.232433
B108: Single person | C108: 312.3692168 | D108: 329.413256 | E108: 343.1863908 | F108: 362.8976326 | G108: 401.4622788 | H108: 457.1038593 | I108: 536.7148293 | J108: 610.68005 | K108: 698.6572061 | L108: 742.5319579 | M108: 790.895852 | N108: 916.9060713 | O108: 1037.807894 | P108: 1079.373513
B109: Single parent with 1 child | C109: 429.8685914 | D109: 429.8685914 | E109: 443.6192759 | F109: 463.2983778 | G109: 501.8001249 | H109: 557.3509261 | I109: 636.832041 | J109: 710.6766425 | K109: 798.5103074 | L109: 842.3134992 | M109: 890.5985116 | N109: 1016.403208 | O109: 1137.107839 | P109: 1178.605664
B110: Single parent with 2 children | C110: 542.4187921 | D110: 542.4187921 | E110: 556.1320397 | F110: 575.7575184 | G110: 614.1544795 | H110: 669.554041 | I110: 748.8187833 | J110: 822.4623211 | K110: 910.0568547 | L110: 953.7407904 | M110: 1001.894345 | N110: 1127.356568 | O110: 1247.732502 | P110: 1289.117347
B111: Single parent with 3 children | C111: 668.6448036 | D111: 668.6448036 | E111: 668.6448036 | F111: 688.216659 | G111: 726.5088341 | H111: 781.757156 | I111: 860.8055257 | J111: 934.2479997 | K111: 1021.603402 | L111: 1065.168082 | M111: 1113.190178 | N111: 1238.309929 | O111: 1358.357166 | P111: 1399.629031
B112: Balance of TAS
B113: Couple | C113: 578.5845355 | D113: 578.5845355 | E113: 592.3374156 | F113: 612.0197032 | G113: 650.5277011 | H113: 706.0875579 | I113: 785.5815583 | J113: 859.438167 | K113: 947.2860917 | L113: 991.0963951 | M113: 1039.389265 | N113: 1165.214349 | O113: 1285.938577 | P113: 1327.443102
B114: Couple with 1 child | C114: 678.4640631 | D114: 678.4640631 | E114: 678.4640631 | F114: 698.1277552 | G114: 736.5993533 | H114: 792.1066551 | I114: 871.5255504 | J114: 945.312346 | K114: 1033.077232 | L114: 1076.84605 | M114: 1125.093326 | N114: 1250.799474 | O114: 1371.409587 | P114: 1412.874917
B115: Couple with 2 children | C115: 751.4769322 | D115: 751.4769322 | E115: 751.4769322 | F115: 771.1629683 | G115: 809.6783 | H115: 865.2487011 | I115: 944.7578778 | J115: 1018.628552 | K115: 1106.493208 | L115: 1150.311799 | M115: 1198.613903 | N115: 1324.46295 | O115: 1445.21017 | P115: 1486.722636
B116: Couple with 3 children | C116: 836.5018792 | D116: 836.5018792 | E116: 836.5018792 | F116: 836.5018792 | G116: 875.0814794 | H116: 930.7446819 | I116: 1010.386439 | J116: 1084.380396 | K116: 1172.391667 | L116: 1216.283431 | M116: 1264.666061 | N116: 1390.725179 | O116: 1511.67381 | P116: 1553.25562
B117: Single person | C117: 302.396266 | D117: 319.4403052 | E117: 333.2134353 | F117: 352.9246771 | G117: 391.4893326 | H117: 447.1309223 | I117: 526.7418554 | J117: 600.7071223 | K117: 688.6842599 | L117: 732.5589932 | M117: 780.9229242 | N117: 906.933162 | O117: 1027.834911 | P117: 1069.400567
B118: Single parent with 1 child | C118: 419.9119295 | D118: 419.9119295 | E118: 433.6625772 | F118: 453.3416699 | G118: 491.8434262 | H118: 547.3942642 | I118: 626.8753423 | J118: 700.7199806 | K118: 788.5536271 | L118: 832.3568005 | M118: 880.6418497 | N118: 1006.446527 | O118: 1127.151159 | P118: 1168.648984
B119: Single parent with 2 children | C119: 532.4892285 | D119: 532.4892285 | E119: 546.2024394 | F119: 565.827964 | G119: 604.2248884 | H119: 659.6244866 | I119: 738.8891738 | J119: 812.5327667 | K119: 900.1273004 | L119: 943.811236 | M119: 991.9648086 | N119: 1117.426959 | O119: 1237.802966 | P119: 1279.187775
B120: Single parent with 3 children | C120: 658.7423016 | D120: 658.7423016 | E120: 658.7423016 | F120: 678.3142582 | G120: 716.6063505 | H120: 771.8547091 | I120: 850.9030053 | J120: 924.3455528 | K120: 1011.700974 | L120: 1055.265672 | M120: 1103.287767 | N120: 1228.40739 | O120: 1348.454774 | P120: 1389.726566
B121: ACT
B122: Couple | C122: 588.3154405 | D122: 588.3154405 | E122: 602.0683206 | F122: 621.7506082 | G122: 660.2586061 | H122: 715.8184629 | I122: 795.3124632 | J122: 869.1690719 | K122: 957.0170336 | L122: 1000.827263 | M122: 1049.120115 | N122: 1174.945272 | O122: 1295.6695 | P122: 1337.174062
B123: Couple with 1 child | C123: 688.1857699 | D123: 688.1857699 | E123: 688.1857699 | F123: 707.8494252 | G123: 746.3210601 | H123: 801.8283619 | I123: 881.2472204 | J123: 955.0340159 | K123: 1042.798902 | L123: 1086.567794 | M123: 1134.815015 | N123: 1260.521162 | O123: 1381.131275 | P123: 1422.596568
B124: Couple with 2 children | C124: 761.2096536 | D124: 761.2096536 | E124: 761.2096536 | F124: 780.8956896 | G124: 819.4110213 | H124: 874.9814962 | I124: 954.4905991 | J124: 1028.361274 | K124: 1116.225929 | L124: 1160.044576 | M124: 1208.346643 | N124: 1334.19569 | O124: 1454.94291 | P124: 1496.455339
B125: Couple with 3 children | C125: 846.2509149 | D125: 846.2509149 | E125: 846.2509149 | F125: 846.2509149 | G125: 884.8305151 | H125: 940.4936437 | I125: 1020.135475 | J125: 1094.129432 | K125: 1182.140684 | L125: 1226.032375 | M125: 1274.415115 | N125: 1400.47416 | O125: 1521.422864 | P125: 1563.0046
B126: Single person | C126: 312.1414859 | D126: 329.1855251 | E126: 342.9586552 | F126: 362.669897 | G126: 401.2345525 | H126: 456.8761422 | I126: 536.4870661 | J126: 610.4523422 | K126: 698.4294798 | L126: 742.3042131 | M126: 790.6681442 | N126: 916.6783265 | O126: 1037.58015 | P126: 1079.145768
B127: Single parent with 1 child | C127: 429.6412549 | D127: 429.6412549 | E127: 443.3919026 | F127: 463.0709953 | G127: 501.5727516 | H127: 557.1235896 | I127: 636.6046677 | J127: 710.449306 | K127: 798.2829525 | L127: 842.0861259 | M127: 890.3711751 | N127: 1016.175834 | O127: 1136.880466 | P127: 1178.378291
B128: Single parent with 2 children | C128: 542.1920654 | D128: 542.1920654 | E128: 555.9052763 | F128: 575.5308009 | G128: 613.9277252 | H128: 669.3273235 | I128: 748.5920107 | J128: 822.2356036 | K128: 909.8301005 | L128: 953.5140361 | M128: 1001.66759 | N128: 1127.129814 | O128: 1247.505822 | P128: 1288.890667
B129: Single parent with 3 children | C129: 668.4186499 | D129: 668.4186499 | E129: 668.4186499 | F129: 687.9906065 | G129: 726.2826988 | H129: 781.5310574 | I129: 860.5793537 | J129: 934.0219011 | K129: 1021.377248 | L129: 1064.941946 | M129: 1112.964005 | N129: 1238.083794 | O129: 1358.131177 | P129: 1399.403043
B130: NT
B131: Couple | C131: 588.3154405 | D131: 588.3154405 | E131: 602.0683206 | F131: 621.7506082 | G131: 660.2586061 | H131: 715.8184629 | I131: 795.3124632 | J131: 869.1690719 | K131: 957.0170336 | L131: 1000.827263 | M131: 1049.120115 | N131: 1174.945272 | O131: 1295.6695 | P131: 1337.174062
B132: Couple with 1 child | C132: 688.1857699 | D132: 688.1857699 | E132: 688.1857699 | F132: 707.8494252 | G132: 746.3210601 | H132: 801.8283619 | I132: 881.2472204 | J132: 955.0340159 | K132: 1042.798902 | L132: 1086.567794 | M132: 1134.815015 | N132: 1260.521162 | O132: 1381.131275 | P132: 1422.596568
B133: Couple with 2 children | C133: 761.2096536 | D133: 761.2096536 | E133: 761.2096536 | F133: 780.8956896 | G133: 819.4110213 | H133: 874.9814962 | I133: 954.4905991 | J133: 1028.361274 | K133: 1116.225929 | L133: 1160.044576 | M133: 1208.346643 | N133: 1334.19569 | O133: 1454.94291 | P133: 1496.455339
B134: Couple with 3 children | C134: 846.2509149 | D134: 846.2509149 | E134: 846.2509149 | F134: 846.2509149 | G134: 884.8305151 | H134: 940.4936437 | I134: 1020.135475 | J134: 1094.129432 | K134: 1182.140684 | L134: 1226.032375 | M134: 1274.415115 | N134: 1400.47416 | O134: 1521.422864 | P134: 1563.0046
B135: Single person | C135: 312.1414859 | D135: 329.1855251 | E135: 342.9586552 | F135: 362.669897 | G135: 401.2345525 | H135: 456.8761422 | I135: 536.4870661 | J135: 610.4523422 | K135: 698.4294798 | L135: 742.3042131 | M135: 790.6681442 | N135: 916.6783265 | O135: 1037.58015 | P135: 1079.145768
B136: Single parent with 1 child | C136: 429.6412549 | D136: 429.6412549 | E136: 443.3919026 | F136: 463.0709953 | G136: 501.5727516 | H136: 557.1235896 | I136: 636.6046677 | J136: 710.449306 | K136: 798.2829525 | L136: 842.0861259 | M136: 890.3711751 | N136: 1016.175834 | O136: 1136.880466 | P136: 1178.378291
B137: Single parent with 2 children | C137: 542.1920654 | D137: 542.1920654 | E137: 555.9052763 | F137: 575.5308009 | G137: 613.9277252 | H137: 669.3273235 | I137: 748.5920107 | J137: 822.2356036 | K137: 909.8301005 | L137: 953.5140361 | M137: 1001.66759 | N137: 1127.129814 | O137: 1247.505822 | P137: 1288.890667
B138: Single parent with 3 children | C138: 668.4186499 | D138: 668.4186499 | E138: 668.4186499 | F138: 687.9906065 | G138: 726.2826988 | H138: 781.5310574 | I138: 860.5793537 | J138: 934.0219011 | K138: 1021.377248 | L138: 1064.941946 | M138: 1112.964005 | N138: 1238.083794 | O138: 1358.131177 | P138: 1399.403043

Sheet Version Control (hidden)
A1: Version | B1: Date | C1: Comment | D1: Approved
A2: 1 | B2: 2016-06-08 | C2: Development of quick qualifier | D2: C. Lonergan
A3: 2 | B3: 2016-11-01 | C3: Amended to include advanced HEM by income band and geographical location | D3: C. Lonergan
A4: 3 | B4: 2017-08-18 | C4: HEM updated to Q2 2017 together with requirement for $200 monthly surplus to allow for savings or unexpected expenses | D4: C. Lonergan
A5: 3.1 | B5: 2018-02-05 | C5: DSR corrected to include overtime for 2nd applicant | D5: C. Lonergan
A6: 3.2 | B6: 2018-10-02 | C6: New tax tables inserted, DSR changed to DTI and min credit card payment changed from 3.0% to 3.8%. | D6: C. Lonergan
A7: 4 | B7: 2018-12-01 | C7: HEM Updated to Q3 2018 | D7: C. Lonergan
A8: 4.1 | B8: 2019-05-09 | C8: HEM Updated to Q4 2018 | D8: C. Lonergan
A9: 5 | B9: 2019-06-01 | C9: Floor rate changed to 7%, $200 savings buffer removed and HEM updated t0 Q1 2019 | D9: C. Lonergan
A10: 6
A11: 6.1 | B11: 2019-08-19 | C11: Updated HEM Q2 2019 | D11: C. Lonergan
A12: 6.1 | B12: 2019-09-30 | C12: Updated Instructions
A13: 6.2 | B13: 2019-10-22 | C13: Updated Floor rate | D13: C. Lonergan
A14: 6.3 | B14: 2020-02-28 | C14: Updated HEM 2019Q4 | D14: C. Lonergan
A15: 6.4 | B15: 2020-05-18 | C15: Updated HEM Q1 2020 | D15: C. Lonergan
A16: 6.5 | B16: 2020-07-01 | C16: Macro "Export to PDF" button added | D16: C. Lonergan
A17: 6.5 | B17: 2020-07-08 | C17: Doc code AB1298 added | D17: C. Lonergan
A18: 7 | B18: 2020-08-24 | C18: Updated HEM | D18: C. Lonergan
A19: 7 | B19: 2020-11-27 | C19: Update tax calculation in accordance with 2021 budget Update HEM Q2 2020 Reinstate $200 per month buffer Revised Max Loan amount formula to include buffer | D19: C. Lonergan
A20: 7.1 | B20: 2021-02-16 | C20: Update HEM Q4 2020 Revise Floor rate from 5.4% to 5.25% Update postcode notes Update Credit Card repayment notes | D20: C. Lonergan
A21: 7.2 | B21: 2021-05-17 | C21: Update HEM Q1 2021 | D21: C. Lonergan
A22: 7.3 | B22: 2021-08-24 | C22: Update HEM Q2 2021 | D22: C Lonergan
A23: 7.4 | B23: 2021-10-26 | C23: Increase buffer from 2.5% to 3.0% | D23: C Lonergan
A24: 7.5 | B24: 2021-11-16 | C24: Update HEM Q3 2021 effective 03/12/2021 | D24: C Lonergan
A25: 7.6 | B25: 2022-03-01 | C25: Update HEM Q4 2021 effective 11/03/2022 | D25: C Lonergan
A26: 7.7 | B26: 2022-05-13 | C26: Update HEM Q1 2022 effective 03/06/2022 | D26: C Lonergan
A27: 7.7 | B27: 2022-06-09 | C27: Formula in cell H50 (DTI) updated to round to two decimal places Cell formatting changed to show red colour when DTI >=6.01, green colour when DTI <=6 (request by Third Party) | D27: C Lonergan
A28: 7.8 | B28: 2022-07-22 | C28: Floor rate increased from 5.25% to 6.25% | D28: C Lonergan
A29: 7.9 | B29: 2022-08-17 | C29: Update HEM Q2 2022 effective 02/09/2022 | D29: C Lonergan
A30: 8 | B30: 2022-11-16 | C30: Update HEM Q3 2022 effective 03/12/2022 | D30: C Lonergan
A31: 9 | B31: 2023-02-21 | C31: Update HEM Q4 2022 effective 10/03/2023 Revise floor rate from 6.25% to 7.0% | D31: C Lonergan
A32: 10 | B32: 2023-05-15 | C32: Update HEM Q1 2023 effective 02/06/2023 | D32: C Lonergan
A33: 10.1 | B33: 2023-08-21 | C33: Update HEM Q2 2023 effective 08/09/2023 | D33: C Lonergan

Sheet 23 09 Revisions (hidden)
A1: Revisions (detail) | C1: Cells revised
A2: 1 | B2: HEM 2023Q2

Sheet Instructions (hidden)
A1: Instructions
A2: 1 | B2: Copy HEM tables workbook to new workbook. Use this copied file to work on, retaining original for reference.
A3: 2 | B3: In the copied HEM workbook, and where there is no data included in the low income columns, copy first available amount and past to lower income columns
A4: 3 | B4: Check and review blank cells in cols AB/AC/AD to ensure all completed as above
A5: 4 | B5: Copy Drop in Tables "HEM Table 1" equivalent: by income Level and Residency to new tab HEM workbook
A6: 5 | B6: Re-name tab "Updated Version"
A7: 6 | B7: Delete extra rows including any at top of table name, so there is no gaps in the data table
A8: 7 | B8: Copy ACT & NT and add to data (Row 135)
A9: 8 | B9: Delete NT from first, ACT from second
A10: 9 | B10: Highlight data from cells B10:O143 | C10: Not required
A11: 10 | B11: Remove currency formatting (click on comma in ribbon and extend number of decimal places shown to 4 places, if required) | C11: Not required
A12: 11 | B12: Highlight rows from row 9 (Australia) and change font to Arial 10
A13: 12 | B13: Copy data from row 10 Couple to new Quick Qualifier HEM Table cell B5 (check cells before each update to ensure correct data range transferred
A14: 13 | B14: Enter the upper income range in cell B8 (e.g. $22,000) and copy Income upper range in row 4 Range up to: to new QQ (row 8)
A15: 14 | B15: Ensure changed in the Calculator tab as well as HEM Table tab
A16: 15 | B16: Check logo size for each version - approved 8.44 x 3.08
A17: 16 | B17: Revise floor rate - adjust cells when required | C17: E7 E13 E20 F23 F24 F25
A27: Third Party | B27: Provide copy of unprotected QQ, after DELETING version control, revisions and instructions tabs
B28: AND
A29: Third Party | B29: COPY OF PROTECTED VERSION OF QQ ALSO
A31: Instructions to protect form:
A32: *** | B32: Ensure formula calculation set to Automatic not Manual
A33: 1 | B33: Hide all tabs except Calculator tab i.e. HEM Table, Version Control, Revisions, Instructions
A34: 2 | B34: On Calculator tab, hide columns L-BE
A35: 3 | B35: Ensure columns I-J , Y-BE and are hidden, if not already
A36: 4 | B36: Click on File, go to Info, click on Protect Workbook
A37: 5 | B37: Choose Protect Current Sheet, follow instructions and enter password
A38: 6 | B38: Choose Protect Workbook Structure, follow instructions and enter password
A39: 7 | B39: Save protected form as "Quick Qualifier"
A40: 8 | B40: Upload protected form to DMS using name "Quick Qualifier" ***Do not change name or links to various documents will not work.
A48: Postcodes
A49: QLD 4000
A50: NSW 2000
A51: VIC 3000
A52: SA 5000
A53: WA 6000
A54: TAS 7000
A55: NT 0801
A56: ACT 2600

Sheet Sheet1 (hidden)
